{"text_format":"3","workbook":"xlsx","n_sheets":15,"sheets":["Como usar este modelo","Lista de Alunos","Agosto","Setembro","Outubro","Novembro","Dezembro","Janeiro","Fevereiro","Março","Abril","Maio","Junho","Julho","Relatório de Presença do Aluno"],"not_rendered":{"defined_names":16},"read":"whole","date_system":"1900"}

{"sheet":"Como usar este modelo","index":0,"n_rows":25,"n_cols":5,"rows_kept":25,"merged":[[3,2,3,12],[4,4,4,12],[5,4,5,12],[6,4,6,12],[7,4,7,12],[8,4,8,7],[11,2,11,12],[12,4,12,12],[13,4,13,12],[14,4,14,12],[17,2,17,12],[18,4,18,12],[19,4,19,12],[20,4,20,12],[21,4,21,12],[24,2,24,12]]}
["COMO USAR ESTE MODELO"]
[]
[null,"POR ONDE COMEÇAR?"]
[null,null,"Há algumas etapas que você precisa seguir para poder acompanhar a presença dos alunos:"]
[{"$nulls":3},"1.","Adicionar seus alunos: Na planilha Lista de Alunos, insira as informações de cada aluno, como nomes de tutores e dados de contato. A ID do Aluno é uma entrada importante, pois fornece um identificador exclusivo para cada aluno e é usada em toda a pasta de trabalho nas várias listas suspensas de ID do Aluno para facilitar a entrada de dados. As informações inseridas na Lista de Alunos também são usadas em outras planilhas, como no Relatório de Presença do Aluno e nos registros de presença mensais."]
[{"$nulls":3},"2.","Mudar o ano letivo: Na planilha de presença em Agosto, clique no controle giratório localizado na extremidade superior direita do cabeçalho para atualizar o ano letivo. Essa mudança atualizará o cabeçalho em todos os registros de presença mensais da pasta de trabalho. (O botão giratório não é impresso.)"]
[{"$nulls":3},"3.","(Opcional) Modificar as cores na pasta de trabalho: Primeiro, navegue até a última planilha, Relatório de Presença do Aluno, e na guia Revisar, no grupo Alterações, clique em Desproteger Planilha. Em seguida, na guia Layout de Página, no grupo Temas, clique em Cores e selecione outro conjunto de cores de tema na galeria de cores. Depois de fazer suas mudanças nas cores e qualquer outra mudança de tema, retorne à planilha Relatório de Presença do Aluno e, na guia Revisar, no grupo Alterações, clique em Proteger Planilha e depois clique em OK."]
[{"$nulls":4},"Dica: Crie um conjunto de cores de tema personalizado que corresponda às cores da sua escola! Para fazer isso, na guia Layout de Página, no grupo Temas, clique em Cores e, em seguida, próximo à parte inferior da galeria de cores, clique em Criar Novas Cores do Tema. Para saber mais sobre como criar um conjunto de cores personalizado, veja o seguinte tópico da Ajuda: "]
[{"$nulls":4},"Personalizar um tema de documento."]
[]
[null,"ADICIONEI MEUS ALUNOS, O QUE FAÇO EM SEGUIDA?"]
[null,null,"Depois que os seus alunos tiverem sido inseridos na planilha Lista de Alunos, você poderá começar a acompanhar a presença deles no ano escolar usando estas etapas:"]
[{"$nulls":3},"1.","Para adicionar um aluno a um registro de presença, clique em uma célula abaixo da coluna ID do Aluno e selecione uma ID na lista. O nome do aluno será automaticamente exibido após a seleção da ID. "]
[{"$nulls":4},"Dica: Salve as etapas de entrada de dados! Depois que os seus alunos tiverem sido adicionados para um mês, selecione as IDs de Aluno inseridas, copie-as e depois cole-as na coluna ID do Aluno para os meses restantes. "]
[{"$nulls":3},"2.","Em seguida, insira o registro de presença para cada dia do mês usando os tipos de presença fornecidos na Chave Colorida. A presença do aluno é calculada automaticamente por tipo de presença para cada aluno na coluna Totais. O total de ausências para cada dia é automaticamente calculado na parte inferior da tabela, na linha Total."]
[]
[null,"COMO ADICIONAR MAIS ALUNOS A UM REGISTRO DE PRESENÇA MENSAL?"]
[null,null,"As planilhas de registro de presença mensal e a Lista de Alunos são tabelas do Excel. Para adicionar novas linhas a qualquer tabela do Excel, siga um destes procedimentos:"]
[{"$nulls":3},"● ","Se a tabela não tiver uma linha Total, comece a digitar abaixo da tabela, e ela será automaticamente expandida quando você pressionar a tecla Enter ou Tab."]
[{"$nulls":3},"● ","Posicione o ponteiro de célula na última célula acima da linha Total, como a célula Dias de Ausência do último aluno, e pressione a tecla Tab."]
[{"$nulls":3},"● ","Clique com o botão direito do mouse na tabela e, no menu pop-up, aponte para Inserir, e depois clique em Linhas da Tabela Acima ou Linhas da Tabela Abaixo. "]
[{"$nulls":3},"● ","No canto inferior direito da tabela, posicione o mouse sobre a alça de dimensionamento de tabela e arraste para baixo para aumentar o número de linhas de tabela disponíveis."]
[]
[null,"POSSO VER A PRESENÇA DE UM ALUNO DURANTE TODO O ANO ESCOLAR?"]
[null,null,"A última planilha desta pasta de trabalho, Relatório de Presença do Aluno, controla a presença durante o ano. Para ver o relatório de um aluno específico, clique na célula abaixo de ID do Aluno e selecione uma ID na lista suspensa. As informações previamente inseridas na planilha Lista de Alunos referente ao aluno selecionado serão automaticamente exibidas. Observe que, ao usar pela primeira vez o Relatório de Presença do Aluno, você precisa inserir a Escola, a Nota, o Professor e a Sala. Essas informações não mudarão se você selecionar outro aluno. "]

{"sheet":"Lista de Alunos","index":1,"n_rows":8,"n_cols":19,"rows_kept":8}
["LISTA DE ALUNOS"]
[]
[null,"ID do Aluno","Nome do Aluno","Sobrenome do Aluno","Sexo","Data de Nascimento","Pais ou Tutor 1","Relação - Pais/Tutor 1","Pais/Tutor 1 - Telefone Comercial","Pais/Tutor 1 - Telefone Residencial","Pais/Tutor 2","Relação - Pais/Tutor 2","Pais/Tutor 2 - Telefone Comercial","Pais/Tutor 2 - Telefone Residencial","Contato de Emergência","Relação com o Contato de Emergência","Número Comercial do Contato de Emergência","Número Residencial do Contato de Emergência","Nome Completo do Aluno"]
[null,"S001","Manuel","Oliveira","M","1997-03-28","Susana","Oliveira",1235550134,2345550134,"Michael Alexander","Pai","(21) 123 45235",2345550134,"Jordão Moreno","Avô",7895550189,7895550134,{"$f":"ListadeAlunos[[#This Row],[Nome do Aluno]]&\" \" &ListadeAlunos[[#This Row],[Sobrenome do Aluno]]","v":"Manuel Oliveira"}]
[null,"S002","Aluno",2,{"$nulls":14},{"$f":"ListadeAlunos[[#This Row],[Nome do Aluno]]&\" \" &ListadeAlunos[[#This Row],[Sobrenome do Aluno]]","v":"Aluno 2"}]
[null,"S003","Aluno",3,{"$nulls":14},{"$f":"ListadeAlunos[[#This Row],[Nome do Aluno]]&\" \" &ListadeAlunos[[#This Row],[Sobrenome do Aluno]]","v":"Aluno 3"}]
[null,"S004","Aluno",4,{"$nulls":14},{"$f":"ListadeAlunos[[#This Row],[Nome do Aluno]]&\" \" &ListadeAlunos[[#This Row],[Sobrenome do Aluno]]","v":"Aluno 4"}]
[null,"S005","Aluno",5,{"$nulls":14},{"$f":"ListadeAlunos[[#This Row],[Nome do Aluno]]&\" \" &ListadeAlunos[[#This Row],[Sobrenome do Aluno]]","v":"Aluno 5"}]

{"sheet":"Agosto","index":2,"n_rows":12,"n_cols":39,"rows_kept":12,"merged":[[4,34,4,38]]}
["REGISTRO DE PRESENÇA DO ALUNO",{"$nulls":36},"Início do Ano Escolar:",2012]
[]
[null,null,"CHAVE COLORIDA ","T","Atrasado",null,null,"E","Dispensado",null,null,"U","Não Dispensado",null,null,"P","Presente",null,null,"N","Sem Aula"]
[]
[null,{"$f":"DATE(AnoCalendário,8,1)","v":"2012-08-01"},null,{"$f":"TEXT(WEEKDAY(DATE(AnoCalendário,8,1),1),\"ddd\")","v":"qua"},{"$f":"TEXT(WEEKDAY(DATE(AnoCalendário,8,2),1),\"ddd\")","v":"qui"},{"$f":"TEXT(WEEKDAY(DATE(AnoCalendário,8,3),1),\"ddd\")","v":"sex"},{"$f":"TEXT(WEEKDAY(DATE(AnoCalendário,8,4),1),\"ddd\")","v":"sáb"},{"$f":"TEXT(WEEKDAY(DATE(AnoCalendário,8,5),1),\"ddd\")","v":"dom"},{"$f":"TEXT(WEEKDAY(DATE(AnoCalendário,8,6),1),\"ddd\")","v":"seg"},{"$f":"TEXT(WEEKDAY(DATE(AnoCalendário,8,7),1),\"ddd\")","v":"ter"},{"$f":"TEXT(WEEKDAY(DATE(AnoCalendário,8,8),1),\"ddd\")","v":"qua"},{"$f":"TEXT(WEEKDAY(DATE(AnoCalendário,8,9),1),\"ddd\")","v":"qui"},{"$f":"TEXT(WEEKDAY(DATE(AnoCalendário,8,10),1),\"ddd\")","v":"sex"},{"$f":"TEXT(WEEKDAY(DATE(AnoCalendário,8,11),1),\"ddd\")","v":"sáb"},{"$f":"TEXT(WEEKDAY(DATE(AnoCalendário,8,12),1),\"ddd\")","v":"dom"},{"$f":"TEXT(WEEKDAY(DATE(AnoCalendário,8,13),1),\"ddd\")","v":"seg"},{"$f":"TEXT(WEEKDAY(DATE(AnoCalendário,8,14),1),\"ddd\")","v":"ter"},{"$f":"TEXT(WEEKDAY(DATE(AnoCalendário,8,15),1),\"ddd\")","v":"qua"},{"$f":"TEXT(WEEKDAY(DATE(AnoCalendário,8,16),1),\"ddd\")","v":"qui"},{"$f":"TEXT(WEEKDAY(DATE(AnoCalendário,8,17),1),\"ddd\")","v":"sex"},{"$f":"TEXT(WEEKDAY(DATE(AnoCalendário,8,18),1),\"ddd\")","v":"sáb"},{"$f":"TEXT(WEEKDAY(DATE(AnoCalendário,8,19),1),\"ddd\")","v":"dom"},{"$f":"TEXT(WEEKDAY(DATE(AnoCalendário,8,20),1),\"ddd\")","v":"seg"},{"$f":"TEXT(WEEKDAY(DATE(AnoCalendário,8,21),1),\"ddd\")","v":"ter"},{"$f":"TEXT(WEEKDAY(DATE(AnoCalendário,8,22),1),\"ddd\")","v":"qua"},{"$f":"TEXT(WEEKDAY(DATE(AnoCalendário,8,23),1),\"ddd\")","v":"qui"},{"$f":"TEXT(WEEKDAY(DATE(AnoCalendário,8,24),1),\"ddd\")","v":"sex"},{"$f":"TEXT(WEEKDAY(DATE(AnoCalendário,8,25),1),\"ddd\")","v":"sáb"},{"$f":"TEXT(WEEKDAY(DATE(AnoCalendário,8,26),1),\"ddd\")","v":"dom"},{"$f":"TEXT(WEEKDAY(DATE(AnoCalendário,8,27),1),\"ddd\")","v":"seg"},{"$f":"TEXT(WEEKDAY(DATE(AnoCalendário,8,28),1),\"ddd\")","v":"ter"},{"$f":"TEXT(WEEKDAY(DATE(AnoCalendário,8,29),1),\"ddd\")","v":"qua"},{"$f":"TEXT(WEEKDAY(DATE(AnoCalendário,8,30),1),\"ddd\")","v":"qui"},{"$f":"TEXT(WEEKDAY(DATE(AnoCalendário,8,31),1),\"ddd\")","v":"sex"},"Totais"]
[null,"ID do Aluno","Nome do Aluno","1","2","3","4","5","6","7","8","9","10","11","12","13","14","15","16","17","18","19","20","21","22","23","24","25","26","27","28","29","30","31","T","E","U","P","Dias de Ausência"]
[null,"S001",{"$f":"IFERROR(VLOOKUP(PresençaemAgosto[[#This Row],[ID do Aluno]],ListadeAlunos[],18,FALSE),\"\")","v":"Manuel Oliveira"},"P","P","T","T","P","N","N","P","P","E","P","P","N","N","P","P","P","P","P","N","N","P","P","P","P","P","N","N","P","P","P",{"$f":"COUNTIF(PresençaemAgosto[[#This Row],[1]:[31]],Código1)","v":2},{"$f":"COUNTIF(PresençaemAgosto[[#This Row],[1]:[31]],Código2)","v":1},{"$f":"COUNTIF(PresençaemAgosto[[#This Row],[1]:[31]],Código3)","v":0},{"$f":"COUNTIF(PresençaemAgosto[[#This Row],[1]:[31]],Código4)","v":20},{"$f":"SUM(PresençaemAgosto[[#This Row],[E]:[U]])","v":1}]
[null,"S002",{"$f":"IFERROR(VLOOKUP(PresençaemAgosto[[#This Row],[ID do Aluno]],ListadeAlunos[],18,FALSE),\"\")","v":"Aluno 2"},"P","U","P","P","P","N","N","P","E","E","E","E","N","N","P","P","P","P","P","N","N","P","P","P","T","T","N","N","P","P","P",{"$f":"COUNTIF(PresençaemAgosto[[#This Row],[1]:[31]],Código1)","v":2},{"$f":"COUNTIF(PresençaemAgosto[[#This Row],[1]:[31]],Código2)","v":4},{"$f":"COUNTIF(PresençaemAgosto[[#This Row],[1]:[31]],Código3)","v":1},{"$f":"COUNTIF(PresençaemAgosto[[#This Row],[1]:[31]],Código4)","v":16},{"$f":"SUM(PresençaemAgosto[[#This Row],[E]:[U]])","v":5}]
[null,"S003",{"$f":"IFERROR(VLOOKUP(PresençaemAgosto[[#This Row],[ID do Aluno]],ListadeAlunos[],18,FALSE),\"\")","v":"Aluno 3"},"P","E","P","P","P","N","N","P","P","U","P","P","N","N","P","P","P","P","P","N","N","P","P","E","E","P","N","N","P","P","P",{"$f":"COUNTIF(PresençaemAgosto[[#This Row],[1]:[31]],Código1)","v":0},{"$f":"COUNTIF(PresençaemAgosto[[#This Row],[1]:[31]],Código2)","v":3},{"$f":"COUNTIF(PresençaemAgosto[[#This Row],[1]:[31]],Código3)","v":1},{"$f":"COUNTIF(PresençaemAgosto[[#This Row],[1]:[31]],Código4)","v":19},{"$f":"SUM(PresençaemAgosto[[#This Row],[E]:[U]])","v":4}]
[null,"S004",{"$f":"IFERROR(VLOOKUP(PresençaemAgosto[[#This Row],[ID do Aluno]],ListadeAlunos[],18,FALSE),\"\")","v":"Aluno 4"},"P","P","P","P","P","N","N","P","P","P","P","P","N","N","P","P","P","P","P","N","N","P","U","P","P","E","N","N","P","E","P",{"$f":"COUNTIF(PresençaemAgosto[[#This Row],[1]:[31]],Código1)","v":0},{"$f":"COUNTIF(PresençaemAgosto[[#This Row],[1]:[31]],Código2)","v":2},{"$f":"COUNTIF(PresençaemAgosto[[#This Row],[1]:[31]],Código3)","v":1},{"$f":"COUNTIF(PresençaemAgosto[[#This Row],[1]:[31]],Código4)","v":20},{"$f":"SUM(PresençaemAgosto[[#This Row],[E]:[U]])","v":3}]
[null,"S005",{"$f":"IFERROR(VLOOKUP(PresençaemAgosto[[#This Row],[ID do Aluno]],ListadeAlunos[],18,FALSE),\"\")","v":"Aluno 5"},"P","P","P","P","P","N","N","P","P","P","P","P","N","N","P","P","P","P","P","N","N","P","P","P","P","P","N","N","P","P","P",{"$f":"COUNTIF(PresençaemAgosto[[#This Row],[1]:[31]],Código1)","v":0},{"$f":"COUNTIF(PresençaemAgosto[[#This Row],[1]:[31]],Código2)","v":0},{"$f":"COUNTIF(PresençaemAgosto[[#This Row],[1]:[31]],Código3)","v":0},{"$f":"COUNTIF(PresençaemAgosto[[#This Row],[1]:[31]],Código4)","v":23},{"$f":"SUM(PresençaemAgosto[[#This Row],[E]:[U]])","v":0}]
[null,null,"Total de dias de ausência",{"$f":"COUNTIF(PresençaemAgosto[1],\"U\")+COUNTIF(PresençaemAgosto[1],\"E\")","v":0},{"$f":"COUNTIF(PresençaemAgosto[2],\"U\")+COUNTIF(PresençaemAgosto[2],\"E\")","v":2},{"$f":"COUNTIF(PresençaemAgosto[3],\"U\")+COUNTIF(PresençaemAgosto[3],\"E\")","v":0},{"$f":"COUNTIF(PresençaemAgosto[4],\"U\")+COUNTIF(PresençaemAgosto[4],\"E\")","v":0},{"$f":"COUNTIF(PresençaemAgosto[5],\"U\")+COUNTIF(PresençaemAgosto[5],\"E\")","v":0},{"$f":"COUNTIF(PresençaemAgosto[6],\"U\")+COUNTIF(PresençaemAgosto[6],\"E\")","v":0},{"$f":"COUNTIF(PresençaemAgosto[7],\"U\")+COUNTIF(PresençaemAgosto[7],\"E\")","v":0},{"$f":"COUNTIF(PresençaemAgosto[8],\"U\")+COUNTIF(PresençaemAgosto[8],\"E\")","v":0},{"$f":"COUNTIF(PresençaemAgosto[9],\"U\")+COUNTIF(PresençaemAgosto[9],\"E\")","v":1},{"$f":"COUNTIF(PresençaemAgosto[10],\"U\")+COUNTIF(PresençaemAgosto[10],\"E\")","v":3},{"$f":"COUNTIF(PresençaemAgosto[11],\"U\")+COUNTIF(PresençaemAgosto[11],\"E\")","v":1},{"$f":"COUNTIF(PresençaemAgosto[12],\"U\")+COUNTIF(PresençaemAgosto[12],\"E\")","v":1},{"$f":"COUNTIF(PresençaemAgosto[13],\"U\")+COUNTIF(PresençaemAgosto[13],\"E\")","v":0},{"$f":"COUNTIF(PresençaemAgosto[14],\"U\")+COUNTIF(PresençaemAgosto[14],\"E\")","v":0},{"$f":"COUNTIF(PresençaemAgosto[15],\"U\")+COUNTIF(PresençaemAgosto[15],\"E\")","v":0},{"$f":"COUNTIF(PresençaemAgosto[16],\"U\")+COUNTIF(PresençaemAgosto[16],\"E\")","v":0},{"$f":"COUNTIF(PresençaemAgosto[17],\"U\")+COUNTIF(PresençaemAgosto[17],\"E\")","v":0},{"$f":"COUNTIF(PresençaemAgosto[18],\"U\")+COUNTIF(PresençaemAgosto[18],\"E\")","v":0},{"$f":"COUNTIF(PresençaemAgosto[19],\"U\")+COUNTIF(PresençaemAgosto[19],\"E\")","v":0},{"$f":"COUNTIF(PresençaemAgosto[20],\"U\")+COUNTIF(PresençaemAgosto[20],\"E\")","v":0},{"$f":"COUNTIF(PresençaemAgosto[21],\"U\")+COUNTIF(PresençaemAgosto[21],\"E\")","v":0},{"$f":"COUNTIF(PresençaemAgosto[22],\"U\")+COUNTIF(PresençaemAgosto[22],\"E\")","v":0},{"$f":"COUNTIF(PresençaemAgosto[23],\"U\")+COUNTIF(PresençaemAgosto[23],\"E\")","v":1},{"$f":"COUNTIF(PresençaemAgosto[24],\"U\")+COUNTIF(PresençaemAgosto[24],\"E\")","v":1},{"$f":"COUNTIF(PresençaemAgosto[25],\"U\")+COUNTIF(PresençaemAgosto[25],\"E\")","v":1},{"$f":"COUNTIF(PresençaemAgosto[26],\"U\")+COUNTIF(PresençaemAgosto[26],\"E\")","v":1},{"$f":"COUNTIF(PresençaemAgosto[27],\"U\")+COUNTIF(PresençaemAgosto[27],\"E\")","v":0},{"$f":"COUNTIF(PresençaemAgosto[28],\"U\")+COUNTIF(PresençaemAgosto[28],\"E\")","v":0},{"$f":"COUNTIF(PresençaemAgosto[29],\"U\")+COUNTIF(PresençaemAgosto[29],\"E\")","v":0},{"$f":"COUNTIF(PresençaemAgosto[30],\"U\")+COUNTIF(PresençaemAgosto[30],\"E\")","v":1},{"$f":"COUNTIF(PresençaemAgosto[31],\"U\")+COUNTIF(PresençaemAgosto[31],\"E\")","v":0},{"$f":"SUBTOTAL(109,PresençaemAgosto[T])","v":4},{"$f":"SUBTOTAL(109,PresençaemAgosto[E])","v":10},{"$f":"SUBTOTAL(109,PresençaemAgosto[U])","v":3},{"$f":"SUBTOTAL(109,PresençaemAgosto[P])","v":98},{"$f":"SUBTOTAL(109,PresençaemAgosto[Dias de Ausência])","v":13}]

{"sheet":"Setembro","index":3,"n_rows":12,"n_cols":39,"rows_kept":12,"merged":[[4,34,4,38]]}
["REGISTRO DE PRESENÇA DO ALUNO",{"$nulls":36},"Início do Ano Escolar:",{"$f":"AnoCalendário","v":2012}]
[]
[null,null,{"$f":"TextodaChavedeCor","v":"CHAVE COLORIDA "},{"$f":"Código1","v":"T"},{"$f":"TextodeCódigo1","v":"Atrasado"},null,null,{"$f":"Código2","v":"E"},{"$f":"TextodeCódigo2","v":"Dispensado"},null,null,{"$f":"Código3","v":"U"},{"$f":"TextodeCódigo3","v":"Não Dispensado"},null,null,{"$f":"Código4","v":"P"},{"$f":"TextodeCódigo4","v":"Presente"},null,null,{"$f":"Código5","v":"N"},{"$f":"TextodeCódigo5","v":"Sem Aula"}]
[]
[null,{"$f":"DATE(AnoCalendário,9,1)","v":"2012-09-01"},null,{"$f":"TEXT(WEEKDAY(DATE(AnoCalendário,9,1),1),\"ddd\")","v":"sáb"},{"$f":"TEXT(WEEKDAY(DATE(AnoCalendário,9,2),1),\"ddd\")","v":"dom"},{"$f":"TEXT(WEEKDAY(DATE(AnoCalendário,9,3),1),\"ddd\")","v":"seg"},{"$f":"TEXT(WEEKDAY(DATE(AnoCalendário,9,4),1),\"ddd\")","v":"ter"},{"$f":"TEXT(WEEKDAY(DATE(AnoCalendário,9,5),1),\"ddd\")","v":"qua"},{"$f":"TEXT(WEEKDAY(DATE(AnoCalendário,9,6),1),\"ddd\")","v":"qui"},{"$f":"TEXT(WEEKDAY(DATE(AnoCalendário,9,7),1),\"ddd\")","v":"sex"},{"$f":"TEXT(WEEKDAY(DATE(AnoCalendário,9,8),1),\"ddd\")","v":"sáb"},{"$f":"TEXT(WEEKDAY(DATE(AnoCalendário,9,9),1),\"ddd\")","v":"dom"},{"$f":"TEXT(WEEKDAY(DATE(AnoCalendário,9,10),1),\"ddd\")","v":"seg"},{"$f":"TEXT(WEEKDAY(DATE(AnoCalendário,9,11),1),\"ddd\")","v":"ter"},{"$f":"TEXT(WEEKDAY(DATE(AnoCalendário,9,12),1),\"ddd\")","v":"qua"},{"$f":"TEXT(WEEKDAY(DATE(AnoCalendário,9,13),1),\"ddd\")","v":"qui"},{"$f":"TEXT(WEEKDAY(DATE(AnoCalendário,9,14),1),\"ddd\")","v":"sex"},{"$f":"TEXT(WEEKDAY(DATE(AnoCalendário,9,15),1),\"ddd\")","v":"sáb"},{"$f":"TEXT(WEEKDAY(DATE(AnoCalendário,9,16),1),\"ddd\")","v":"dom"},{"$f":"TEXT(WEEKDAY(DATE(AnoCalendário,9,17),1),\"ddd\")","v":"seg"},{"$f":"TEXT(WEEKDAY(DATE(AnoCalendário,9,18),1),\"ddd\")","v":"ter"},{"$f":"TEXT(WEEKDAY(DATE(AnoCalendário,9,19),1),\"ddd\")","v":"qua"},{"$f":"TEXT(WEEKDAY(DATE(AnoCalendário,9,20),1),\"ddd\")","v":"qui"},{"$f":"TEXT(WEEKDAY(DATE(AnoCalendário,9,21),1),\"ddd\")","v":"sex"},{"$f":"TEXT(WEEKDAY(DATE(AnoCalendário,9,22),1),\"ddd\")","v":"sáb"},{"$f":"TEXT(WEEKDAY(DATE(AnoCalendário,9,23),1),\"ddd\")","v":"dom"},{"$f":"TEXT(WEEKDAY(DATE(AnoCalendário,9,24),1),\"ddd\")","v":"seg"},{"$f":"TEXT(WEEKDAY(DATE(AnoCalendário,9,25),1),\"ddd\")","v":"ter"},{"$f":"TEXT(WEEKDAY(DATE(AnoCalendário,9,26),1),\"ddd\")","v":"qua"},{"$f":"TEXT(WEEKDAY(DATE(AnoCalendário,9,27),1),\"ddd\")","v":"qui"},{"$f":"TEXT(WEEKDAY(DATE(AnoCalendário,9,28),1),\"ddd\")","v":"sex"},{"$f":"TEXT(WEEKDAY(DATE(AnoCalendário,9,29),1),\"ddd\")","v":"sáb"},{"$f":"TEXT(WEEKDAY(DATE(AnoCalendário,9,30),1),\"ddd\")","v":"dom"},null,"Totais"]
[null,"ID do Aluno","Nome do Aluno","1","2","3","4","5","6","7","8","9","10","11","12","13","14","15","16","17","18","19","20","21","22","23","24","25","26","27","28","29","30"," ","T","E","U","P","Dias de Ausência"]
[null,null,{"$f":"IFERROR(VLOOKUP(PresençaemSetembro[[#This Row],[ID do Aluno]],ListadeAlunos[],18,FALSE),\"\")","v":""},{"$nulls":31},{"$f":"COUNTIF(PresençaemSetembro[[#This Row],[1]:[ ]],Código1)","v":0},{"$f":"COUNTIF(PresençaemSetembro[[#This Row],[1]:[ ]],Código2)","v":0},{"$f":"COUNTIF(PresençaemSetembro[[#This Row],[1]:[ ]],Código3)","v":0},{"$f":"COUNTIF(PresençaemSetembro[[#This Row],[1]:[ ]],Código4)","v":0},{"$f":"SUM(PresençaemSetembro[[#This Row],[E]:[U]])","v":0}]
[null,null,{"$f":"IFERROR(VLOOKUP(PresençaemSetembro[[#This Row],[ID do Aluno]],ListadeAlunos[],18,FALSE),\"\")","v":""},{"$nulls":31},{"$f":"COUNTIF(PresençaemSetembro[[#This Row],[1]:[ ]],Código1)","v":0},{"$f":"COUNTIF(PresençaemSetembro[[#This Row],[1]:[ ]],Código2)","v":0},{"$f":"COUNTIF(PresençaemSetembro[[#This Row],[1]:[ ]],Código3)","v":0},{"$f":"COUNTIF(PresençaemSetembro[[#This Row],[1]:[ ]],Código4)","v":0},{"$f":"SUM(PresençaemSetembro[[#This Row],[E]:[U]])","v":0}]
[null,null,{"$f":"IFERROR(VLOOKUP(PresençaemSetembro[[#This Row],[ID do Aluno]],ListadeAlunos[],18,FALSE),\"\")","v":""},{"$nulls":31},{"$f":"COUNTIF(PresençaemSetembro[[#This Row],[1]:[ ]],Código1)","v":0},{"$f":"COUNTIF(PresençaemSetembro[[#This Row],[1]:[ ]],Código2)","v":0},{"$f":"COUNTIF(PresençaemSetembro[[#This Row],[1]:[ ]],Código3)","v":0},{"$f":"COUNTIF(PresençaemSetembro[[#This Row],[1]:[ ]],Código4)","v":0},{"$f":"SUM(PresençaemSetembro[[#This Row],[E]:[U]])","v":0}]
[null,null,{"$f":"IFERROR(VLOOKUP(PresençaemSetembro[[#This Row],[ID do Aluno]],ListadeAlunos[],18,FALSE),\"\")","v":""},{"$nulls":31},{"$f":"COUNTIF(PresençaemSetembro[[#This Row],[1]:[ ]],Código1)","v":0},{"$f":"COUNTIF(PresençaemSetembro[[#This Row],[1]:[ ]],Código2)","v":0},{"$f":"COUNTIF(PresençaemSetembro[[#This Row],[1]:[ ]],Código3)","v":0},{"$f":"COUNTIF(PresençaemSetembro[[#This Row],[1]:[ ]],Código4)","v":0},{"$f":"SUM(PresençaemSetembro[[#This Row],[E]:[U]])","v":0}]
[null,null,{"$f":"IFERROR(VLOOKUP(PresençaemSetembro[[#This Row],[ID do Aluno]],ListadeAlunos[],18,FALSE),\"\")","v":""},{"$nulls":31},{"$f":"COUNTIF(PresençaemSetembro[[#This Row],[1]:[ ]],Código1)","v":0},{"$f":"COUNTIF(PresençaemSetembro[[#This Row],[1]:[ ]],Código2)","v":0},{"$f":"COUNTIF(PresençaemSetembro[[#This Row],[1]:[ ]],Código3)","v":0},{"$f":"COUNTIF(PresençaemSetembro[[#This Row],[1]:[ ]],Código4)","v":0},{"$f":"SUM(PresençaemSetembro[[#This Row],[E]:[U]])","v":0}]
[null,null,"Total de dias de ausência",{"$f":"COUNTIF(PresençaemSetembro[1],\"U\")+COUNTIF(PresençaemSetembro[1],\"E\")","v":0},{"$f":"COUNTIF(PresençaemSetembro[2],\"U\")+COUNTIF(PresençaemSetembro[2],\"E\")","v":0},{"$f":"COUNTIF(PresençaemSetembro[3],\"U\")+COUNTIF(PresençaemSetembro[3],\"E\")","v":0},{"$f":"COUNTIF(PresençaemSetembro[4],\"U\")+COUNTIF(PresençaemSetembro[4],\"E\")","v":0},{"$f":"COUNTIF(PresençaemSetembro[5],\"U\")+COUNTIF(PresençaemSetembro[5],\"E\")","v":0},{"$f":"COUNTIF(PresençaemSetembro[6],\"U\")+COUNTIF(PresençaemSetembro[6],\"E\")","v":0},{"$f":"COUNTIF(PresençaemSetembro[7],\"U\")+COUNTIF(PresençaemSetembro[7],\"E\")","v":0},{"$f":"COUNTIF(PresençaemSetembro[8],\"U\")+COUNTIF(PresençaemSetembro[8],\"E\")","v":0},{"$f":"COUNTIF(PresençaemSetembro[9],\"U\")+COUNTIF(PresençaemSetembro[9],\"E\")","v":0},{"$f":"COUNTIF(PresençaemSetembro[10],\"U\")+COUNTIF(PresençaemSetembro[10],\"E\")","v":0},{"$f":"COUNTIF(PresençaemSetembro[11],\"U\")+COUNTIF(PresençaemSetembro[11],\"E\")","v":0},{"$f":"COUNTIF(PresençaemSetembro[12],\"U\")+COUNTIF(PresençaemSetembro[12],\"E\")","v":0},{"$f":"COUNTIF(PresençaemSetembro[13],\"U\")+COUNTIF(PresençaemSetembro[13],\"E\")","v":0},{"$f":"COUNTIF(PresençaemSetembro[14],\"U\")+COUNTIF(PresençaemSetembro[14],\"E\")","v":0},{"$f":"COUNTIF(PresençaemSetembro[15],\"U\")+COUNTIF(PresençaemSetembro[15],\"E\")","v":0},{"$f":"COUNTIF(PresençaemSetembro[16],\"U\")+COUNTIF(PresençaemSetembro[16],\"E\")","v":0},{"$f":"COUNTIF(PresençaemSetembro[17],\"U\")+COUNTIF(PresençaemSetembro[17],\"E\")","v":0},{"$f":"COUNTIF(PresençaemSetembro[18],\"U\")+COUNTIF(PresençaemSetembro[18],\"E\")","v":0},{"$f":"COUNTIF(PresençaemSetembro[19],\"U\")+COUNTIF(PresençaemSetembro[19],\"E\")","v":0},{"$f":"COUNTIF(PresençaemSetembro[20],\"U\")+COUNTIF(PresençaemSetembro[20],\"E\")","v":0},{"$f":"COUNTIF(PresençaemSetembro[21],\"U\")+COUNTIF(PresençaemSetembro[21],\"E\")","v":0},{"$f":"COUNTIF(PresençaemSetembro[22],\"U\")+COUNTIF(PresençaemSetembro[22],\"E\")","v":0},{"$f":"COUNTIF(PresençaemSetembro[23],\"U\")+COUNTIF(PresençaemSetembro[23],\"E\")","v":0},{"$f":"COUNTIF(PresençaemSetembro[24],\"U\")+COUNTIF(PresençaemSetembro[24],\"E\")","v":0},{"$f":"COUNTIF(PresençaemSetembro[25],\"U\")+COUNTIF(PresençaemSetembro[25],\"E\")","v":0},{"$f":"COUNTIF(PresençaemSetembro[26],\"U\")+COUNTIF(PresençaemSetembro[26],\"E\")","v":0},{"$f":"COUNTIF(PresençaemSetembro[27],\"U\")+COUNTIF(PresençaemSetembro[27],\"E\")","v":0},{"$f":"COUNTIF(PresençaemSetembro[28],\"U\")+COUNTIF(PresençaemSetembro[28],\"E\")","v":0},{"$f":"COUNTIF(PresençaemSetembro[29],\"U\")+COUNTIF(PresençaemSetembro[29],\"E\")","v":0},{"$f":"COUNTIF(PresençaemSetembro[30],\"U\")+COUNTIF(PresençaemSetembro[30],\"E\")","v":0},{"$f":"COUNTIF(PresençaemSetembro[[ ]],\"U\")+COUNTIF(PresençaemSetembro[[ ]],\"E\")","v":0},{"$f":"SUBTOTAL(109,PresençaemSetembro[T])","v":0},{"$f":"SUBTOTAL(109,PresençaemSetembro[E])","v":0},{"$f":"SUBTOTAL(109,PresençaemSetembro[U])","v":0},{"$f":"SUBTOTAL(109,PresençaemSetembro[P])","v":0},{"$f":"SUBTOTAL(109,PresençaemSetembro[Dias de Ausência])","v":0}]

{"sheet":"Outubro","index":4,"n_rows":12,"n_cols":39,"rows_kept":12,"merged":[[4,34,4,38]]}
["REGISTRO DE PRESENÇA DO ALUNO",{"$nulls":36},"Início do Ano Escolar:",{"$f":"AnoCalendário","v":2012}]
[]
[null,null,{"$f":"TextodaChavedeCor","v":"CHAVE COLORIDA "},{"$f":"Código1","v":"T"},{"$f":"TextodeCódigo1","v":"Atrasado"},null,null,{"$f":"Código2","v":"E"},{"$f":"TextodeCódigo2","v":"Dispensado"},null,null,{"$f":"Código3","v":"U"},{"$f":"TextodeCódigo3","v":"Não Dispensado"},null,null,{"$f":"Código4","v":"P"},{"$f":"TextodeCódigo4","v":"Presente"},null,null,{"$f":"Código5","v":"N"},{"$f":"TextodeCódigo5","v":"Sem Aula"}]
[]
[null,{"$f":"DATE(AnoCalendário,10,1)","v":"2012-10-01"},null,{"$f":"TEXT(WEEKDAY(DATE(AnoCalendário,10,1),1),\"ddd\")","v":"seg"},{"$f":"TEXT(WEEKDAY(DATE(AnoCalendário,10,2),1),\"ddd\")","v":"ter"},{"$f":"TEXT(WEEKDAY(DATE(AnoCalendário,10,3),1),\"ddd\")","v":"qua"},{"$f":"TEXT(WEEKDAY(DATE(AnoCalendário,10,4),1),\"ddd\")","v":"qui"},{"$f":"TEXT(WEEKDAY(DATE(AnoCalendário,10,5),1),\"ddd\")","v":"sex"},{"$f":"TEXT(WEEKDAY(DATE(AnoCalendário,10,6),1),\"ddd\")","v":"sáb"},{"$f":"TEXT(WEEKDAY(DATE(AnoCalendário,10,7),1),\"ddd\")","v":"dom"},{"$f":"TEXT(WEEKDAY(DATE(AnoCalendário,10,8),1),\"ddd\")","v":"seg"},{"$f":"TEXT(WEEKDAY(DATE(AnoCalendário,10,9),1),\"ddd\")","v":"ter"},{"$f":"TEXT(WEEKDAY(DATE(AnoCalendário,10,10),1),\"ddd\")","v":"qua"},{"$f":"TEXT(WEEKDAY(DATE(AnoCalendário,10,11),1),\"ddd\")","v":"qui"},{"$f":"TEXT(WEEKDAY(DATE(AnoCalendário,10,12),1),\"ddd\")","v":"sex"},{"$f":"TEXT(WEEKDAY(DATE(AnoCalendário,10,13),1),\"ddd\")","v":"sáb"},{"$f":"TEXT(WEEKDAY(DATE(AnoCalendário,10,14),1),\"ddd\")","v":"dom"},{"$f":"TEXT(WEEKDAY(DATE(AnoCalendário,10,15),1),\"ddd\")","v":"seg"},{"$f":"TEXT(WEEKDAY(DATE(AnoCalendário,10,16),1),\"ddd\")","v":"ter"},{"$f":"TEXT(WEEKDAY(DATE(AnoCalendário,10,17),1),\"ddd\")","v":"qua"},{"$f":"TEXT(WEEKDAY(DATE(AnoCalendário,10,18),1),\"ddd\")","v":"qui"},{"$f":"TEXT(WEEKDAY(DATE(AnoCalendário,10,19),1),\"ddd\")","v":"sex"},{"$f":"TEXT(WEEKDAY(DATE(AnoCalendário,10,20),1),\"ddd\")","v":"sáb"},{"$f":"TEXT(WEEKDAY(DATE(AnoCalendário,10,21),1),\"ddd\")","v":"dom"},{"$f":"TEXT(WEEKDAY(DATE(AnoCalendário,10,22),1),\"ddd\")","v":"seg"},{"$f":"TEXT(WEEKDAY(DATE(AnoCalendário,10,23),1),\"ddd\")","v":"ter"},{"$f":"TEXT(WEEKDAY(DATE(AnoCalendário,10,24),1),\"ddd\")","v":"qua"},{"$f":"TEXT(WEEKDAY(DATE(AnoCalendário,10,25),1),\"ddd\")","v":"qui"},{"$f":"TEXT(WEEKDAY(DATE(AnoCalendário,10,26),1),\"ddd\")","v":"sex"},{"$f":"TEXT(WEEKDAY(DATE(AnoCalendário,10,27),1),\"ddd\")","v":"sáb"},{"$f":"TEXT(WEEKDAY(DATE(AnoCalendário,10,28),1),\"ddd\")","v":"dom"},{"$f":"TEXT(WEEKDAY(DATE(AnoCalendário,10,29),1),\"ddd\")","v":"seg"},{"$f":"TEXT(WEEKDAY(DATE(AnoCalendário,10,30),1),\"ddd\")","v":"ter"},{"$f":"TEXT(WEEKDAY(DATE(AnoCalendário,10,31),1),\"ddd\")","v":"qua"},"Totais"]
[null,"ID do Aluno","Nome do Aluno","1","2","3","4","5","6","7","8","9","10","11","12","13","14","15","16","17","18","19","20","21","22","23","24","25","26","27","28","29","30","31","T","E","U","P","Dias de Ausência"]
[null,null,{"$f":"IFERROR(VLOOKUP(PresençaemOutubro[[#This Row],[ID do Aluno]],ListadeAlunos[],18,FALSE),\"\")","v":""},{"$nulls":31},{"$f":"COUNTIF(PresençaemOutubro[[#This Row],[1]:[31]],Código1)","v":0},{"$f":"COUNTIF(PresençaemOutubro[[#This Row],[1]:[31]],Código2)","v":0},{"$f":"COUNTIF(PresençaemOutubro[[#This Row],[1]:[31]],Código3)","v":0},{"$f":"COUNTIF(PresençaemOutubro[[#This Row],[1]:[31]],Código4)","v":0},{"$f":"SUM(PresençaemOutubro[[#This Row],[E]:[U]])","v":0}]
[null,null,{"$f":"IFERROR(VLOOKUP(PresençaemOutubro[[#This Row],[ID do Aluno]],ListadeAlunos[],18,FALSE),\"\")","v":""},{"$nulls":31},{"$f":"COUNTIF(PresençaemOutubro[[#This Row],[1]:[31]],Código1)","v":0},{"$f":"COUNTIF(PresençaemOutubro[[#This Row],[1]:[31]],Código2)","v":0},{"$f":"COUNTIF(PresençaemOutubro[[#This Row],[1]:[31]],Código3)","v":0},{"$f":"COUNTIF(PresençaemOutubro[[#This Row],[1]:[31]],Código4)","v":0},{"$f":"SUM(PresençaemOutubro[[#This Row],[E]:[U]])","v":0}]
[null,null,{"$f":"IFERROR(VLOOKUP(PresençaemOutubro[[#This Row],[ID do Aluno]],ListadeAlunos[],18,FALSE),\"\")","v":""},{"$nulls":31},{"$f":"COUNTIF(PresençaemOutubro[[#This Row],[1]:[31]],Código1)","v":0},{"$f":"COUNTIF(PresençaemOutubro[[#This Row],[1]:[31]],Código2)","v":0},{"$f":"COUNTIF(PresençaemOutubro[[#This Row],[1]:[31]],Código3)","v":0},{"$f":"COUNTIF(PresençaemOutubro[[#This Row],[1]:[31]],Código4)","v":0},{"$f":"SUM(PresençaemOutubro[[#This Row],[E]:[U]])","v":0}]
[null,null,{"$f":"IFERROR(VLOOKUP(PresençaemOutubro[[#This Row],[ID do Aluno]],ListadeAlunos[],18,FALSE),\"\")","v":""},{"$nulls":31},{"$f":"COUNTIF(PresençaemOutubro[[#This Row],[1]:[31]],Código1)","v":0},{"$f":"COUNTIF(PresençaemOutubro[[#This Row],[1]:[31]],Código2)","v":0},{"$f":"COUNTIF(PresençaemOutubro[[#This Row],[1]:[31]],Código3)","v":0},{"$f":"COUNTIF(PresençaemOutubro[[#This Row],[1]:[31]],Código4)","v":0},{"$f":"SUM(PresençaemOutubro[[#This Row],[E]:[U]])","v":0}]
[null,null,{"$f":"IFERROR(VLOOKUP(PresençaemOutubro[[#This Row],[ID do Aluno]],ListadeAlunos[],18,FALSE),\"\")","v":""},{"$nulls":31},{"$f":"COUNTIF(PresençaemOutubro[[#This Row],[1]:[31]],Código1)","v":0},{"$f":"COUNTIF(PresençaemOutubro[[#This Row],[1]:[31]],Código2)","v":0},{"$f":"COUNTIF(PresençaemOutubro[[#This Row],[1]:[31]],Código3)","v":0},{"$f":"COUNTIF(PresençaemOutubro[[#This Row],[1]:[31]],Código4)","v":0},{"$f":"SUM(PresençaemOutubro[[#This Row],[E]:[U]])","v":0}]
[null,null,"Total de dias de ausência",{"$f":"COUNTIF(PresençaemOutubro[1],\"U\")+COUNTIF(PresençaemOutubro[1],\"E\")","v":0},{"$f":"COUNTIF(PresençaemOutubro[2],\"U\")+COUNTIF(PresençaemOutubro[2],\"E\")","v":0},{"$f":"COUNTIF(PresençaemOutubro[3],\"U\")+COUNTIF(PresençaemOutubro[3],\"E\")","v":0},{"$f":"COUNTIF(PresençaemOutubro[4],\"U\")+COUNTIF(PresençaemOutubro[4],\"E\")","v":0},{"$f":"COUNTIF(PresençaemOutubro[5],\"U\")+COUNTIF(PresençaemOutubro[5],\"E\")","v":0},{"$f":"COUNTIF(PresençaemOutubro[6],\"U\")+COUNTIF(PresençaemOutubro[6],\"E\")","v":0},{"$f":"COUNTIF(PresençaemOutubro[7],\"U\")+COUNTIF(PresençaemOutubro[7],\"E\")","v":0},{"$f":"COUNTIF(PresençaemOutubro[8],\"U\")+COUNTIF(PresençaemOutubro[8],\"E\")","v":0},{"$f":"COUNTIF(PresençaemOutubro[9],\"U\")+COUNTIF(PresençaemOutubro[9],\"E\")","v":0},{"$f":"COUNTIF(PresençaemOutubro[10],\"U\")+COUNTIF(PresençaemOutubro[10],\"E\")","v":0},{"$f":"COUNTIF(PresençaemOutubro[11],\"U\")+COUNTIF(PresençaemOutubro[11],\"E\")","v":0},{"$f":"COUNTIF(PresençaemOutubro[12],\"U\")+COUNTIF(PresençaemOutubro[12],\"E\")","v":0},{"$f":"COUNTIF(PresençaemOutubro[13],\"U\")+COUNTIF(PresençaemOutubro[13],\"E\")","v":0},{"$f":"COUNTIF(PresençaemOutubro[14],\"U\")+COUNTIF(PresençaemOutubro[14],\"E\")","v":0},{"$f":"COUNTIF(PresençaemOutubro[15],\"U\")+COUNTIF(PresençaemOutubro[15],\"E\")","v":0},{"$f":"COUNTIF(PresençaemOutubro[16],\"U\")+COUNTIF(PresençaemOutubro[16],\"E\")","v":0},{"$f":"COUNTIF(PresençaemOutubro[17],\"U\")+COUNTIF(PresençaemOutubro[17],\"E\")","v":0},{"$f":"COUNTIF(PresençaemOutubro[18],\"U\")+COUNTIF(PresençaemOutubro[18],\"E\")","v":0},{"$f":"COUNTIF(PresençaemOutubro[19],\"U\")+COUNTIF(PresençaemOutubro[19],\"E\")","v":0},{"$f":"COUNTIF(PresençaemOutubro[20],\"U\")+COUNTIF(PresençaemOutubro[20],\"E\")","v":0},{"$f":"COUNTIF(PresençaemOutubro[21],\"U\")+COUNTIF(PresençaemOutubro[21],\"E\")","v":0},{"$f":"COUNTIF(PresençaemOutubro[22],\"U\")+COUNTIF(PresençaemOutubro[22],\"E\")","v":0},{"$f":"COUNTIF(PresençaemOutubro[23],\"U\")+COUNTIF(PresençaemOutubro[23],\"E\")","v":0},{"$f":"COUNTIF(PresençaemOutubro[24],\"U\")+COUNTIF(PresençaemOutubro[24],\"E\")","v":0},{"$f":"COUNTIF(PresençaemOutubro[25],\"U\")+COUNTIF(PresençaemOutubro[25],\"E\")","v":0},{"$f":"COUNTIF(PresençaemOutubro[26],\"U\")+COUNTIF(PresençaemOutubro[26],\"E\")","v":0},{"$f":"COUNTIF(PresençaemOutubro[27],\"U\")+COUNTIF(PresençaemOutubro[27],\"E\")","v":0},{"$f":"COUNTIF(PresençaemOutubro[28],\"U\")+COUNTIF(PresençaemOutubro[28],\"E\")","v":0},{"$f":"COUNTIF(PresençaemOutubro[29],\"U\")+COUNTIF(PresençaemOutubro[29],\"E\")","v":0},{"$f":"COUNTIF(PresençaemOutubro[30],\"U\")+COUNTIF(PresençaemOutubro[30],\"E\")","v":0},{"$f":"COUNTIF(PresençaemOutubro[31],\"U\")+COUNTIF(PresençaemOutubro[31],\"E\")","v":0},{"$f":"SUBTOTAL(109,PresençaemOutubro[T])","v":0},{"$f":"SUBTOTAL(109,PresençaemOutubro[E])","v":0},{"$f":"SUBTOTAL(109,PresençaemOutubro[U])","v":0},{"$f":"SUBTOTAL(109,PresençaemOutubro[P])","v":0},{"$f":"SUBTOTAL(109,PresençaemOutubro[Dias de Ausência])","v":0}]

{"sheet":"Novembro","index":5,"n_rows":12,"n_cols":39,"rows_kept":12,"merged":[[4,34,4,38]]}
["REGISTRO DE PRESENÇA DO ALUNO",{"$nulls":36},"Início do Ano Escolar:",{"$f":"AnoCalendário","v":2012}]
[]
[null,null,{"$f":"TextodaChavedeCor","v":"CHAVE COLORIDA "},{"$f":"Código1","v":"T"},{"$f":"TextodeCódigo1","v":"Atrasado"},null,null,{"$f":"Código2","v":"E"},{"$f":"TextodeCódigo2","v":"Dispensado"},null,null,{"$f":"Código3","v":"U"},{"$f":"TextodeCódigo3","v":"Não Dispensado"},null,null,{"$f":"Código4","v":"P"},{"$f":"TextodeCódigo4","v":"Presente"},null,null,{"$f":"Código5","v":"N"},{"$f":"TextodeCódigo5","v":"Sem Aula"}]
[]
[null,{"$f":"DATE(AnoCalendário,11,1)","v":"2012-11-01"},null,{"$f":"TEXT(WEEKDAY(DATE(AnoCalendário,11,1),1),\"ddd\")","v":"qui"},{"$f":"TEXT(WEEKDAY(DATE(AnoCalendário,11,2),1),\"ddd\")","v":"sex"},{"$f":"TEXT(WEEKDAY(DATE(AnoCalendário,11,3),1),\"ddd\")","v":"sáb"},{"$f":"TEXT(WEEKDAY(DATE(AnoCalendário,11,4),1),\"ddd\")","v":"dom"},{"$f":"TEXT(WEEKDAY(DATE(AnoCalendário,11,5),1),\"ddd\")","v":"seg"},{"$f":"TEXT(WEEKDAY(DATE(AnoCalendário,11,6),1),\"ddd\")","v":"ter"},{"$f":"TEXT(WEEKDAY(DATE(AnoCalendário,11,7),1),\"ddd\")","v":"qua"},{"$f":"TEXT(WEEKDAY(DATE(AnoCalendário,11,8),1),\"ddd\")","v":"qui"},{"$f":"TEXT(WEEKDAY(DATE(AnoCalendário,11,9),1),\"ddd\")","v":"sex"},{"$f":"TEXT(WEEKDAY(DATE(AnoCalendário,11,10),1),\"ddd\")","v":"sáb"},{"$f":"TEXT(WEEKDAY(DATE(AnoCalendário,11,11),1),\"ddd\")","v":"dom"},{"$f":"TEXT(WEEKDAY(DATE(AnoCalendário,11,12),1),\"ddd\")","v":"seg"},{"$f":"TEXT(WEEKDAY(DATE(AnoCalendário,11,13),1),\"ddd\")","v":"ter"},{"$f":"TEXT(WEEKDAY(DATE(AnoCalendário,11,14),1),\"ddd\")","v":"qua"},{"$f":"TEXT(WEEKDAY(DATE(AnoCalendário,11,15),1),\"ddd\")","v":"qui"},{"$f":"TEXT(WEEKDAY(DATE(AnoCalendário,11,16),1),\"ddd\")","v":"sex"},{"$f":"TEXT(WEEKDAY(DATE(AnoCalendário,11,17),1),\"ddd\")","v":"sáb"},{"$f":"TEXT(WEEKDAY(DATE(AnoCalendário,11,18),1),\"ddd\")","v":"dom"},{"$f":"TEXT(WEEKDAY(DATE(AnoCalendário,11,19),1),\"ddd\")","v":"seg"},{"$f":"TEXT(WEEKDAY(DATE(AnoCalendário,11,20),1),\"ddd\")","v":"ter"},{"$f":"TEXT(WEEKDAY(DATE(AnoCalendário,11,21),1),\"ddd\")","v":"qua"},{"$f":"TEXT(WEEKDAY(DATE(AnoCalendário,11,22),1),\"ddd\")","v":"qui"},{"$f":"TEXT(WEEKDAY(DATE(AnoCalendário,11,23),1),\"ddd\")","v":"sex"},{"$f":"TEXT(WEEKDAY(DATE(AnoCalendário,11,24),1),\"ddd\")","v":"sáb"},{"$f":"TEXT(WEEKDAY(DATE(AnoCalendário,11,25),1),\"ddd\")","v":"dom"},{"$f":"TEXT(WEEKDAY(DATE(AnoCalendário,11,26),1),\"ddd\")","v":"seg"},{"$f":"TEXT(WEEKDAY(DATE(AnoCalendário,11,27),1),\"ddd\")","v":"ter"},{"$f":"TEXT(WEEKDAY(DATE(AnoCalendário,11,28),1),\"ddd\")","v":"qua"},{"$f":"TEXT(WEEKDAY(DATE(AnoCalendário,11,29),1),\"ddd\")","v":"qui"},{"$f":"TEXT(WEEKDAY(DATE(AnoCalendário,11,30),1),\"ddd\")","v":"sex"},null,"Totais"]
[null,"ID do Aluno","Nome do Aluno","1","2","3","4","5","6","7","8","9","10","11","12","13","14","15","16","17","18","19","20","21","22","23","24","25","26","27","28","29","30"," ","T","E","U","P","Dias de Ausência"]
[null,null,{"$f":"IFERROR(VLOOKUP(PresençaemNovembro[[#This Row],[ID do Aluno]],ListadeAlunos[],18,FALSE),\"\")","v":""},{"$nulls":31},{"$f":"COUNTIF(PresençaemNovembro[[#This Row],[1]:[ ]],Código1)","v":0},{"$f":"COUNTIF(PresençaemNovembro[[#This Row],[1]:[ ]],Código2)","v":0},{"$f":"COUNTIF(PresençaemNovembro[[#This Row],[1]:[ ]],Código3)","v":0},{"$f":"COUNTIF(PresençaemNovembro[[#This Row],[1]:[ ]],Código4)","v":0},{"$f":"SUM(PresençaemNovembro[[#This Row],[E]:[U]])","v":0}]
[null,null,{"$f":"IFERROR(VLOOKUP(PresençaemNovembro[[#This Row],[ID do Aluno]],ListadeAlunos[],18,FALSE),\"\")","v":""},{"$nulls":31},{"$f":"COUNTIF(PresençaemNovembro[[#This Row],[1]:[ ]],Código1)","v":0},{"$f":"COUNTIF(PresençaemNovembro[[#This Row],[1]:[ ]],Código2)","v":0},{"$f":"COUNTIF(PresençaemNovembro[[#This Row],[1]:[ ]],Código3)","v":0},{"$f":"COUNTIF(PresençaemNovembro[[#This Row],[1]:[ ]],Código4)","v":0},{"$f":"SUM(PresençaemNovembro[[#This Row],[E]:[U]])","v":0}]
[null,null,{"$f":"IFERROR(VLOOKUP(PresençaemNovembro[[#This Row],[ID do Aluno]],ListadeAlunos[],18,FALSE),\"\")","v":""},{"$nulls":31},{"$f":"COUNTIF(PresençaemNovembro[[#This Row],[1]:[ ]],Código1)","v":0},{"$f":"COUNTIF(PresençaemNovembro[[#This Row],[1]:[ ]],Código2)","v":0},{"$f":"COUNTIF(PresençaemNovembro[[#This Row],[1]:[ ]],Código3)","v":0},{"$f":"COUNTIF(PresençaemNovembro[[#This Row],[1]:[ ]],Código4)","v":0},{"$f":"SUM(PresençaemNovembro[[#This Row],[E]:[U]])","v":0}]
[null,null,{"$f":"IFERROR(VLOOKUP(PresençaemNovembro[[#This Row],[ID do Aluno]],ListadeAlunos[],18,FALSE),\"\")","v":""},{"$nulls":31},{"$f":"COUNTIF(PresençaemNovembro[[#This Row],[1]:[ ]],Código1)","v":0},{"$f":"COUNTIF(PresençaemNovembro[[#This Row],[1]:[ ]],Código2)","v":0},{"$f":"COUNTIF(PresençaemNovembro[[#This Row],[1]:[ ]],Código3)","v":0},{"$f":"COUNTIF(PresençaemNovembro[[#This Row],[1]:[ ]],Código4)","v":0},{"$f":"SUM(PresençaemNovembro[[#This Row],[E]:[U]])","v":0}]
[null,null,{"$f":"IFERROR(VLOOKUP(PresençaemNovembro[[#This Row],[ID do Aluno]],ListadeAlunos[],18,FALSE),\"\")","v":""},{"$nulls":31},{"$f":"COUNTIF(PresençaemNovembro[[#This Row],[1]:[ ]],Código1)","v":0},{"$f":"COUNTIF(PresençaemNovembro[[#This Row],[1]:[ ]],Código2)","v":0},{"$f":"COUNTIF(PresençaemNovembro[[#This Row],[1]:[ ]],Código3)","v":0},{"$f":"COUNTIF(PresençaemNovembro[[#This Row],[1]:[ ]],Código4)","v":0},{"$f":"SUM(PresençaemNovembro[[#This Row],[E]:[U]])","v":0}]
[null,null,"Total de dias de ausência",{"$f":"COUNTIF(PresençaemNovembro[1],\"U\")+COUNTIF(PresençaemNovembro[1],\"E\")","v":0},{"$f":"COUNTIF(PresençaemNovembro[2],\"U\")+COUNTIF(PresençaemNovembro[2],\"E\")","v":0},{"$f":"COUNTIF(PresençaemNovembro[3],\"U\")+COUNTIF(PresençaemNovembro[3],\"E\")","v":0},{"$f":"COUNTIF(PresençaemNovembro[4],\"U\")+COUNTIF(PresençaemNovembro[4],\"E\")","v":0},{"$f":"COUNTIF(PresençaemNovembro[5],\"U\")+COUNTIF(PresençaemNovembro[5],\"E\")","v":0},{"$f":"COUNTIF(PresençaemNovembro[6],\"U\")+COUNTIF(PresençaemNovembro[6],\"E\")","v":0},{"$f":"COUNTIF(PresençaemNovembro[7],\"U\")+COUNTIF(PresençaemNovembro[7],\"E\")","v":0},{"$f":"COUNTIF(PresençaemNovembro[8],\"U\")+COUNTIF(PresençaemNovembro[8],\"E\")","v":0},{"$f":"COUNTIF(PresençaemNovembro[9],\"U\")+COUNTIF(PresençaemNovembro[9],\"E\")","v":0},{"$f":"COUNTIF(PresençaemNovembro[10],\"U\")+COUNTIF(PresençaemNovembro[10],\"E\")","v":0},{"$f":"COUNTIF(PresençaemNovembro[11],\"U\")+COUNTIF(PresençaemNovembro[11],\"E\")","v":0},{"$f":"COUNTIF(PresençaemNovembro[12],\"U\")+COUNTIF(PresençaemNovembro[12],\"E\")","v":0},{"$f":"COUNTIF(PresençaemNovembro[13],\"U\")+COUNTIF(PresençaemNovembro[13],\"E\")","v":0},{"$f":"COUNTIF(PresençaemNovembro[14],\"U\")+COUNTIF(PresençaemNovembro[14],\"E\")","v":0},{"$f":"COUNTIF(PresençaemNovembro[15],\"U\")+COUNTIF(PresençaemNovembro[15],\"E\")","v":0},{"$f":"COUNTIF(PresençaemNovembro[16],\"U\")+COUNTIF(PresençaemNovembro[16],\"E\")","v":0},{"$f":"COUNTIF(PresençaemNovembro[17],\"U\")+COUNTIF(PresençaemNovembro[17],\"E\")","v":0},{"$f":"COUNTIF(PresençaemNovembro[18],\"U\")+COUNTIF(PresençaemNovembro[18],\"E\")","v":0},{"$f":"COUNTIF(PresençaemNovembro[19],\"U\")+COUNTIF(PresençaemNovembro[19],\"E\")","v":0},{"$f":"COUNTIF(PresençaemNovembro[20],\"U\")+COUNTIF(PresençaemNovembro[20],\"E\")","v":0},{"$f":"COUNTIF(PresençaemNovembro[21],\"U\")+COUNTIF(PresençaemNovembro[21],\"E\")","v":0},{"$f":"COUNTIF(PresençaemNovembro[22],\"U\")+COUNTIF(PresençaemNovembro[22],\"E\")","v":0},{"$f":"COUNTIF(PresençaemNovembro[23],\"U\")+COUNTIF(PresençaemNovembro[23],\"E\")","v":0},{"$f":"COUNTIF(PresençaemNovembro[24],\"U\")+COUNTIF(PresençaemNovembro[24],\"E\")","v":0},{"$f":"COUNTIF(PresençaemNovembro[25],\"U\")+COUNTIF(PresençaemNovembro[25],\"E\")","v":0},{"$f":"COUNTIF(PresençaemNovembro[26],\"U\")+COUNTIF(PresençaemNovembro[26],\"E\")","v":0},{"$f":"COUNTIF(PresençaemNovembro[27],\"U\")+COUNTIF(PresençaemNovembro[27],\"E\")","v":0},{"$f":"COUNTIF(PresençaemNovembro[28],\"U\")+COUNTIF(PresençaemNovembro[28],\"E\")","v":0},{"$f":"COUNTIF(PresençaemNovembro[29],\"U\")+COUNTIF(PresençaemNovembro[29],\"E\")","v":0},{"$f":"COUNTIF(PresençaemNovembro[30],\"U\")+COUNTIF(PresençaemNovembro[30],\"E\")","v":0},{"$f":"COUNTIF(PresençaemNovembro[[ ]],\"U\")+COUNTIF(PresençaemNovembro[[ ]],\"E\")","v":0},{"$f":"SUBTOTAL(109,PresençaemNovembro[T])","v":0},{"$f":"SUBTOTAL(109,PresençaemNovembro[E])","v":0},{"$f":"SUBTOTAL(109,PresençaemNovembro[U])","v":0},{"$f":"SUBTOTAL(109,PresençaemNovembro[P])","v":0},{"$f":"SUBTOTAL(109,PresençaemNovembro[Dias de Ausência])","v":0}]

{"sheet":"Dezembro","index":6,"n_rows":12,"n_cols":39,"rows_kept":12,"merged":[[4,34,4,38]]}
["REGISTRO DE PRESENÇA DO ALUNO",{"$nulls":36},"Início do Ano Escolar:",{"$f":"AnoCalendário","v":2012}]
[]
[null,null,{"$f":"TextodaChavedeCor","v":"CHAVE COLORIDA "},{"$f":"Código1","v":"T"},{"$f":"TextodeCódigo1","v":"Atrasado"},null,null,{"$f":"Código2","v":"E"},{"$f":"TextodeCódigo2","v":"Dispensado"},null,null,{"$f":"Código3","v":"U"},{"$f":"TextodeCódigo3","v":"Não Dispensado"},null,null,{"$f":"Código4","v":"P"},{"$f":"TextodeCódigo4","v":"Presente"},null,null,{"$f":"Código5","v":"N"},{"$f":"TextodeCódigo5","v":"Sem Aula"}]
[]
[null,{"$f":"DATE(AnoCalendário,12,1)","v":"2012-12-01"},null,{"$f":"TEXT(WEEKDAY(DATE(AnoCalendário,12,1),1),\"ddd\")","v":"sáb"},{"$f":"TEXT(WEEKDAY(DATE(AnoCalendário,12,2),1),\"ddd\")","v":"dom"},{"$f":"TEXT(WEEKDAY(DATE(AnoCalendário,12,3),1),\"ddd\")","v":"seg"},{"$f":"TEXT(WEEKDAY(DATE(AnoCalendário,12,4),1),\"ddd\")","v":"ter"},{"$f":"TEXT(WEEKDAY(DATE(AnoCalendário,12,5),1),\"ddd\")","v":"qua"},{"$f":"TEXT(WEEKDAY(DATE(AnoCalendário,12,6),1),\"ddd\")","v":"qui"},{"$f":"TEXT(WEEKDAY(DATE(AnoCalendário,12,7),1),\"ddd\")","v":"sex"},{"$f":"TEXT(WEEKDAY(DATE(AnoCalendário,12,8),1),\"ddd\")","v":"sáb"},{"$f":"TEXT(WEEKDAY(DATE(AnoCalendário,12,9),1),\"ddd\")","v":"dom"},{"$f":"TEXT(WEEKDAY(DATE(AnoCalendário,12,10),1),\"ddd\")","v":"seg"},{"$f":"TEXT(WEEKDAY(DATE(AnoCalendário,12,11),1),\"ddd\")","v":"ter"},{"$f":"TEXT(WEEKDAY(DATE(AnoCalendário,12,12),1),\"ddd\")","v":"qua"},{"$f":"TEXT(WEEKDAY(DATE(AnoCalendário,12,13),1),\"ddd\")","v":"qui"},{"$f":"TEXT(WEEKDAY(DATE(AnoCalendário,12,14),1),\"ddd\")","v":"sex"},{"$f":"TEXT(WEEKDAY(DATE(AnoCalendário,12,15),1),\"ddd\")","v":"sáb"},{"$f":"TEXT(WEEKDAY(DATE(AnoCalendário,12,16),1),\"ddd\")","v":"dom"},{"$f":"TEXT(WEEKDAY(DATE(AnoCalendário,12,17),1),\"ddd\")","v":"seg"},{"$f":"TEXT(WEEKDAY(DATE(AnoCalendário,12,18),1),\"ddd\")","v":"ter"},{"$f":"TEXT(WEEKDAY(DATE(AnoCalendário,12,19),1),\"ddd\")","v":"qua"},{"$f":"TEXT(WEEKDAY(DATE(AnoCalendário,12,20),1),\"ddd\")","v":"qui"},{"$f":"TEXT(WEEKDAY(DATE(AnoCalendário,12,21),1),\"ddd\")","v":"sex"},{"$f":"TEXT(WEEKDAY(DATE(AnoCalendário,12,22),1),\"ddd\")","v":"sáb"},{"$f":"TEXT(WEEKDAY(DATE(AnoCalendário,12,23),1),\"ddd\")","v":"dom"},{"$f":"TEXT(WEEKDAY(DATE(AnoCalendário,12,24),1),\"ddd\")","v":"seg"},{"$f":"TEXT(WEEKDAY(DATE(AnoCalendário,12,25),1),\"ddd\")","v":"ter"},{"$f":"TEXT(WEEKDAY(DATE(AnoCalendário,12,26),1),\"ddd\")","v":"qua"},{"$f":"TEXT(WEEKDAY(DATE(AnoCalendário,12,27),1),\"ddd\")","v":"qui"},{"$f":"TEXT(WEEKDAY(DATE(AnoCalendário,12,28),1),\"ddd\")","v":"sex"},{"$f":"TEXT(WEEKDAY(DATE(AnoCalendário,12,29),1),\"ddd\")","v":"sáb"},{"$f":"TEXT(WEEKDAY(DATE(AnoCalendário,12,30),1),\"ddd\")","v":"dom"},{"$f":"TEXT(WEEKDAY(DATE(AnoCalendário,12,31),1),\"ddd\")","v":"seg"},"Totais"]
[null,"ID do Aluno","Nome do Aluno","1","2","3","4","5","6","7","8","9","10","11","12","13","14","15","16","17","18","19","20","21","22","23","24","25","26","27","28","29","30","31","T","E","U","P","Dias de Ausência"]
[null,null,{"$f":"IFERROR(VLOOKUP(PresençaemDezembro[[#This Row],[ID do Aluno]],ListadeAlunos[],18,FALSE),\"\")","v":""},{"$nulls":31},{"$f":"COUNTIF(PresençaemDezembro[[#This Row],[1]:[31]],Código1)","v":0},{"$f":"COUNTIF(PresençaemDezembro[[#This Row],[1]:[31]],Código2)","v":0},{"$f":"COUNTIF(PresençaemDezembro[[#This Row],[1]:[31]],Código3)","v":0},{"$f":"COUNTIF(PresençaemDezembro[[#This Row],[1]:[31]],Código4)","v":0},{"$f":"SUM(PresençaemDezembro[[#This Row],[E]:[U]])","v":0}]
[null,null,{"$f":"IFERROR(VLOOKUP(PresençaemDezembro[[#This Row],[ID do Aluno]],ListadeAlunos[],18,FALSE),\"\")","v":""},{"$nulls":31},{"$f":"COUNTIF(PresençaemDezembro[[#This Row],[1]:[31]],Código1)","v":0},{"$f":"COUNTIF(PresençaemDezembro[[#This Row],[1]:[31]],Código2)","v":0},{"$f":"COUNTIF(PresençaemDezembro[[#This Row],[1]:[31]],Código3)","v":0},{"$f":"COUNTIF(PresençaemDezembro[[#This Row],[1]:[31]],Código4)","v":0},{"$f":"SUM(PresençaemDezembro[[#This Row],[E]:[U]])","v":0}]
[null,null,{"$f":"IFERROR(VLOOKUP(PresençaemDezembro[[#This Row],[ID do Aluno]],ListadeAlunos[],18,FALSE),\"\")","v":""},{"$nulls":31},{"$f":"COUNTIF(PresençaemDezembro[[#This Row],[1]:[31]],Código1)","v":0},{"$f":"COUNTIF(PresençaemDezembro[[#This Row],[1]:[31]],Código2)","v":0},{"$f":"COUNTIF(PresençaemDezembro[[#This Row],[1]:[31]],Código3)","v":0},{"$f":"COUNTIF(PresençaemDezembro[[#This Row],[1]:[31]],Código4)","v":0},{"$f":"SUM(PresençaemDezembro[[#This Row],[E]:[U]])","v":0}]
[null,null,{"$f":"IFERROR(VLOOKUP(PresençaemDezembro[[#This Row],[ID do Aluno]],ListadeAlunos[],18,FALSE),\"\")","v":""},{"$nulls":31},{"$f":"COUNTIF(PresençaemDezembro[[#This Row],[1]:[31]],Código1)","v":0},{"$f":"COUNTIF(PresençaemDezembro[[#This Row],[1]:[31]],Código2)","v":0},{"$f":"COUNTIF(PresençaemDezembro[[#This Row],[1]:[31]],Código3)","v":0},{"$f":"COUNTIF(PresençaemDezembro[[#This Row],[1]:[31]],Código4)","v":0},{"$f":"SUM(PresençaemDezembro[[#This Row],[E]:[U]])","v":0}]
[null,null,{"$f":"IFERROR(VLOOKUP(PresençaemDezembro[[#This Row],[ID do Aluno]],ListadeAlunos[],18,FALSE),\"\")","v":""},{"$nulls":31},{"$f":"COUNTIF(PresençaemDezembro[[#This Row],[1]:[31]],Código1)","v":0},{"$f":"COUNTIF(PresençaemDezembro[[#This Row],[1]:[31]],Código2)","v":0},{"$f":"COUNTIF(PresençaemDezembro[[#This Row],[1]:[31]],Código3)","v":0},{"$f":"COUNTIF(PresençaemDezembro[[#This Row],[1]:[31]],Código4)","v":0},{"$f":"SUM(PresençaemDezembro[[#This Row],[E]:[U]])","v":0}]
[null,null,"Total de dias de ausência",{"$f":"COUNTIF(PresençaemDezembro[1],\"U\")+COUNTIF(PresençaemDezembro[1],\"E\")","v":0},{"$f":"COUNTIF(PresençaemDezembro[2],\"U\")+COUNTIF(PresençaemDezembro[2],\"E\")","v":0},{"$f":"COUNTIF(PresençaemDezembro[3],\"U\")+COUNTIF(PresençaemDezembro[3],\"E\")","v":0},{"$f":"COUNTIF(PresençaemDezembro[4],\"U\")+COUNTIF(PresençaemDezembro[4],\"E\")","v":0},{"$f":"COUNTIF(PresençaemDezembro[5],\"U\")+COUNTIF(PresençaemDezembro[5],\"E\")","v":0},{"$f":"COUNTIF(PresençaemDezembro[6],\"U\")+COUNTIF(PresençaemDezembro[6],\"E\")","v":0},{"$f":"COUNTIF(PresençaemDezembro[7],\"U\")+COUNTIF(PresençaemDezembro[7],\"E\")","v":0},{"$f":"COUNTIF(PresençaemDezembro[8],\"U\")+COUNTIF(PresençaemDezembro[8],\"E\")","v":0},{"$f":"COUNTIF(PresençaemDezembro[9],\"U\")+COUNTIF(PresençaemDezembro[9],\"E\")","v":0},{"$f":"COUNTIF(PresençaemDezembro[10],\"U\")+COUNTIF(PresençaemDezembro[10],\"E\")","v":0},{"$f":"COUNTIF(PresençaemDezembro[11],\"U\")+COUNTIF(PresençaemDezembro[11],\"E\")","v":0},{"$f":"COUNTIF(PresençaemDezembro[12],\"U\")+COUNTIF(PresençaemDezembro[12],\"E\")","v":0},{"$f":"COUNTIF(PresençaemDezembro[13],\"U\")+COUNTIF(PresençaemDezembro[13],\"E\")","v":0},{"$f":"COUNTIF(PresençaemDezembro[14],\"U\")+COUNTIF(PresençaemDezembro[14],\"E\")","v":0},{"$f":"COUNTIF(PresençaemDezembro[15],\"U\")+COUNTIF(PresençaemDezembro[15],\"E\")","v":0},{"$f":"COUNTIF(PresençaemDezembro[16],\"U\")+COUNTIF(PresençaemDezembro[16],\"E\")","v":0},{"$f":"COUNTIF(PresençaemDezembro[17],\"U\")+COUNTIF(PresençaemDezembro[17],\"E\")","v":0},{"$f":"COUNTIF(PresençaemDezembro[18],\"U\")+COUNTIF(PresençaemDezembro[18],\"E\")","v":0},{"$f":"COUNTIF(PresençaemDezembro[19],\"U\")+COUNTIF(PresençaemDezembro[19],\"E\")","v":0},{"$f":"COUNTIF(PresençaemDezembro[20],\"U\")+COUNTIF(PresençaemDezembro[20],\"E\")","v":0},{"$f":"COUNTIF(PresençaemDezembro[21],\"U\")+COUNTIF(PresençaemDezembro[21],\"E\")","v":0},{"$f":"COUNTIF(PresençaemDezembro[22],\"U\")+COUNTIF(PresençaemDezembro[22],\"E\")","v":0},{"$f":"COUNTIF(PresençaemDezembro[23],\"U\")+COUNTIF(PresençaemDezembro[23],\"E\")","v":0},{"$f":"COUNTIF(PresençaemDezembro[24],\"U\")+COUNTIF(PresençaemDezembro[24],\"E\")","v":0},{"$f":"COUNTIF(PresençaemDezembro[25],\"U\")+COUNTIF(PresençaemDezembro[25],\"E\")","v":0},{"$f":"COUNTIF(PresençaemDezembro[26],\"U\")+COUNTIF(PresençaemDezembro[26],\"E\")","v":0},{"$f":"COUNTIF(PresençaemDezembro[27],\"U\")+COUNTIF(PresençaemDezembro[27],\"E\")","v":0},{"$f":"COUNTIF(PresençaemDezembro[28],\"U\")+COUNTIF(PresençaemDezembro[28],\"E\")","v":0},{"$f":"COUNTIF(PresençaemDezembro[29],\"U\")+COUNTIF(PresençaemDezembro[29],\"E\")","v":0},{"$f":"COUNTIF(PresençaemDezembro[30],\"U\")+COUNTIF(PresençaemDezembro[30],\"E\")","v":0},{"$f":"COUNTIF(PresençaemDezembro[31],\"U\")+COUNTIF(PresençaemDezembro[31],\"E\")","v":0},{"$f":"SUBTOTAL(109,PresençaemDezembro[T])","v":0},{"$f":"SUBTOTAL(109,PresençaemDezembro[E])","v":0},{"$f":"SUBTOTAL(109,PresençaemDezembro[U])","v":0},{"$f":"SUBTOTAL(109,PresençaemDezembro[P])","v":0},{"$f":"SUBTOTAL(109,PresençaemDezembro[Dias de Ausência])","v":0}]

{"sheet":"Janeiro","index":7,"n_rows":12,"n_cols":39,"rows_kept":12,"merged":[[4,34,4,38]]}
["REGISTRO DE PRESENÇA DO ALUNO",{"$nulls":36},"Início do Ano Escolar:",{"$f":"AnoCalendário","v":2012}]
[]
[null,null,{"$f":"TextodaChavedeCor","v":"CHAVE COLORIDA "},{"$f":"Código1","v":"T"},{"$f":"TextodeCódigo1","v":"Atrasado"},null,null,{"$f":"Código2","v":"E"},{"$f":"TextodeCódigo2","v":"Dispensado"},null,null,{"$f":"Código3","v":"U"},{"$f":"TextodeCódigo3","v":"Não Dispensado"},null,null,{"$f":"Código4","v":"P"},{"$f":"TextodeCódigo4","v":"Presente"},null,null,{"$f":"Código5","v":"N"},{"$f":"TextodeCódigo5","v":"Sem Aula"}]
[]
[null,{"$f":"DATE(AnoCalendário+1,1,1)","v":"2013-01-01"},null,{"$f":"TEXT(WEEKDAY(DATE(AnoCalendário+1,1,1),1),\"ddd\")","v":"ter"},{"$f":"TEXT(WEEKDAY(DATE(AnoCalendário+1,1,2),1),\"ddd\")","v":"qua"},{"$f":"TEXT(WEEKDAY(DATE(AnoCalendário+1,1,3),1),\"ddd\")","v":"qui"},{"$f":"TEXT(WEEKDAY(DATE(AnoCalendário+1,1,4),1),\"ddd\")","v":"sex"},{"$f":"TEXT(WEEKDAY(DATE(AnoCalendário+1,1,5),1),\"ddd\")","v":"sáb"},{"$f":"TEXT(WEEKDAY(DATE(AnoCalendário+1,1,6),1),\"ddd\")","v":"dom"},{"$f":"TEXT(WEEKDAY(DATE(AnoCalendário+1,1,7),1),\"ddd\")","v":"seg"},{"$f":"TEXT(WEEKDAY(DATE(AnoCalendário+1,1,8),1),\"ddd\")","v":"ter"},{"$f":"TEXT(WEEKDAY(DATE(AnoCalendário+1,1,9),1),\"ddd\")","v":"qua"},{"$f":"TEXT(WEEKDAY(DATE(AnoCalendário+1,1,10),1),\"ddd\")","v":"qui"},{"$f":"TEXT(WEEKDAY(DATE(AnoCalendário+1,1,11),1),\"ddd\")","v":"sex"},{"$f":"TEXT(WEEKDAY(DATE(AnoCalendário+1,1,12),1),\"ddd\")","v":"sáb"},{"$f":"TEXT(WEEKDAY(DATE(AnoCalendário+1,1,13),1),\"ddd\")","v":"dom"},{"$f":"TEXT(WEEKDAY(DATE(AnoCalendário+1,1,14),1),\"ddd\")","v":"seg"},{"$f":"TEXT(WEEKDAY(DATE(AnoCalendário+1,1,15),1),\"ddd\")","v":"ter"},{"$f":"TEXT(WEEKDAY(DATE(AnoCalendário+1,1,16),1),\"ddd\")","v":"qua"},{"$f":"TEXT(WEEKDAY(DATE(AnoCalendário+1,1,17),1),\"ddd\")","v":"qui"},{"$f":"TEXT(WEEKDAY(DATE(AnoCalendário+1,1,18),1),\"ddd\")","v":"sex"},{"$f":"TEXT(WEEKDAY(DATE(AnoCalendário+1,1,19),1),\"ddd\")","v":"sáb"},{"$f":"TEXT(WEEKDAY(DATE(AnoCalendário+1,1,20),1),\"ddd\")","v":"dom"},{"$f":"TEXT(WEEKDAY(DATE(AnoCalendário+1,1,21),1),\"ddd\")","v":"seg"},{"$f":"TEXT(WEEKDAY(DATE(AnoCalendário+1,1,22),1),\"ddd\")","v":"ter"},{"$f":"TEXT(WEEKDAY(DATE(AnoCalendário+1,1,23),1),\"ddd\")","v":"qua"},{"$f":"TEXT(WEEKDAY(DATE(AnoCalendário+1,1,24),1),\"ddd\")","v":"qui"},{"$f":"TEXT(WEEKDAY(DATE(AnoCalendário+1,1,25),1),\"ddd\")","v":"sex"},{"$f":"TEXT(WEEKDAY(DATE(AnoCalendário+1,1,26),1),\"ddd\")","v":"sáb"},{"$f":"TEXT(WEEKDAY(DATE(AnoCalendário+1,1,27),1),\"ddd\")","v":"dom"},{"$f":"TEXT(WEEKDAY(DATE(AnoCalendário+1,1,28),1),\"ddd\")","v":"seg"},{"$f":"TEXT(WEEKDAY(DATE(AnoCalendário+1,1,29),1),\"ddd\")","v":"ter"},{"$f":"TEXT(WEEKDAY(DATE(AnoCalendário+1,1,30),1),\"ddd\")","v":"qua"},{"$f":"TEXT(WEEKDAY(DATE(AnoCalendário+1,1,31),1),\"ddd\")","v":"qui"},"Totais"]
[null,"ID do Aluno","Nome do Aluno","1","2","3","4","5","6","7","8","9","10","11","12","13","14","15","16","17","18","19","20","21","22","23","24","25","26","27","28","29","30","31","T","E","U","P","Dias de Ausência"]
[null,null,{"$f":"IFERROR(VLOOKUP(PresençaemJaneiro[[#This Row],[ID do Aluno]],ListadeAlunos[],18,FALSE),\"\")","v":""},{"$nulls":31},{"$f":"COUNTIF(PresençaemJaneiro[[#This Row],[1]:[31]],Código1)","v":0},{"$f":"COUNTIF(PresençaemJaneiro[[#This Row],[1]:[31]],Código2)","v":0},{"$f":"COUNTIF(PresençaemJaneiro[[#This Row],[1]:[31]],Código3)","v":0},{"$f":"COUNTIF(PresençaemJaneiro[[#This Row],[1]:[31]],Código4)","v":0},{"$f":"SUM(PresençaemJaneiro[[#This Row],[E]:[U]])","v":0}]
[null,null,{"$f":"IFERROR(VLOOKUP(PresençaemJaneiro[[#This Row],[ID do Aluno]],ListadeAlunos[],18,FALSE),\"\")","v":""},{"$nulls":31},{"$f":"COUNTIF(PresençaemJaneiro[[#This Row],[1]:[31]],Código1)","v":0},{"$f":"COUNTIF(PresençaemJaneiro[[#This Row],[1]:[31]],Código2)","v":0},{"$f":"COUNTIF(PresençaemJaneiro[[#This Row],[1]:[31]],Código3)","v":0},{"$f":"COUNTIF(PresençaemJaneiro[[#This Row],[1]:[31]],Código4)","v":0},{"$f":"SUM(PresençaemJaneiro[[#This Row],[E]:[U]])","v":0}]
[null,null,{"$f":"IFERROR(VLOOKUP(PresençaemJaneiro[[#This Row],[ID do Aluno]],ListadeAlunos[],18,FALSE),\"\")","v":""},{"$nulls":31},{"$f":"COUNTIF(PresençaemJaneiro[[#This Row],[1]:[31]],Código1)","v":0},{"$f":"COUNTIF(PresençaemJaneiro[[#This Row],[1]:[31]],Código2)","v":0},{"$f":"COUNTIF(PresençaemJaneiro[[#This Row],[1]:[31]],Código3)","v":0},{"$f":"COUNTIF(PresençaemJaneiro[[#This Row],[1]:[31]],Código4)","v":0},{"$f":"SUM(PresençaemJaneiro[[#This Row],[E]:[U]])","v":0}]
[null,null,{"$f":"IFERROR(VLOOKUP(PresençaemJaneiro[[#This Row],[ID do Aluno]],ListadeAlunos[],18,FALSE),\"\")","v":""},{"$nulls":31},{"$f":"COUNTIF(PresençaemJaneiro[[#This Row],[1]:[31]],Código1)","v":0},{"$f":"COUNTIF(PresençaemJaneiro[[#This Row],[1]:[31]],Código2)","v":0},{"$f":"COUNTIF(PresençaemJaneiro[[#This Row],[1]:[31]],Código3)","v":0},{"$f":"COUNTIF(PresençaemJaneiro[[#This Row],[1]:[31]],Código4)","v":0},{"$f":"SUM(PresençaemJaneiro[[#This Row],[E]:[U]])","v":0}]
[null,null,{"$f":"IFERROR(VLOOKUP(PresençaemJaneiro[[#This Row],[ID do Aluno]],ListadeAlunos[],18,FALSE),\"\")","v":""},{"$nulls":31},{"$f":"COUNTIF(PresençaemJaneiro[[#This Row],[1]:[31]],Código1)","v":0},{"$f":"COUNTIF(PresençaemJaneiro[[#This Row],[1]:[31]],Código2)","v":0},{"$f":"COUNTIF(PresençaemJaneiro[[#This Row],[1]:[31]],Código3)","v":0},{"$f":"COUNTIF(PresençaemJaneiro[[#This Row],[1]:[31]],Código4)","v":0},{"$f":"SUM(PresençaemJaneiro[[#This Row],[E]:[U]])","v":0}]
[null,null,"Total de dias de ausência",{"$f":"COUNTIF(PresençaemJaneiro[1],\"U\")+COUNTIF(PresençaemJaneiro[1],\"E\")","v":0},{"$f":"COUNTIF(PresençaemJaneiro[2],\"U\")+COUNTIF(PresençaemJaneiro[2],\"E\")","v":0},{"$f":"COUNTIF(PresençaemJaneiro[3],\"U\")+COUNTIF(PresençaemJaneiro[3],\"E\")","v":0},{"$f":"COUNTIF(PresençaemJaneiro[4],\"U\")+COUNTIF(PresençaemJaneiro[4],\"E\")","v":0},{"$f":"COUNTIF(PresençaemJaneiro[5],\"U\")+COUNTIF(PresençaemJaneiro[5],\"E\")","v":0},{"$f":"COUNTIF(PresençaemJaneiro[6],\"U\")+COUNTIF(PresençaemJaneiro[6],\"E\")","v":0},{"$f":"COUNTIF(PresençaemJaneiro[7],\"U\")+COUNTIF(PresençaemJaneiro[7],\"E\")","v":0},{"$f":"COUNTIF(PresençaemJaneiro[8],\"U\")+COUNTIF(PresençaemJaneiro[8],\"E\")","v":0},{"$f":"COUNTIF(PresençaemJaneiro[9],\"U\")+COUNTIF(PresençaemJaneiro[9],\"E\")","v":0},{"$f":"COUNTIF(PresençaemJaneiro[10],\"U\")+COUNTIF(PresençaemJaneiro[10],\"E\")","v":0},{"$f":"COUNTIF(PresençaemJaneiro[11],\"U\")+COUNTIF(PresençaemJaneiro[11],\"E\")","v":0},{"$f":"COUNTIF(PresençaemJaneiro[12],\"U\")+COUNTIF(PresençaemJaneiro[12],\"E\")","v":0},{"$f":"COUNTIF(PresençaemJaneiro[13],\"U\")+COUNTIF(PresençaemJaneiro[13],\"E\")","v":0},{"$f":"COUNTIF(PresençaemJaneiro[14],\"U\")+COUNTIF(PresençaemJaneiro[14],\"E\")","v":0},{"$f":"COUNTIF(PresençaemJaneiro[15],\"U\")+COUNTIF(PresençaemJaneiro[15],\"E\")","v":0},{"$f":"COUNTIF(PresençaemJaneiro[16],\"U\")+COUNTIF(PresençaemJaneiro[16],\"E\")","v":0},{"$f":"COUNTIF(PresençaemJaneiro[17],\"U\")+COUNTIF(PresençaemJaneiro[17],\"E\")","v":0},{"$f":"COUNTIF(PresençaemJaneiro[18],\"U\")+COUNTIF(PresençaemJaneiro[18],\"E\")","v":0},{"$f":"COUNTIF(PresençaemJaneiro[19],\"U\")+COUNTIF(PresençaemJaneiro[19],\"E\")","v":0},{"$f":"COUNTIF(PresençaemJaneiro[20],\"U\")+COUNTIF(PresençaemJaneiro[20],\"E\")","v":0},{"$f":"COUNTIF(PresençaemJaneiro[21],\"U\")+COUNTIF(PresençaemJaneiro[21],\"E\")","v":0},{"$f":"COUNTIF(PresençaemJaneiro[22],\"U\")+COUNTIF(PresençaemJaneiro[22],\"E\")","v":0},{"$f":"COUNTIF(PresençaemJaneiro[23],\"U\")+COUNTIF(PresençaemJaneiro[23],\"E\")","v":0},{"$f":"COUNTIF(PresençaemJaneiro[24],\"U\")+COUNTIF(PresençaemJaneiro[24],\"E\")","v":0},{"$f":"COUNTIF(PresençaemJaneiro[25],\"U\")+COUNTIF(PresençaemJaneiro[25],\"E\")","v":0},{"$f":"COUNTIF(PresençaemJaneiro[26],\"U\")+COUNTIF(PresençaemJaneiro[26],\"E\")","v":0},{"$f":"COUNTIF(PresençaemJaneiro[27],\"U\")+COUNTIF(PresençaemJaneiro[27],\"E\")","v":0},{"$f":"COUNTIF(PresençaemJaneiro[28],\"U\")+COUNTIF(PresençaemJaneiro[28],\"E\")","v":0},{"$f":"COUNTIF(PresençaemJaneiro[29],\"U\")+COUNTIF(PresençaemJaneiro[29],\"E\")","v":0},null,null,{"$f":"SUBTOTAL(109,PresençaemJaneiro[T])","v":0},{"$f":"SUBTOTAL(109,PresençaemJaneiro[E])","v":0},{"$f":"SUBTOTAL(109,PresençaemJaneiro[U])","v":0},{"$f":"SUBTOTAL(109,PresençaemJaneiro[P])","v":0},{"$f":"SUBTOTAL(109,PresençaemJaneiro[Dias de Ausência])","v":0}]

{"sheet":"Fevereiro","index":8,"n_rows":12,"n_cols":39,"rows_kept":12,"merged":[[4,34,4,38]]}
["REGISTRO DE PRESENÇA DO ALUNO",{"$nulls":36},"Início do Ano Escolar:",{"$f":"AnoCalendário","v":2012}]
[]
[null,null,{"$f":"TextodaChavedeCor","v":"CHAVE COLORIDA "},{"$f":"Código1","v":"T"},{"$f":"TextodeCódigo1","v":"Atrasado"},null,null,{"$f":"Código2","v":"E"},{"$f":"TextodeCódigo2","v":"Dispensado"},null,null,{"$f":"Código3","v":"U"},{"$f":"TextodeCódigo3","v":"Não Dispensado"},null,null,{"$f":"Código4","v":"P"},{"$f":"TextodeCódigo4","v":"Presente"},null,null,{"$f":"Código5","v":"N"},{"$f":"TextodeCódigo5","v":"Sem Aula"}]
[]
[null,{"$f":"DATE(AnoCalendário+1,2,1)","v":"2013-02-01"},null,{"$f":"TEXT(WEEKDAY(DATE(AnoCalendário+1,2,1),1),\"ddd\")","v":"sex"},{"$f":"TEXT(WEEKDAY(DATE(AnoCalendário+1,2,2),1),\"ddd\")","v":"sáb"},{"$f":"TEXT(WEEKDAY(DATE(AnoCalendário+1,2,3),1),\"ddd\")","v":"dom"},{"$f":"TEXT(WEEKDAY(DATE(AnoCalendário+1,2,4),1),\"ddd\")","v":"seg"},{"$f":"TEXT(WEEKDAY(DATE(AnoCalendário+1,2,5),1),\"ddd\")","v":"ter"},{"$f":"TEXT(WEEKDAY(DATE(AnoCalendário+1,2,6),1),\"ddd\")","v":"qua"},{"$f":"TEXT(WEEKDAY(DATE(AnoCalendário+1,2,7),1),\"ddd\")","v":"qui"},{"$f":"TEXT(WEEKDAY(DATE(AnoCalendário+1,2,8),1),\"ddd\")","v":"sex"},{"$f":"TEXT(WEEKDAY(DATE(AnoCalendário+1,2,9),1),\"ddd\")","v":"sáb"},{"$f":"TEXT(WEEKDAY(DATE(AnoCalendário+1,2,10),1),\"ddd\")","v":"dom"},{"$f":"TEXT(WEEKDAY(DATE(AnoCalendário+1,2,11),1),\"ddd\")","v":"seg"},{"$f":"TEXT(WEEKDAY(DATE(AnoCalendário+1,2,12),1),\"ddd\")","v":"ter"},{"$f":"TEXT(WEEKDAY(DATE(AnoCalendário+1,2,13),1),\"ddd\")","v":"qua"},{"$f":"TEXT(WEEKDAY(DATE(AnoCalendário+1,2,14),1),\"ddd\")","v":"qui"},{"$f":"TEXT(WEEKDAY(DATE(AnoCalendário+1,2,15),1),\"ddd\")","v":"sex"},{"$f":"TEXT(WEEKDAY(DATE(AnoCalendário+1,2,16),1),\"ddd\")","v":"sáb"},{"$f":"TEXT(WEEKDAY(DATE(AnoCalendário+1,2,17),1),\"ddd\")","v":"dom"},{"$f":"TEXT(WEEKDAY(DATE(AnoCalendário+1,2,18),1),\"ddd\")","v":"seg"},{"$f":"TEXT(WEEKDAY(DATE(AnoCalendário+1,2,19),1),\"ddd\")","v":"ter"},{"$f":"TEXT(WEEKDAY(DATE(AnoCalendário+1,2,20),1),\"ddd\")","v":"qua"},{"$f":"TEXT(WEEKDAY(DATE(AnoCalendário+1,2,21),1),\"ddd\")","v":"qui"},{"$f":"TEXT(WEEKDAY(DATE(AnoCalendário+1,2,22),1),\"ddd\")","v":"sex"},{"$f":"TEXT(WEEKDAY(DATE(AnoCalendário+1,2,23),1),\"ddd\")","v":"sáb"},{"$f":"TEXT(WEEKDAY(DATE(AnoCalendário+1,2,24),1),\"ddd\")","v":"dom"},{"$f":"TEXT(WEEKDAY(DATE(AnoCalendário+1,2,25),1),\"ddd\")","v":"seg"},{"$f":"TEXT(WEEKDAY(DATE(AnoCalendário+1,2,26),1),\"ddd\")","v":"ter"},{"$f":"TEXT(WEEKDAY(DATE(AnoCalendário+1,2,27),1),\"ddd\")","v":"qua"},{"$f":"TEXT(WEEKDAY(DATE(AnoCalendário+1,2,28),1),\"ddd\")","v":"qui"},{"$f":"TEXT(WEEKDAY(DATE(AnoCalendário+1,2,29),1),\"ddd\")","v":"sex"},null,null,"Totais"]
[null,"ID do Aluno","Nome do Aluno","1","2","3","4","5","6","7","8","9","10","11","12","13","14","15","16","17","18","19","20","21","22","23","24","25","26","27","28","29","30","31","T","E","U","P","Dias de Ausência"]
[null,null,{"$f":"IFERROR(VLOOKUP(PresençaemFevereiro[[#This Row],[ID do Aluno]],ListadeAlunos[],18,FALSE),\"\")","v":""},{"$nulls":31},{"$f":"COUNTIF(PresençaemFevereiro[[#This Row],[1]:[31]],Código1)","v":0},{"$f":"COUNTIF(PresençaemFevereiro[[#This Row],[1]:[31]],Código2)","v":0},{"$f":"COUNTIF(PresençaemFevereiro[[#This Row],[1]:[31]],Código3)","v":0},{"$f":"COUNTIF(PresençaemFevereiro[[#This Row],[1]:[31]],Código4)","v":0},{"$f":"SUM(PresençaemFevereiro[[#This Row],[E]:[U]])","v":0}]
[null,null,{"$f":"IFERROR(VLOOKUP(PresençaemFevereiro[[#This Row],[ID do Aluno]],ListadeAlunos[],18,FALSE),\"\")","v":""},{"$nulls":31},{"$f":"COUNTIF(PresençaemFevereiro[[#This Row],[1]:[31]],Código1)","v":0},{"$f":"COUNTIF(PresençaemFevereiro[[#This Row],[1]:[31]],Código2)","v":0},{"$f":"COUNTIF(PresençaemFevereiro[[#This Row],[1]:[31]],Código3)","v":0},{"$f":"COUNTIF(PresençaemFevereiro[[#This Row],[1]:[31]],Código4)","v":0},{"$f":"SUM(PresençaemFevereiro[[#This Row],[E]:[U]])","v":0}]
[null,null,{"$f":"IFERROR(VLOOKUP(PresençaemFevereiro[[#This Row],[ID do Aluno]],ListadeAlunos[],18,FALSE),\"\")","v":""},{"$nulls":31},{"$f":"COUNTIF(PresençaemFevereiro[[#This Row],[1]:[31]],Código1)","v":0},{"$f":"COUNTIF(PresençaemFevereiro[[#This Row],[1]:[31]],Código2)","v":0},{"$f":"COUNTIF(PresençaemFevereiro[[#This Row],[1]:[31]],Código3)","v":0},{"$f":"COUNTIF(PresençaemFevereiro[[#This Row],[1]:[31]],Código4)","v":0},{"$f":"SUM(PresençaemFevereiro[[#This Row],[E]:[U]])","v":0}]
[null,null,{"$f":"IFERROR(VLOOKUP(PresençaemFevereiro[[#This Row],[ID do Aluno]],ListadeAlunos[],18,FALSE),\"\")","v":""},{"$nulls":31},{"$f":"COUNTIF(PresençaemFevereiro[[#This Row],[1]:[31]],Código1)","v":0},{"$f":"COUNTIF(PresençaemFevereiro[[#This Row],[1]:[31]],Código2)","v":0},{"$f":"COUNTIF(PresençaemFevereiro[[#This Row],[1]:[31]],Código3)","v":0},{"$f":"COUNTIF(PresençaemFevereiro[[#This Row],[1]:[31]],Código4)","v":0},{"$f":"SUM(PresençaemFevereiro[[#This Row],[E]:[U]])","v":0}]
[null,null,{"$f":"IFERROR(VLOOKUP(PresençaemFevereiro[[#This Row],[ID do Aluno]],ListadeAlunos[],18,FALSE),\"\")","v":""},{"$nulls":31},{"$f":"COUNTIF(PresençaemFevereiro[[#This Row],[1]:[31]],Código1)","v":0},{"$f":"COUNTIF(PresençaemFevereiro[[#This Row],[1]:[31]],Código2)","v":0},{"$f":"COUNTIF(PresençaemFevereiro[[#This Row],[1]:[31]],Código3)","v":0},{"$f":"COUNTIF(PresençaemFevereiro[[#This Row],[1]:[31]],Código4)","v":0},{"$f":"SUM(PresençaemFevereiro[[#This Row],[E]:[U]])","v":0}]
[null,null,"Total de dias de ausência",{"$f":"COUNTIF(PresençaemFevereiro[1],\"U\")+COUNTIF(PresençaemFevereiro[1],\"E\")","v":0},{"$f":"COUNTIF(PresençaemFevereiro[2],\"U\")+COUNTIF(PresençaemFevereiro[2],\"E\")","v":0},{"$f":"COUNTIF(PresençaemFevereiro[3],\"U\")+COUNTIF(PresençaemFevereiro[3],\"E\")","v":0},{"$f":"COUNTIF(PresençaemFevereiro[4],\"U\")+COUNTIF(PresençaemFevereiro[4],\"E\")","v":0},{"$f":"COUNTIF(PresençaemFevereiro[5],\"U\")+COUNTIF(PresençaemFevereiro[5],\"E\")","v":0},{"$f":"COUNTIF(PresençaemFevereiro[6],\"U\")+COUNTIF(PresençaemFevereiro[6],\"E\")","v":0},{"$f":"COUNTIF(PresençaemFevereiro[7],\"U\")+COUNTIF(PresençaemFevereiro[7],\"E\")","v":0},{"$f":"COUNTIF(PresençaemFevereiro[8],\"U\")+COUNTIF(PresençaemFevereiro[8],\"E\")","v":0},{"$f":"COUNTIF(PresençaemFevereiro[9],\"U\")+COUNTIF(PresençaemFevereiro[9],\"E\")","v":0},{"$f":"COUNTIF(PresençaemFevereiro[10],\"U\")+COUNTIF(PresençaemFevereiro[10],\"E\")","v":0},{"$f":"COUNTIF(PresençaemFevereiro[11],\"U\")+COUNTIF(PresençaemFevereiro[11],\"E\")","v":0},{"$f":"COUNTIF(PresençaemFevereiro[12],\"U\")+COUNTIF(PresençaemFevereiro[12],\"E\")","v":0},{"$f":"COUNTIF(PresençaemFevereiro[13],\"U\")+COUNTIF(PresençaemFevereiro[13],\"E\")","v":0},{"$f":"COUNTIF(PresençaemFevereiro[14],\"U\")+COUNTIF(PresençaemFevereiro[14],\"E\")","v":0},{"$f":"COUNTIF(PresençaemFevereiro[15],\"U\")+COUNTIF(PresençaemFevereiro[15],\"E\")","v":0},{"$f":"COUNTIF(PresençaemFevereiro[16],\"U\")+COUNTIF(PresençaemFevereiro[16],\"E\")","v":0},{"$f":"COUNTIF(PresençaemFevereiro[17],\"U\")+COUNTIF(PresençaemFevereiro[17],\"E\")","v":0},{"$f":"COUNTIF(PresençaemFevereiro[18],\"U\")+COUNTIF(PresençaemFevereiro[18],\"E\")","v":0},{"$f":"COUNTIF(PresençaemFevereiro[19],\"U\")+COUNTIF(PresençaemFevereiro[19],\"E\")","v":0},{"$f":"COUNTIF(PresençaemFevereiro[20],\"U\")+COUNTIF(PresençaemFevereiro[20],\"E\")","v":0},{"$f":"COUNTIF(PresençaemFevereiro[21],\"U\")+COUNTIF(PresençaemFevereiro[21],\"E\")","v":0},{"$f":"COUNTIF(PresençaemFevereiro[22],\"U\")+COUNTIF(PresençaemFevereiro[22],\"E\")","v":0},{"$f":"COUNTIF(PresençaemFevereiro[23],\"U\")+COUNTIF(PresençaemFevereiro[23],\"E\")","v":0},{"$f":"COUNTIF(PresençaemFevereiro[24],\"U\")+COUNTIF(PresençaemFevereiro[24],\"E\")","v":0},{"$f":"COUNTIF(PresençaemFevereiro[25],\"U\")+COUNTIF(PresençaemFevereiro[25],\"E\")","v":0},{"$f":"COUNTIF(PresençaemFevereiro[26],\"U\")+COUNTIF(PresençaemFevereiro[26],\"E\")","v":0},{"$f":"COUNTIF(PresençaemFevereiro[27],\"U\")+COUNTIF(PresençaemFevereiro[27],\"E\")","v":0},{"$f":"COUNTIF(PresençaemFevereiro[28],\"U\")+COUNTIF(PresençaemFevereiro[28],\"E\")","v":0},{"$f":"COUNTIF(PresençaemFevereiro[29],\"U\")+COUNTIF(PresençaemFevereiro[29],\"E\")","v":0},null,null,{"$f":"SUBTOTAL(109,PresençaemFevereiro[T])","v":0},{"$f":"SUBTOTAL(109,PresençaemFevereiro[E])","v":0},{"$f":"SUBTOTAL(109,PresençaemFevereiro[U])","v":0},{"$f":"SUBTOTAL(109,PresençaemFevereiro[P])","v":0},{"$f":"SUBTOTAL(109,PresençaemFevereiro[Dias de Ausência])","v":0}]

{"sheet":"Março","index":9,"n_rows":12,"n_cols":39,"rows_kept":12,"merged":[[4,34,4,38]]}
["REGISTRO DE PRESENÇA DO ALUNO",{"$nulls":36},"Início do Ano Escolar:",{"$f":"AnoCalendário","v":2012}]
[]
[null,null,{"$f":"TextodaChavedeCor","v":"CHAVE COLORIDA "},{"$f":"Código1","v":"T"},{"$f":"TextodeCódigo1","v":"Atrasado"},null,null,{"$f":"Código2","v":"E"},{"$f":"TextodeCódigo2","v":"Dispensado"},null,null,{"$f":"Código3","v":"U"},{"$f":"TextodeCódigo3","v":"Não Dispensado"},null,null,{"$f":"Código4","v":"P"},{"$f":"TextodeCódigo4","v":"Presente"},null,null,{"$f":"Código5","v":"N"},{"$f":"TextodeCódigo5","v":"Sem Aula"}]
[]
[null,{"$f":"DATE(AnoCalendário+1,3,1)","v":"2013-03-01"},null,{"$f":"TEXT(WEEKDAY(DATE(AnoCalendário+1,3,1),1),\"ddd\")","v":"sex"},{"$f":"TEXT(WEEKDAY(DATE(AnoCalendário+1,3,2),1),\"ddd\")","v":"sáb"},{"$f":"TEXT(WEEKDAY(DATE(AnoCalendário+1,3,3),1),\"ddd\")","v":"dom"},{"$f":"TEXT(WEEKDAY(DATE(AnoCalendário+1,3,4),1),\"ddd\")","v":"seg"},{"$f":"TEXT(WEEKDAY(DATE(AnoCalendário+1,3,5),1),\"ddd\")","v":"ter"},{"$f":"TEXT(WEEKDAY(DATE(AnoCalendário+1,3,6),1),\"ddd\")","v":"qua"},{"$f":"TEXT(WEEKDAY(DATE(AnoCalendário+1,3,7),1),\"ddd\")","v":"qui"},{"$f":"TEXT(WEEKDAY(DATE(AnoCalendário+1,3,8),1),\"ddd\")","v":"sex"},{"$f":"TEXT(WEEKDAY(DATE(AnoCalendário+1,3,9),1),\"ddd\")","v":"sáb"},{"$f":"TEXT(WEEKDAY(DATE(AnoCalendário+1,3,10),1),\"ddd\")","v":"dom"},{"$f":"TEXT(WEEKDAY(DATE(AnoCalendário+1,3,11),1),\"ddd\")","v":"seg"},{"$f":"TEXT(WEEKDAY(DATE(AnoCalendário+1,3,12),1),\"ddd\")","v":"ter"},{"$f":"TEXT(WEEKDAY(DATE(AnoCalendário+1,3,13),1),\"ddd\")","v":"qua"},{"$f":"TEXT(WEEKDAY(DATE(AnoCalendário+1,3,14),1),\"ddd\")","v":"qui"},{"$f":"TEXT(WEEKDAY(DATE(AnoCalendário+1,3,15),1),\"ddd\")","v":"sex"},{"$f":"TEXT(WEEKDAY(DATE(AnoCalendário+1,3,16),1),\"ddd\")","v":"sáb"},{"$f":"TEXT(WEEKDAY(DATE(AnoCalendário+1,3,17),1),\"ddd\")","v":"dom"},{"$f":"TEXT(WEEKDAY(DATE(AnoCalendário+1,3,18),1),\"ddd\")","v":"seg"},{"$f":"TEXT(WEEKDAY(DATE(AnoCalendário+1,3,19),1),\"ddd\")","v":"ter"},{"$f":"TEXT(WEEKDAY(DATE(AnoCalendário+1,3,20),1),\"ddd\")","v":"qua"},{"$f":"TEXT(WEEKDAY(DATE(AnoCalendário+1,3,21),1),\"ddd\")","v":"qui"},{"$f":"TEXT(WEEKDAY(DATE(AnoCalendário+1,3,22),1),\"ddd\")","v":"sex"},{"$f":"TEXT(WEEKDAY(DATE(AnoCalendário+1,3,23),1),\"ddd\")","v":"sáb"},{"$f":"TEXT(WEEKDAY(DATE(AnoCalendário+1,3,24),1),\"ddd\")","v":"dom"},{"$f":"TEXT(WEEKDAY(DATE(AnoCalendário+1,3,25),1),\"ddd\")","v":"seg"},{"$f":"TEXT(WEEKDAY(DATE(AnoCalendário+1,3,26),1),\"ddd\")","v":"ter"},{"$f":"TEXT(WEEKDAY(DATE(AnoCalendário+1,3,27),1),\"ddd\")","v":"qua"},{"$f":"TEXT(WEEKDAY(DATE(AnoCalendário+1,3,28),1),\"ddd\")","v":"qui"},{"$f":"TEXT(WEEKDAY(DATE(AnoCalendário+1,3,29),1),\"ddd\")","v":"sex"},{"$f":"TEXT(WEEKDAY(DATE(AnoCalendário+1,3,30),1),\"ddd\")","v":"sáb"},{"$f":"TEXT(WEEKDAY(DATE(AnoCalendário+1,3,31),1),\"ddd\")","v":"dom"},"Totais"]
[null,"ID do Aluno","Nome do Aluno","1","2","3","4","5","6","7","8","9","10","11","12","13","14","15","16","17","18","19","20","21","22","23","24","25","26","27","28","29","30","31","T","E","U","P","Dias de Ausência"]
[null,null,{"$f":"IFERROR(VLOOKUP(PresençaemMarço[[#This Row],[ID do Aluno]],ListadeAlunos[],18,FALSE),\"\")","v":""},{"$nulls":31},{"$f":"COUNTIF(PresençaemMarço[[#This Row],[1]:[31]],Código1)","v":0},{"$f":"COUNTIF(PresençaemMarço[[#This Row],[1]:[31]],Código2)","v":0},{"$f":"COUNTIF(PresençaemMarço[[#This Row],[1]:[31]],Código3)","v":0},{"$f":"COUNTIF(PresençaemMarço[[#This Row],[1]:[31]],Código4)","v":0},{"$f":"SUM(PresençaemMarço[[#This Row],[E]:[U]])","v":0}]
[null,null,{"$f":"IFERROR(VLOOKUP(PresençaemMarço[[#This Row],[ID do Aluno]],ListadeAlunos[],18,FALSE),\"\")","v":""},{"$nulls":31},{"$f":"COUNTIF(PresençaemMarço[[#This Row],[1]:[31]],Código1)","v":0},{"$f":"COUNTIF(PresençaemMarço[[#This Row],[1]:[31]],Código2)","v":0},{"$f":"COUNTIF(PresençaemMarço[[#This Row],[1]:[31]],Código3)","v":0},{"$f":"COUNTIF(PresençaemMarço[[#This Row],[1]:[31]],Código4)","v":0},{"$f":"SUM(PresençaemMarço[[#This Row],[E]:[U]])","v":0}]
[null,null,{"$f":"IFERROR(VLOOKUP(PresençaemMarço[[#This Row],[ID do Aluno]],ListadeAlunos[],18,FALSE),\"\")","v":""},{"$nulls":31},{"$f":"COUNTIF(PresençaemMarço[[#This Row],[1]:[31]],Código1)","v":0},{"$f":"COUNTIF(PresençaemMarço[[#This Row],[1]:[31]],Código2)","v":0},{"$f":"COUNTIF(PresençaemMarço[[#This Row],[1]:[31]],Código3)","v":0},{"$f":"COUNTIF(PresençaemMarço[[#This Row],[1]:[31]],Código4)","v":0},{"$f":"SUM(PresençaemMarço[[#This Row],[E]:[U]])","v":0}]
[null,null,{"$f":"IFERROR(VLOOKUP(PresençaemMarço[[#This Row],[ID do Aluno]],ListadeAlunos[],18,FALSE),\"\")","v":""},{"$nulls":31},{"$f":"COUNTIF(PresençaemMarço[[#This Row],[1]:[31]],Código1)","v":0},{"$f":"COUNTIF(PresençaemMarço[[#This Row],[1]:[31]],Código2)","v":0},{"$f":"COUNTIF(PresençaemMarço[[#This Row],[1]:[31]],Código3)","v":0},{"$f":"COUNTIF(PresençaemMarço[[#This Row],[1]:[31]],Código4)","v":0},{"$f":"SUM(PresençaemMarço[[#This Row],[E]:[U]])","v":0}]
[null,null,{"$f":"IFERROR(VLOOKUP(PresençaemMarço[[#This Row],[ID do Aluno]],ListadeAlunos[],18,FALSE),\"\")","v":""},{"$nulls":31},{"$f":"COUNTIF(PresençaemMarço[[#This Row],[1]:[31]],Código1)","v":0},{"$f":"COUNTIF(PresençaemMarço[[#This Row],[1]:[31]],Código2)","v":0},{"$f":"COUNTIF(PresençaemMarço[[#This Row],[1]:[31]],Código3)","v":0},{"$f":"COUNTIF(PresençaemMarço[[#This Row],[1]:[31]],Código4)","v":0},{"$f":"SUM(PresençaemMarço[[#This Row],[E]:[U]])","v":0}]
[null,null,"Total de dias de ausência",{"$f":"COUNTIF(PresençaemMarço[1],\"U\")+COUNTIF(PresençaemMarço[1],\"E\")","v":0},{"$f":"COUNTIF(PresençaemMarço[2],\"U\")+COUNTIF(PresençaemMarço[2],\"E\")","v":0},{"$f":"COUNTIF(PresençaemMarço[3],\"U\")+COUNTIF(PresençaemMarço[3],\"E\")","v":0},{"$f":"COUNTIF(PresençaemMarço[4],\"U\")+COUNTIF(PresençaemMarço[4],\"E\")","v":0},{"$f":"COUNTIF(PresençaemMarço[5],\"U\")+COUNTIF(PresençaemMarço[5],\"E\")","v":0},{"$f":"COUNTIF(PresençaemMarço[6],\"U\")+COUNTIF(PresençaemMarço[6],\"E\")","v":0},{"$f":"COUNTIF(PresençaemMarço[7],\"U\")+COUNTIF(PresençaemMarço[7],\"E\")","v":0},{"$f":"COUNTIF(PresençaemMarço[8],\"U\")+COUNTIF(PresençaemMarço[8],\"E\")","v":0},{"$f":"COUNTIF(PresençaemMarço[9],\"U\")+COUNTIF(PresençaemMarço[9],\"E\")","v":0},{"$f":"COUNTIF(PresençaemMarço[10],\"U\")+COUNTIF(PresençaemMarço[10],\"E\")","v":0},{"$f":"COUNTIF(PresençaemMarço[11],\"U\")+COUNTIF(PresençaemMarço[11],\"E\")","v":0},{"$f":"COUNTIF(PresençaemMarço[12],\"U\")+COUNTIF(PresençaemMarço[12],\"E\")","v":0},{"$f":"COUNTIF(PresençaemMarço[13],\"U\")+COUNTIF(PresençaemMarço[13],\"E\")","v":0},{"$f":"COUNTIF(PresençaemMarço[14],\"U\")+COUNTIF(PresençaemMarço[14],\"E\")","v":0},{"$f":"COUNTIF(PresençaemMarço[15],\"U\")+COUNTIF(PresençaemMarço[15],\"E\")","v":0},{"$f":"COUNTIF(PresençaemMarço[16],\"U\")+COUNTIF(PresençaemMarço[16],\"E\")","v":0},{"$f":"COUNTIF(PresençaemMarço[17],\"U\")+COUNTIF(PresençaemMarço[17],\"E\")","v":0},{"$f":"COUNTIF(PresençaemMarço[18],\"U\")+COUNTIF(PresençaemMarço[18],\"E\")","v":0},{"$f":"COUNTIF(PresençaemMarço[19],\"U\")+COUNTIF(PresençaemMarço[19],\"E\")","v":0},{"$f":"COUNTIF(PresençaemMarço[20],\"U\")+COUNTIF(PresençaemMarço[20],\"E\")","v":0},{"$f":"COUNTIF(PresençaemMarço[21],\"U\")+COUNTIF(PresençaemMarço[21],\"E\")","v":0},{"$f":"COUNTIF(PresençaemMarço[22],\"U\")+COUNTIF(PresençaemMarço[22],\"E\")","v":0},{"$f":"COUNTIF(PresençaemMarço[23],\"U\")+COUNTIF(PresençaemMarço[23],\"E\")","v":0},{"$f":"COUNTIF(PresençaemMarço[24],\"U\")+COUNTIF(PresençaemMarço[24],\"E\")","v":0},{"$f":"COUNTIF(PresençaemMarço[25],\"U\")+COUNTIF(PresençaemMarço[25],\"E\")","v":0},{"$f":"COUNTIF(PresençaemMarço[26],\"U\")+COUNTIF(PresençaemMarço[26],\"E\")","v":0},{"$f":"COUNTIF(PresençaemMarço[27],\"U\")+COUNTIF(PresençaemMarço[27],\"E\")","v":0},{"$f":"COUNTIF(PresençaemMarço[28],\"U\")+COUNTIF(PresençaemMarço[28],\"E\")","v":0},{"$f":"COUNTIF(PresençaemMarço[29],\"U\")+COUNTIF(PresençaemMarço[29],\"E\")","v":0},null,null,{"$f":"SUBTOTAL(109,PresençaemMarço[T])","v":0},{"$f":"SUBTOTAL(109,PresençaemMarço[E])","v":0},{"$f":"SUBTOTAL(109,PresençaemMarço[U])","v":0},{"$f":"SUBTOTAL(109,PresençaemMarço[P])","v":0},{"$f":"SUBTOTAL(109,PresençaemMarço[Dias de Ausência])","v":0}]

{"sheet":"Abril","index":10,"n_rows":12,"n_cols":39,"rows_kept":12,"merged":[[4,34,4,38]]}
["REGISTRO DE PRESENÇA DO ALUNO",{"$nulls":36},"Início do Ano Escolar:",{"$f":"AnoCalendário","v":2012}]
[]
[null,null,{"$f":"TextodaChavedeCor","v":"CHAVE COLORIDA "},{"$f":"Código1","v":"T"},{"$f":"TextodeCódigo1","v":"Atrasado"},null,null,{"$f":"Código2","v":"E"},{"$f":"TextodeCódigo2","v":"Dispensado"},null,null,{"$f":"Código3","v":"U"},{"$f":"TextodeCódigo3","v":"Não Dispensado"},null,null,{"$f":"Código4","v":"P"},{"$f":"TextodeCódigo4","v":"Presente"},null,null,{"$f":"Código5","v":"N"},{"$f":"TextodeCódigo5","v":"Sem Aula"}]
[]
[null,{"$f":"DATE(AnoCalendário+1,4,1)","v":"2013-04-01"},null,{"$f":"TEXT(WEEKDAY(DATE(AnoCalendário+1,4,1),1),\"ddd\")","v":"seg"},{"$f":"TEXT(WEEKDAY(DATE(AnoCalendário+1,4,2),1),\"ddd\")","v":"ter"},{"$f":"TEXT(WEEKDAY(DATE(AnoCalendário+1,4,3),1),\"ddd\")","v":"qua"},{"$f":"TEXT(WEEKDAY(DATE(AnoCalendário+1,4,4),1),\"ddd\")","v":"qui"},{"$f":"TEXT(WEEKDAY(DATE(AnoCalendário+1,4,5),1),\"ddd\")","v":"sex"},{"$f":"TEXT(WEEKDAY(DATE(AnoCalendário+1,4,6),1),\"ddd\")","v":"sáb"},{"$f":"TEXT(WEEKDAY(DATE(AnoCalendário+1,4,7),1),\"ddd\")","v":"dom"},{"$f":"TEXT(WEEKDAY(DATE(AnoCalendário+1,4,8),1),\"ddd\")","v":"seg"},{"$f":"TEXT(WEEKDAY(DATE(AnoCalendário+1,4,9),1),\"ddd\")","v":"ter"},{"$f":"TEXT(WEEKDAY(DATE(AnoCalendário+1,4,10),1),\"ddd\")","v":"qua"},{"$f":"TEXT(WEEKDAY(DATE(AnoCalendário+1,4,11),1),\"ddd\")","v":"qui"},{"$f":"TEXT(WEEKDAY(DATE(AnoCalendário+1,4,12),1),\"ddd\")","v":"sex"},{"$f":"TEXT(WEEKDAY(DATE(AnoCalendário+1,4,13),1),\"ddd\")","v":"sáb"},{"$f":"TEXT(WEEKDAY(DATE(AnoCalendário+1,4,14),1),\"ddd\")","v":"dom"},{"$f":"TEXT(WEEKDAY(DATE(AnoCalendário+1,4,15),1),\"ddd\")","v":"seg"},{"$f":"TEXT(WEEKDAY(DATE(AnoCalendário+1,4,16),1),\"ddd\")","v":"ter"},{"$f":"TEXT(WEEKDAY(DATE(AnoCalendário+1,4,17),1),\"ddd\")","v":"qua"},{"$f":"TEXT(WEEKDAY(DATE(AnoCalendário+1,4,18),1),\"ddd\")","v":"qui"},{"$f":"TEXT(WEEKDAY(DATE(AnoCalendário+1,4,19),1),\"ddd\")","v":"sex"},{"$f":"TEXT(WEEKDAY(DATE(AnoCalendário+1,4,20),1),\"ddd\")","v":"sáb"},{"$f":"TEXT(WEEKDAY(DATE(AnoCalendário+1,4,21),1),\"ddd\")","v":"dom"},{"$f":"TEXT(WEEKDAY(DATE(AnoCalendário+1,4,22),1),\"ddd\")","v":"seg"},{"$f":"TEXT(WEEKDAY(DATE(AnoCalendário+1,4,23),1),\"ddd\")","v":"ter"},{"$f":"TEXT(WEEKDAY(DATE(AnoCalendário+1,4,24),1),\"ddd\")","v":"qua"},{"$f":"TEXT(WEEKDAY(DATE(AnoCalendário+1,4,25),1),\"ddd\")","v":"qui"},{"$f":"TEXT(WEEKDAY(DATE(AnoCalendário+1,4,26),1),\"ddd\")","v":"sex"},{"$f":"TEXT(WEEKDAY(DATE(AnoCalendário+1,4,27),1),\"ddd\")","v":"sáb"},{"$f":"TEXT(WEEKDAY(DATE(AnoCalendário+1,4,28),1),\"ddd\")","v":"dom"},{"$f":"TEXT(WEEKDAY(DATE(AnoCalendário+1,4,29),1),\"ddd\")","v":"seg"},{"$f":"TEXT(WEEKDAY(DATE(AnoCalendário+1,4,30),1),\"ddd\")","v":"ter"},null,"Totais"]
[null,"ID do Aluno","Nome do Aluno","1","2","3","4","5","6","7","8","9","10","11","12","13","14","15","16","17","18","19","20","21","22","23","24","25","26","27","28","29","30"," ","T","E","U","P","Dias de Ausência"]
[null,null,{"$f":"IFERROR(VLOOKUP(PresençaemAbril[[#This Row],[ID do Aluno]],ListadeAlunos[],18,FALSE),\"\")","v":""},{"$nulls":31},{"$f":"COUNTIF(PresençaemAbril[[#This Row],[1]:[ ]],Código1)","v":0},{"$f":"COUNTIF(PresençaemAbril[[#This Row],[1]:[ ]],Código2)","v":0},{"$f":"COUNTIF(PresençaemAbril[[#This Row],[1]:[ ]],Código3)","v":0},{"$f":"COUNTIF(PresençaemAbril[[#This Row],[1]:[ ]],Código4)","v":0},{"$f":"SUM(PresençaemAbril[[#This Row],[E]:[U]])","v":0}]
[null,null,{"$f":"IFERROR(VLOOKUP(PresençaemAbril[[#This Row],[ID do Aluno]],ListadeAlunos[],18,FALSE),\"\")","v":""},{"$nulls":31},{"$f":"COUNTIF(PresençaemAbril[[#This Row],[1]:[ ]],Código1)","v":0},{"$f":"COUNTIF(PresençaemAbril[[#This Row],[1]:[ ]],Código2)","v":0},{"$f":"COUNTIF(PresençaemAbril[[#This Row],[1]:[ ]],Código3)","v":0},{"$f":"COUNTIF(PresençaemAbril[[#This Row],[1]:[ ]],Código4)","v":0},{"$f":"SUM(PresençaemAbril[[#This Row],[E]:[U]])","v":0}]
[null,null,{"$f":"IFERROR(VLOOKUP(PresençaemAbril[[#This Row],[ID do Aluno]],ListadeAlunos[],18,FALSE),\"\")","v":""},{"$nulls":31},{"$f":"COUNTIF(PresençaemAbril[[#This Row],[1]:[ ]],Código1)","v":0},{"$f":"COUNTIF(PresençaemAbril[[#This Row],[1]:[ ]],Código2)","v":0},{"$f":"COUNTIF(PresençaemAbril[[#This Row],[1]:[ ]],Código3)","v":0},{"$f":"COUNTIF(PresençaemAbril[[#This Row],[1]:[ ]],Código4)","v":0},{"$f":"SUM(PresençaemAbril[[#This Row],[E]:[U]])","v":0}]
[null,null,{"$f":"IFERROR(VLOOKUP(PresençaemAbril[[#This Row],[ID do Aluno]],ListadeAlunos[],18,FALSE),\"\")","v":""},{"$nulls":31},{"$f":"COUNTIF(PresençaemAbril[[#This Row],[1]:[ ]],Código1)","v":0},{"$f":"COUNTIF(PresençaemAbril[[#This Row],[1]:[ ]],Código2)","v":0},{"$f":"COUNTIF(PresençaemAbril[[#This Row],[1]:[ ]],Código3)","v":0},{"$f":"COUNTIF(PresençaemAbril[[#This Row],[1]:[ ]],Código4)","v":0},{"$f":"SUM(PresençaemAbril[[#This Row],[E]:[U]])","v":0}]
[null,null,{"$f":"IFERROR(VLOOKUP(PresençaemAbril[[#This Row],[ID do Aluno]],ListadeAlunos[],18,FALSE),\"\")","v":""},{"$nulls":31},{"$f":"COUNTIF(PresençaemAbril[[#This Row],[1]:[ ]],Código1)","v":0},{"$f":"COUNTIF(PresençaemAbril[[#This Row],[1]:[ ]],Código2)","v":0},{"$f":"COUNTIF(PresençaemAbril[[#This Row],[1]:[ ]],Código3)","v":0},{"$f":"COUNTIF(PresençaemAbril[[#This Row],[1]:[ ]],Código4)","v":0},{"$f":"SUM(PresençaemAbril[[#This Row],[E]:[U]])","v":0}]
[null,null,"Total de dias de ausência",{"$f":"COUNTIF(PresençaemAbril[1],\"U\")+COUNTIF(PresençaemAbril[1],\"E\")","v":0},{"$f":"COUNTIF(PresençaemAbril[2],\"U\")+COUNTIF(PresençaemAbril[2],\"E\")","v":0},{"$f":"COUNTIF(PresençaemAbril[3],\"U\")+COUNTIF(PresençaemAbril[3],\"E\")","v":0},{"$f":"COUNTIF(PresençaemAbril[4],\"U\")+COUNTIF(PresençaemAbril[4],\"E\")","v":0},{"$f":"COUNTIF(PresençaemAbril[5],\"U\")+COUNTIF(PresençaemAbril[5],\"E\")","v":0},{"$f":"COUNTIF(PresençaemAbril[6],\"U\")+COUNTIF(PresençaemAbril[6],\"E\")","v":0},{"$f":"COUNTIF(PresençaemAbril[7],\"U\")+COUNTIF(PresençaemAbril[7],\"E\")","v":0},{"$f":"COUNTIF(PresençaemAbril[8],\"U\")+COUNTIF(PresençaemAbril[8],\"E\")","v":0},{"$f":"COUNTIF(PresençaemAbril[9],\"U\")+COUNTIF(PresençaemAbril[9],\"E\")","v":0},{"$f":"COUNTIF(PresençaemAbril[10],\"U\")+COUNTIF(PresençaemAbril[10],\"E\")","v":0},{"$f":"COUNTIF(PresençaemAbril[11],\"U\")+COUNTIF(PresençaemAbril[11],\"E\")","v":0},{"$f":"COUNTIF(PresençaemAbril[12],\"U\")+COUNTIF(PresençaemAbril[12],\"E\")","v":0},{"$f":"COUNTIF(PresençaemAbril[13],\"U\")+COUNTIF(PresençaemAbril[13],\"E\")","v":0},{"$f":"COUNTIF(PresençaemAbril[14],\"U\")+COUNTIF(PresençaemAbril[14],\"E\")","v":0},{"$f":"COUNTIF(PresençaemAbril[15],\"U\")+COUNTIF(PresençaemAbril[15],\"E\")","v":0},{"$f":"COUNTIF(PresençaemAbril[16],\"U\")+COUNTIF(PresençaemAbril[16],\"E\")","v":0},{"$f":"COUNTIF(PresençaemAbril[17],\"U\")+COUNTIF(PresençaemAbril[17],\"E\")","v":0},{"$f":"COUNTIF(PresençaemAbril[18],\"U\")+COUNTIF(PresençaemAbril[18],\"E\")","v":0},{"$f":"COUNTIF(PresençaemAbril[19],\"U\")+COUNTIF(PresençaemAbril[19],\"E\")","v":0},{"$f":"COUNTIF(PresençaemAbril[20],\"U\")+COUNTIF(PresençaemAbril[20],\"E\")","v":0},{"$f":"COUNTIF(PresençaemAbril[21],\"U\")+COUNTIF(PresençaemAbril[21],\"E\")","v":0},{"$f":"COUNTIF(PresençaemAbril[22],\"U\")+COUNTIF(PresençaemAbril[22],\"E\")","v":0},{"$f":"COUNTIF(PresençaemAbril[23],\"U\")+COUNTIF(PresençaemAbril[23],\"E\")","v":0},{"$f":"COUNTIF(PresençaemAbril[24],\"U\")+COUNTIF(PresençaemAbril[24],\"E\")","v":0},{"$f":"COUNTIF(PresençaemAbril[25],\"U\")+COUNTIF(PresençaemAbril[25],\"E\")","v":0},{"$f":"COUNTIF(PresençaemAbril[26],\"U\")+COUNTIF(PresençaemAbril[26],\"E\")","v":0},{"$f":"COUNTIF(PresençaemAbril[27],\"U\")+COUNTIF(PresençaemAbril[27],\"E\")","v":0},{"$f":"COUNTIF(PresençaemAbril[28],\"U\")+COUNTIF(PresençaemAbril[28],\"E\")","v":0},{"$f":"COUNTIF(PresençaemAbril[29],\"U\")+COUNTIF(PresençaemAbril[29],\"E\")","v":0},null,null,{"$f":"SUBTOTAL(109,PresençaemAbril[T])","v":0},{"$f":"SUBTOTAL(109,PresençaemAbril[E])","v":0},{"$f":"SUBTOTAL(109,PresençaemAbril[U])","v":0},{"$f":"SUBTOTAL(109,PresençaemAbril[P])","v":0},{"$f":"SUBTOTAL(109,PresençaemAbril[Dias de Ausência])","v":0}]

{"sheet":"Maio","index":11,"n_rows":12,"n_cols":39,"rows_kept":12,"merged":[[4,34,4,38]]}
["REGISTRO DE PRESENÇA DO ALUNO",{"$nulls":36},"Início do Ano Escolar:",{"$f":"AnoCalendário","v":2012}]
[]
[null,null,{"$f":"TextodaChavedeCor","v":"CHAVE COLORIDA "},{"$f":"Código1","v":"T"},{"$f":"TextodeCódigo1","v":"Atrasado"},null,null,{"$f":"Código2","v":"E"},{"$f":"TextodeCódigo2","v":"Dispensado"},null,null,{"$f":"Código3","v":"U"},{"$f":"TextodeCódigo3","v":"Não Dispensado"},null,null,{"$f":"Código4","v":"P"},{"$f":"TextodeCódigo4","v":"Presente"},null,null,{"$f":"Código5","v":"N"},{"$f":"TextodeCódigo5","v":"Sem Aula"}]
[]
[null,{"$f":"DATE(AnoCalendário+1,5,1)","v":"2013-05-01"},null,{"$f":"TEXT(WEEKDAY(DATE(AnoCalendário+1,5,1),1),\"ddd\")","v":"qua"},{"$f":"TEXT(WEEKDAY(DATE(AnoCalendário+1,5,2),1),\"ddd\")","v":"qui"},{"$f":"TEXT(WEEKDAY(DATE(AnoCalendário+1,5,3),1),\"ddd\")","v":"sex"},{"$f":"TEXT(WEEKDAY(DATE(AnoCalendário+1,5,4),1),\"ddd\")","v":"sáb"},{"$f":"TEXT(WEEKDAY(DATE(AnoCalendário+1,5,5),1),\"ddd\")","v":"dom"},{"$f":"TEXT(WEEKDAY(DATE(AnoCalendário+1,5,6),1),\"ddd\")","v":"seg"},{"$f":"TEXT(WEEKDAY(DATE(AnoCalendário+1,5,7),1),\"ddd\")","v":"ter"},{"$f":"TEXT(WEEKDAY(DATE(AnoCalendário+1,5,8),1),\"ddd\")","v":"qua"},{"$f":"TEXT(WEEKDAY(DATE(AnoCalendário+1,5,9),1),\"ddd\")","v":"qui"},{"$f":"TEXT(WEEKDAY(DATE(AnoCalendário+1,5,10),1),\"ddd\")","v":"sex"},{"$f":"TEXT(WEEKDAY(DATE(AnoCalendário+1,5,11),1),\"ddd\")","v":"sáb"},{"$f":"TEXT(WEEKDAY(DATE(AnoCalendário+1,5,12),1),\"ddd\")","v":"dom"},{"$f":"TEXT(WEEKDAY(DATE(AnoCalendário+1,5,13),1),\"ddd\")","v":"seg"},{"$f":"TEXT(WEEKDAY(DATE(AnoCalendário+1,5,14),1),\"ddd\")","v":"ter"},{"$f":"TEXT(WEEKDAY(DATE(AnoCalendário+1,5,15),1),\"ddd\")","v":"qua"},{"$f":"TEXT(WEEKDAY(DATE(AnoCalendário+1,5,16),1),\"ddd\")","v":"qui"},{"$f":"TEXT(WEEKDAY(DATE(AnoCalendário+1,5,17),1),\"ddd\")","v":"sex"},{"$f":"TEXT(WEEKDAY(DATE(AnoCalendário+1,5,18),1),\"ddd\")","v":"sáb"},{"$f":"TEXT(WEEKDAY(DATE(AnoCalendário+1,5,19),1),\"ddd\")","v":"dom"},{"$f":"TEXT(WEEKDAY(DATE(AnoCalendário+1,5,20),1),\"ddd\")","v":"seg"},{"$f":"TEXT(WEEKDAY(DATE(AnoCalendário+1,5,21),1),\"ddd\")","v":"ter"},{"$f":"TEXT(WEEKDAY(DATE(AnoCalendário+1,5,22),1),\"ddd\")","v":"qua"},{"$f":"TEXT(WEEKDAY(DATE(AnoCalendário+1,5,23),1),\"ddd\")","v":"qui"},{"$f":"TEXT(WEEKDAY(DATE(AnoCalendário+1,5,24),1),\"ddd\")","v":"sex"},{"$f":"TEXT(WEEKDAY(DATE(AnoCalendário+1,5,25),1),\"ddd\")","v":"sáb"},{"$f":"TEXT(WEEKDAY(DATE(AnoCalendário+1,5,26),1),\"ddd\")","v":"dom"},{"$f":"TEXT(WEEKDAY(DATE(AnoCalendário+1,5,27),1),\"ddd\")","v":"seg"},{"$f":"TEXT(WEEKDAY(DATE(AnoCalendário+1,5,28),1),\"ddd\")","v":"ter"},{"$f":"TEXT(WEEKDAY(DATE(AnoCalendário+1,5,29),1),\"ddd\")","v":"qua"},{"$f":"TEXT(WEEKDAY(DATE(AnoCalendário+1,5,30),1),\"ddd\")","v":"qui"},{"$f":"TEXT(WEEKDAY(DATE(AnoCalendário+1,5,31),1),\"ddd\")","v":"sex"},"Totais"]
[null,"ID do Aluno","Nome do Aluno","1","2","3","4","5","6","7","8","9","10","11","12","13","14","15","16","17","18","19","20","21","22","23","24","25","26","27","28","29","30","31","T","E","U","P","Dias de Ausência"]
[null,null,{"$f":"IFERROR(VLOOKUP(PresençaemMaio[[#This Row],[ID do Aluno]],ListadeAlunos[],18,FALSE),\"\")","v":""},{"$nulls":31},{"$f":"COUNTIF(PresençaemMaio[[#This Row],[1]:[31]],Código1)","v":0},{"$f":"COUNTIF(PresençaemMaio[[#This Row],[1]:[31]],Código2)","v":0},{"$f":"COUNTIF(PresençaemMaio[[#This Row],[1]:[31]],Código3)","v":0},{"$f":"COUNTIF(PresençaemMaio[[#This Row],[1]:[31]],Código4)","v":0},{"$f":"SUM(PresençaemMaio[[#This Row],[E]:[U]])","v":0}]
[null,null,{"$f":"IFERROR(VLOOKUP(PresençaemMaio[[#This Row],[ID do Aluno]],ListadeAlunos[],18,FALSE),\"\")","v":""},{"$nulls":31},{"$f":"COUNTIF(PresençaemMaio[[#This Row],[1]:[31]],Código1)","v":0},{"$f":"COUNTIF(PresençaemMaio[[#This Row],[1]:[31]],Código2)","v":0},{"$f":"COUNTIF(PresençaemMaio[[#This Row],[1]:[31]],Código3)","v":0},{"$f":"COUNTIF(PresençaemMaio[[#This Row],[1]:[31]],Código4)","v":0},{"$f":"SUM(PresençaemMaio[[#This Row],[E]:[U]])","v":0}]
[null,null,{"$f":"IFERROR(VLOOKUP(PresençaemMaio[[#This Row],[ID do Aluno]],ListadeAlunos[],18,FALSE),\"\")","v":""},{"$nulls":31},{"$f":"COUNTIF(PresençaemMaio[[#This Row],[1]:[31]],Código1)","v":0},{"$f":"COUNTIF(PresençaemMaio[[#This Row],[1]:[31]],Código2)","v":0},{"$f":"COUNTIF(PresençaemMaio[[#This Row],[1]:[31]],Código3)","v":0},{"$f":"COUNTIF(PresençaemMaio[[#This Row],[1]:[31]],Código4)","v":0},{"$f":"SUM(PresençaemMaio[[#This Row],[E]:[U]])","v":0}]
[null,null,{"$f":"IFERROR(VLOOKUP(PresençaemMaio[[#This Row],[ID do Aluno]],ListadeAlunos[],18,FALSE),\"\")","v":""},{"$nulls":31},{"$f":"COUNTIF(PresençaemMaio[[#This Row],[1]:[31]],Código1)","v":0},{"$f":"COUNTIF(PresençaemMaio[[#This Row],[1]:[31]],Código2)","v":0},{"$f":"COUNTIF(PresençaemMaio[[#This Row],[1]:[31]],Código3)","v":0},{"$f":"COUNTIF(PresençaemMaio[[#This Row],[1]:[31]],Código4)","v":0},{"$f":"SUM(PresençaemMaio[[#This Row],[E]:[U]])","v":0}]
[null,null,{"$f":"IFERROR(VLOOKUP(PresençaemMaio[[#This Row],[ID do Aluno]],ListadeAlunos[],18,FALSE),\"\")","v":""},{"$nulls":31},{"$f":"COUNTIF(PresençaemMaio[[#This Row],[1]:[31]],Código1)","v":0},{"$f":"COUNTIF(PresençaemMaio[[#This Row],[1]:[31]],Código2)","v":0},{"$f":"COUNTIF(PresençaemMaio[[#This Row],[1]:[31]],Código3)","v":0},{"$f":"COUNTIF(PresençaemMaio[[#This Row],[1]:[31]],Código4)","v":0},{"$f":"SUM(PresençaemMaio[[#This Row],[E]:[U]])","v":0}]
[null,null,"Total de dias de ausência",{"$f":"COUNTIF(PresençaemMaio[1],\"U\")+COUNTIF(PresençaemMaio[1],\"E\")","v":0},{"$f":"COUNTIF(PresençaemMaio[2],\"U\")+COUNTIF(PresençaemMaio[2],\"E\")","v":0},{"$f":"COUNTIF(PresençaemMaio[3],\"U\")+COUNTIF(PresençaemMaio[3],\"E\")","v":0},{"$f":"COUNTIF(PresençaemMaio[4],\"U\")+COUNTIF(PresençaemMaio[4],\"E\")","v":0},{"$f":"COUNTIF(PresençaemMaio[5],\"U\")+COUNTIF(PresençaemMaio[5],\"E\")","v":0},{"$f":"COUNTIF(PresençaemMaio[6],\"U\")+COUNTIF(PresençaemMaio[6],\"E\")","v":0},{"$f":"COUNTIF(PresençaemMaio[7],\"U\")+COUNTIF(PresençaemMaio[7],\"E\")","v":0},{"$f":"COUNTIF(PresençaemMaio[8],\"U\")+COUNTIF(PresençaemMaio[8],\"E\")","v":0},{"$f":"COUNTIF(PresençaemMaio[9],\"U\")+COUNTIF(PresençaemMaio[9],\"E\")","v":0},{"$f":"COUNTIF(PresençaemMaio[10],\"U\")+COUNTIF(PresençaemMaio[10],\"E\")","v":0},{"$f":"COUNTIF(PresençaemMaio[11],\"U\")+COUNTIF(PresençaemMaio[11],\"E\")","v":0},{"$f":"COUNTIF(PresençaemMaio[12],\"U\")+COUNTIF(PresençaemMaio[12],\"E\")","v":0},{"$f":"COUNTIF(PresençaemMaio[13],\"U\")+COUNTIF(PresençaemMaio[13],\"E\")","v":0},{"$f":"COUNTIF(PresençaemMaio[14],\"U\")+COUNTIF(PresençaemMaio[14],\"E\")","v":0},{"$f":"COUNTIF(PresençaemMaio[15],\"U\")+COUNTIF(PresençaemMaio[15],\"E\")","v":0},{"$f":"COUNTIF(PresençaemMaio[16],\"U\")+COUNTIF(PresençaemMaio[16],\"E\")","v":0},{"$f":"COUNTIF(PresençaemMaio[17],\"U\")+COUNTIF(PresençaemMaio[17],\"E\")","v":0},{"$f":"COUNTIF(PresençaemMaio[18],\"U\")+COUNTIF(PresençaemMaio[18],\"E\")","v":0},{"$f":"COUNTIF(PresençaemMaio[19],\"U\")+COUNTIF(PresençaemMaio[19],\"E\")","v":0},{"$f":"COUNTIF(PresençaemMaio[20],\"U\")+COUNTIF(PresençaemMaio[20],\"E\")","v":0},{"$f":"COUNTIF(PresençaemMaio[21],\"U\")+COUNTIF(PresençaemMaio[21],\"E\")","v":0},{"$f":"COUNTIF(PresençaemMaio[22],\"U\")+COUNTIF(PresençaemMaio[22],\"E\")","v":0},{"$f":"COUNTIF(PresençaemMaio[23],\"U\")+COUNTIF(PresençaemMaio[23],\"E\")","v":0},{"$f":"COUNTIF(PresençaemMaio[24],\"U\")+COUNTIF(PresençaemMaio[24],\"E\")","v":0},{"$f":"COUNTIF(PresençaemMaio[25],\"U\")+COUNTIF(PresençaemMaio[25],\"E\")","v":0},{"$f":"COUNTIF(PresençaemMaio[26],\"U\")+COUNTIF(PresençaemMaio[26],\"E\")","v":0},{"$f":"COUNTIF(PresençaemMaio[27],\"U\")+COUNTIF(PresençaemMaio[27],\"E\")","v":0},{"$f":"COUNTIF(PresençaemMaio[28],\"U\")+COUNTIF(PresençaemMaio[28],\"E\")","v":0},{"$f":"COUNTIF(PresençaemMaio[29],\"U\")+COUNTIF(PresençaemMaio[29],\"E\")","v":0},null,null,{"$f":"SUBTOTAL(109,PresençaemMaio[T])","v":0},{"$f":"SUBTOTAL(109,PresençaemMaio[E])","v":0},{"$f":"SUBTOTAL(109,PresençaemMaio[U])","v":0},{"$f":"SUBTOTAL(109,PresençaemMaio[P])","v":0},{"$f":"SUBTOTAL(109,PresençaemMaio[Dias de Ausência])","v":0}]

{"sheet":"Junho","index":12,"n_rows":12,"n_cols":39,"rows_kept":12,"merged":[[4,34,4,38]]}
["REGISTRO DE PRESENÇA DO ALUNO",{"$nulls":36},"Início do Ano Escolar:",{"$f":"AnoCalendário","v":2012}]
[]
[null,null,{"$f":"TextodaChavedeCor","v":"CHAVE COLORIDA "},{"$f":"Código1","v":"T"},{"$f":"TextodeCódigo1","v":"Atrasado"},null,null,{"$f":"Código2","v":"E"},{"$f":"TextodeCódigo2","v":"Dispensado"},null,null,{"$f":"Código3","v":"U"},{"$f":"TextodeCódigo3","v":"Não Dispensado"},null,null,{"$f":"Código4","v":"P"},{"$f":"TextodeCódigo4","v":"Presente"},null,null,{"$f":"Código5","v":"N"},{"$f":"TextodeCódigo5","v":"Sem Aula"}]
[]
[null,{"$f":"DATE(AnoCalendário+1,6,1)","v":"2013-06-01"},null,{"$f":"TEXT(WEEKDAY(DATE(AnoCalendário+1,6,1),1),\"ddd\")","v":"sáb"},{"$f":"TEXT(WEEKDAY(DATE(AnoCalendário+1,6,2),1),\"ddd\")","v":"dom"},{"$f":"TEXT(WEEKDAY(DATE(AnoCalendário+1,6,3),1),\"ddd\")","v":"seg"},{"$f":"TEXT(WEEKDAY(DATE(AnoCalendário+1,6,4),1),\"ddd\")","v":"ter"},{"$f":"TEXT(WEEKDAY(DATE(AnoCalendário+1,6,5),1),\"ddd\")","v":"qua"},{"$f":"TEXT(WEEKDAY(DATE(AnoCalendário+1,6,6),1),\"ddd\")","v":"qui"},{"$f":"TEXT(WEEKDAY(DATE(AnoCalendário+1,6,7),1),\"ddd\")","v":"sex"},{"$f":"TEXT(WEEKDAY(DATE(AnoCalendário+1,6,8),1),\"ddd\")","v":"sáb"},{"$f":"TEXT(WEEKDAY(DATE(AnoCalendário+1,6,9),1),\"ddd\")","v":"dom"},{"$f":"TEXT(WEEKDAY(DATE(AnoCalendário+1,6,10),1),\"ddd\")","v":"seg"},{"$f":"TEXT(WEEKDAY(DATE(AnoCalendário+1,6,11),1),\"ddd\")","v":"ter"},{"$f":"TEXT(WEEKDAY(DATE(AnoCalendário+1,6,12),1),\"ddd\")","v":"qua"},{"$f":"TEXT(WEEKDAY(DATE(AnoCalendário+1,6,13),1),\"ddd\")","v":"qui"},{"$f":"TEXT(WEEKDAY(DATE(AnoCalendário+1,6,14),1),\"ddd\")","v":"sex"},{"$f":"TEXT(WEEKDAY(DATE(AnoCalendário+1,6,15),1),\"ddd\")","v":"sáb"},{"$f":"TEXT(WEEKDAY(DATE(AnoCalendário+1,6,16),1),\"ddd\")","v":"dom"},{"$f":"TEXT(WEEKDAY(DATE(AnoCalendário+1,6,17),1),\"ddd\")","v":"seg"},{"$f":"TEXT(WEEKDAY(DATE(AnoCalendário+1,6,18),1),\"ddd\")","v":"ter"},{"$f":"TEXT(WEEKDAY(DATE(AnoCalendário+1,6,19),1),\"ddd\")","v":"qua"},{"$f":"TEXT(WEEKDAY(DATE(AnoCalendário+1,6,20),1),\"ddd\")","v":"qui"},{"$f":"TEXT(WEEKDAY(DATE(AnoCalendário+1,6,21),1),\"ddd\")","v":"sex"},{"$f":"TEXT(WEEKDAY(DATE(AnoCalendário+1,6,22),1),\"ddd\")","v":"sáb"},{"$f":"TEXT(WEEKDAY(DATE(AnoCalendário+1,6,23),1),\"ddd\")","v":"dom"},{"$f":"TEXT(WEEKDAY(DATE(AnoCalendário+1,6,24),1),\"ddd\")","v":"seg"},{"$f":"TEXT(WEEKDAY(DATE(AnoCalendário+1,6,25),1),\"ddd\")","v":"ter"},{"$f":"TEXT(WEEKDAY(DATE(AnoCalendário+1,6,26),1),\"ddd\")","v":"qua"},{"$f":"TEXT(WEEKDAY(DATE(AnoCalendário+1,6,27),1),\"ddd\")","v":"qui"},{"$f":"TEXT(WEEKDAY(DATE(AnoCalendário+1,6,28),1),\"ddd\")","v":"sex"},{"$f":"TEXT(WEEKDAY(DATE(AnoCalendário+1,6,29),1),\"ddd\")","v":"sáb"},{"$f":"TEXT(WEEKDAY(DATE(AnoCalendário+1,6,30),1),\"ddd\")","v":"dom"},null,"Totais"]
[null,"ID do Aluno","Nome do Aluno","1","2","3","4","5","6","7","8","9","10","11","12","13","14","15","16","17","18","19","20","21","22","23","24","25","26","27","28","29","30"," ","T","E","U","P","Dias de Ausência"]
[null,null,{"$f":"IFERROR(VLOOKUP(PresençaemJunho[[#This Row],[ID do Aluno]],ListadeAlunos[],18,FALSE),\"\")","v":""},{"$nulls":31},{"$f":"COUNTIF(PresençaemJunho[[#This Row],[1]:[ ]],Código1)","v":0},{"$f":"COUNTIF(PresençaemJunho[[#This Row],[1]:[ ]],Código2)","v":0},{"$f":"COUNTIF(PresençaemJunho[[#This Row],[1]:[ ]],Código3)","v":0},{"$f":"COUNTIF(PresençaemJunho[[#This Row],[1]:[ ]],Código4)","v":0},{"$f":"SUM(PresençaemJunho[[#This Row],[E]:[U]])","v":0}]
[null,null,{"$f":"IFERROR(VLOOKUP(PresençaemJunho[[#This Row],[ID do Aluno]],ListadeAlunos[],18,FALSE),\"\")","v":""},{"$nulls":31},{"$f":"COUNTIF(PresençaemJunho[[#This Row],[1]:[ ]],Código1)","v":0},{"$f":"COUNTIF(PresençaemJunho[[#This Row],[1]:[ ]],Código2)","v":0},{"$f":"COUNTIF(PresençaemJunho[[#This Row],[1]:[ ]],Código3)","v":0},{"$f":"COUNTIF(PresençaemJunho[[#This Row],[1]:[ ]],Código4)","v":0},{"$f":"SUM(PresençaemJunho[[#This Row],[E]:[U]])","v":0}]
[null,null,{"$f":"IFERROR(VLOOKUP(PresençaemJunho[[#This Row],[ID do Aluno]],ListadeAlunos[],18,FALSE),\"\")","v":""},{"$nulls":31},{"$f":"COUNTIF(PresençaemJunho[[#This Row],[1]:[ ]],Código1)","v":0},{"$f":"COUNTIF(PresençaemJunho[[#This Row],[1]:[ ]],Código2)","v":0},{"$f":"COUNTIF(PresençaemJunho[[#This Row],[1]:[ ]],Código3)","v":0},{"$f":"COUNTIF(PresençaemJunho[[#This Row],[1]:[ ]],Código4)","v":0},{"$f":"SUM(PresençaemJunho[[#This Row],[E]:[U]])","v":0}]
[null,null,{"$f":"IFERROR(VLOOKUP(PresençaemJunho[[#This Row],[ID do Aluno]],ListadeAlunos[],18,FALSE),\"\")","v":""},{"$nulls":31},{"$f":"COUNTIF(PresençaemJunho[[#This Row],[1]:[ ]],Código1)","v":0},{"$f":"COUNTIF(PresençaemJunho[[#This Row],[1]:[ ]],Código2)","v":0},{"$f":"COUNTIF(PresençaemJunho[[#This Row],[1]:[ ]],Código3)","v":0},{"$f":"COUNTIF(PresençaemJunho[[#This Row],[1]:[ ]],Código4)","v":0},{"$f":"SUM(PresençaemJunho[[#This Row],[E]:[U]])","v":0}]
[null,null,{"$f":"IFERROR(VLOOKUP(PresençaemJunho[[#This Row],[ID do Aluno]],ListadeAlunos[],18,FALSE),\"\")","v":""},{"$nulls":31},{"$f":"COUNTIF(PresençaemJunho[[#This Row],[1]:[ ]],Código1)","v":0},{"$f":"COUNTIF(PresençaemJunho[[#This Row],[1]:[ ]],Código2)","v":0},{"$f":"COUNTIF(PresençaemJunho[[#This Row],[1]:[ ]],Código3)","v":0},{"$f":"COUNTIF(PresençaemJunho[[#This Row],[1]:[ ]],Código4)","v":0},{"$f":"SUM(PresençaemJunho[[#This Row],[E]:[U]])","v":0}]
[null,null,"Total de dias de ausência",{"$f":"COUNTIF(PresençaemJunho[1],\"U\")+COUNTIF(PresençaemJunho[1],\"E\")","v":0},{"$f":"COUNTIF(PresençaemJunho[2],\"U\")+COUNTIF(PresençaemJunho[2],\"E\")","v":0},{"$f":"COUNTIF(PresençaemJunho[3],\"U\")+COUNTIF(PresençaemJunho[3],\"E\")","v":0},{"$f":"COUNTIF(PresençaemJunho[4],\"U\")+COUNTIF(PresençaemJunho[4],\"E\")","v":0},{"$f":"COUNTIF(PresençaemJunho[5],\"U\")+COUNTIF(PresençaemJunho[5],\"E\")","v":0},{"$f":"COUNTIF(PresençaemJunho[6],\"U\")+COUNTIF(PresençaemJunho[6],\"E\")","v":0},{"$f":"COUNTIF(PresençaemJunho[7],\"U\")+COUNTIF(PresençaemJunho[7],\"E\")","v":0},{"$f":"COUNTIF(PresençaemJunho[8],\"U\")+COUNTIF(PresençaemJunho[8],\"E\")","v":0},{"$f":"COUNTIF(PresençaemJunho[9],\"U\")+COUNTIF(PresençaemJunho[9],\"E\")","v":0},{"$f":"COUNTIF(PresençaemJunho[10],\"U\")+COUNTIF(PresençaemJunho[10],\"E\")","v":0},{"$f":"COUNTIF(PresençaemJunho[11],\"U\")+COUNTIF(PresençaemJunho[11],\"E\")","v":0},{"$f":"COUNTIF(PresençaemJunho[12],\"U\")+COUNTIF(PresençaemJunho[12],\"E\")","v":0},{"$f":"COUNTIF(PresençaemJunho[13],\"U\")+COUNTIF(PresençaemJunho[13],\"E\")","v":0},{"$f":"COUNTIF(PresençaemJunho[14],\"U\")+COUNTIF(PresençaemJunho[14],\"E\")","v":0},{"$f":"COUNTIF(PresençaemJunho[15],\"U\")+COUNTIF(PresençaemJunho[15],\"E\")","v":0},{"$f":"COUNTIF(PresençaemJunho[16],\"U\")+COUNTIF(PresençaemJunho[16],\"E\")","v":0},{"$f":"COUNTIF(PresençaemJunho[17],\"U\")+COUNTIF(PresençaemJunho[17],\"E\")","v":0},{"$f":"COUNTIF(PresençaemJunho[18],\"U\")+COUNTIF(PresençaemJunho[18],\"E\")","v":0},{"$f":"COUNTIF(PresençaemJunho[19],\"U\")+COUNTIF(PresençaemJunho[19],\"E\")","v":0},{"$f":"COUNTIF(PresençaemJunho[20],\"U\")+COUNTIF(PresençaemJunho[20],\"E\")","v":0},{"$f":"COUNTIF(PresençaemJunho[21],\"U\")+COUNTIF(PresençaemJunho[21],\"E\")","v":0},{"$f":"COUNTIF(PresençaemJunho[22],\"U\")+COUNTIF(PresençaemJunho[22],\"E\")","v":0},{"$f":"COUNTIF(PresençaemJunho[23],\"U\")+COUNTIF(PresençaemJunho[23],\"E\")","v":0},{"$f":"COUNTIF(PresençaemJunho[24],\"U\")+COUNTIF(PresençaemJunho[24],\"E\")","v":0},{"$f":"COUNTIF(PresençaemJunho[25],\"U\")+COUNTIF(PresençaemJunho[25],\"E\")","v":0},{"$f":"COUNTIF(PresençaemJunho[26],\"U\")+COUNTIF(PresençaemJunho[26],\"E\")","v":0},{"$f":"COUNTIF(PresençaemJunho[27],\"U\")+COUNTIF(PresençaemJunho[27],\"E\")","v":0},{"$f":"COUNTIF(PresençaemJunho[28],\"U\")+COUNTIF(PresençaemJunho[28],\"E\")","v":0},{"$f":"COUNTIF(PresençaemJunho[29],\"U\")+COUNTIF(PresençaemJunho[29],\"E\")","v":0},null,null,{"$f":"SUBTOTAL(109,PresençaemJunho[T])","v":0},{"$f":"SUBTOTAL(109,PresençaemJunho[E])","v":0},{"$f":"SUBTOTAL(109,PresençaemJunho[U])","v":0},{"$f":"SUBTOTAL(109,PresençaemJunho[P])","v":0},{"$f":"SUBTOTAL(109,PresençaemJunho[Dias de Ausência])","v":0}]

{"sheet":"Julho","index":13,"n_rows":12,"n_cols":39,"rows_kept":12,"merged":[[4,34,4,38]]}
["REGISTRO DE PRESENÇA DO ALUNO",{"$nulls":36},"Início do Ano Escolar:",{"$f":"AnoCalendário","v":2012}]
[]
[null,null,{"$f":"TextodaChavedeCor","v":"CHAVE COLORIDA "},{"$f":"Código1","v":"T"},{"$f":"TextodeCódigo1","v":"Atrasado"},null,null,{"$f":"Código2","v":"E"},{"$f":"TextodeCódigo2","v":"Dispensado"},null,null,{"$f":"Código3","v":"U"},{"$f":"TextodeCódigo3","v":"Não Dispensado"},null,null,{"$f":"Código4","v":"P"},{"$f":"TextodeCódigo4","v":"Presente"},null,null,{"$f":"Código5","v":"N"},{"$f":"TextodeCódigo5","v":"Sem Aula"}]
[]
[null,{"$f":"DATE(AnoCalendário+1,7,1)","v":"2013-07-01"},null,{"$f":"TEXT(WEEKDAY(DATE(AnoCalendário+1,7,1),1),\"ddd\")","v":"seg"},{"$f":"TEXT(WEEKDAY(DATE(AnoCalendário+1,7,2),1),\"ddd\")","v":"ter"},{"$f":"TEXT(WEEKDAY(DATE(AnoCalendário+1,7,3),1),\"ddd\")","v":"qua"},{"$f":"TEXT(WEEKDAY(DATE(AnoCalendário+1,7,4),1),\"ddd\")","v":"qui"},{"$f":"TEXT(WEEKDAY(DATE(AnoCalendário+1,7,5),1),\"ddd\")","v":"sex"},{"$f":"TEXT(WEEKDAY(DATE(AnoCalendário+1,7,6),1),\"ddd\")","v":"sáb"},{"$f":"TEXT(WEEKDAY(DATE(AnoCalendário+1,7,7),1),\"ddd\")","v":"dom"},{"$f":"TEXT(WEEKDAY(DATE(AnoCalendário+1,7,8),1),\"ddd\")","v":"seg"},{"$f":"TEXT(WEEKDAY(DATE(AnoCalendário+1,7,9),1),\"ddd\")","v":"ter"},{"$f":"TEXT(WEEKDAY(DATE(AnoCalendário+1,7,10),1),\"ddd\")","v":"qua"},{"$f":"TEXT(WEEKDAY(DATE(AnoCalendário+1,7,11),1),\"ddd\")","v":"qui"},{"$f":"TEXT(WEEKDAY(DATE(AnoCalendário+1,7,12),1),\"ddd\")","v":"sex"},{"$f":"TEXT(WEEKDAY(DATE(AnoCalendário+1,7,13),1),\"ddd\")","v":"sáb"},{"$f":"TEXT(WEEKDAY(DATE(AnoCalendário+1,7,14),1),\"ddd\")","v":"dom"},{"$f":"TEXT(WEEKDAY(DATE(AnoCalendário+1,7,15),1),\"ddd\")","v":"seg"},{"$f":"TEXT(WEEKDAY(DATE(AnoCalendário+1,7,16),1),\"ddd\")","v":"ter"},{"$f":"TEXT(WEEKDAY(DATE(AnoCalendário+1,7,17),1),\"ddd\")","v":"qua"},{"$f":"TEXT(WEEKDAY(DATE(AnoCalendário+1,7,18),1),\"ddd\")","v":"qui"},{"$f":"TEXT(WEEKDAY(DATE(AnoCalendário+1,7,19),1),\"ddd\")","v":"sex"},{"$f":"TEXT(WEEKDAY(DATE(AnoCalendário+1,7,20),1),\"ddd\")","v":"sáb"},{"$f":"TEXT(WEEKDAY(DATE(AnoCalendário+1,7,21),1),\"ddd\")","v":"dom"},{"$f":"TEXT(WEEKDAY(DATE(AnoCalendário+1,7,22),1),\"ddd\")","v":"seg"},{"$f":"TEXT(WEEKDAY(DATE(AnoCalendário+1,7,23),1),\"ddd\")","v":"ter"},{"$f":"TEXT(WEEKDAY(DATE(AnoCalendário+1,7,24),1),\"ddd\")","v":"qua"},{"$f":"TEXT(WEEKDAY(DATE(AnoCalendário+1,7,25),1),\"ddd\")","v":"qui"},{"$f":"TEXT(WEEKDAY(DATE(AnoCalendário+1,7,26),1),\"ddd\")","v":"sex"},{"$f":"TEXT(WEEKDAY(DATE(AnoCalendário+1,7,27),1),\"ddd\")","v":"sáb"},{"$f":"TEXT(WEEKDAY(DATE(AnoCalendário+1,7,28),1),\"ddd\")","v":"dom"},{"$f":"TEXT(WEEKDAY(DATE(AnoCalendário+1,7,29),1),\"ddd\")","v":"seg"},{"$f":"TEXT(WEEKDAY(DATE(AnoCalendário+1,7,30),1),\"ddd\")","v":"ter"},{"$f":"TEXT(WEEKDAY(DATE(AnoCalendário+1,7,31),1),\"ddd\")","v":"qua"},"Totais"]
[null,"ID do Aluno","Nome do Aluno","1","2","3","4","5","6","7","8","9","10","11","12","13","14","15","16","17","18","19","20","21","22","23","24","25","26","27","28","29","30","31","T","E","U","P","Dias de Ausência"]
[null,null,{"$f":"IFERROR(VLOOKUP(PresençaemJulho[[#This Row],[ID do Aluno]],ListadeAlunos[],18,FALSE),\"\")","v":""},{"$nulls":31},{"$f":"COUNTIF(PresençaemJulho[[#This Row],[1]:[31]],Código1)","v":0},{"$f":"COUNTIF(PresençaemJulho[[#This Row],[1]:[31]],Código2)","v":0},{"$f":"COUNTIF(PresençaemJulho[[#This Row],[1]:[31]],Código3)","v":0},{"$f":"COUNTIF(PresençaemJulho[[#This Row],[1]:[31]],Código4)","v":0},{"$f":"SUM(PresençaemJulho[[#This Row],[E]:[U]])","v":0}]
[null,null,{"$f":"IFERROR(VLOOKUP(PresençaemJulho[[#This Row],[ID do Aluno]],ListadeAlunos[],18,FALSE),\"\")","v":""},{"$nulls":31},{"$f":"COUNTIF(PresençaemJulho[[#This Row],[1]:[31]],Código1)","v":0},{"$f":"COUNTIF(PresençaemJulho[[#This Row],[1]:[31]],Código2)","v":0},{"$f":"COUNTIF(PresençaemJulho[[#This Row],[1]:[31]],Código3)","v":0},{"$f":"COUNTIF(PresençaemJulho[[#This Row],[1]:[31]],Código4)","v":0},{"$f":"SUM(PresençaemJulho[[#This Row],[E]:[U]])","v":0}]
[null,null,{"$f":"IFERROR(VLOOKUP(PresençaemJulho[[#This Row],[ID do Aluno]],ListadeAlunos[],18,FALSE),\"\")","v":""},{"$nulls":31},{"$f":"COUNTIF(PresençaemJulho[[#This Row],[1]:[31]],Código1)","v":0},{"$f":"COUNTIF(PresençaemJulho[[#This Row],[1]:[31]],Código2)","v":0},{"$f":"COUNTIF(PresençaemJulho[[#This Row],[1]:[31]],Código3)","v":0},{"$f":"COUNTIF(PresençaemJulho[[#This Row],[1]:[31]],Código4)","v":0},{"$f":"SUM(PresençaemJulho[[#This Row],[E]:[U]])","v":0}]
[null,null,{"$f":"IFERROR(VLOOKUP(PresençaemJulho[[#This Row],[ID do Aluno]],ListadeAlunos[],18,FALSE),\"\")","v":""},{"$nulls":31},{"$f":"COUNTIF(PresençaemJulho[[#This Row],[1]:[31]],Código1)","v":0},{"$f":"COUNTIF(PresençaemJulho[[#This Row],[1]:[31]],Código2)","v":0},{"$f":"COUNTIF(PresençaemJulho[[#This Row],[1]:[31]],Código3)","v":0},{"$f":"COUNTIF(PresençaemJulho[[#This Row],[1]:[31]],Código4)","v":0},{"$f":"SUM(PresençaemJulho[[#This Row],[E]:[U]])","v":0}]
[null,null,{"$f":"IFERROR(VLOOKUP(PresençaemJulho[[#This Row],[ID do Aluno]],ListadeAlunos[],18,FALSE),\"\")","v":""},{"$nulls":31},{"$f":"COUNTIF(PresençaemJulho[[#This Row],[1]:[31]],Código1)","v":0},{"$f":"COUNTIF(PresençaemJulho[[#This Row],[1]:[31]],Código2)","v":0},{"$f":"COUNTIF(PresençaemJulho[[#This Row],[1]:[31]],Código3)","v":0},{"$f":"COUNTIF(PresençaemJulho[[#This Row],[1]:[31]],Código4)","v":0},{"$f":"SUM(PresençaemJulho[[#This Row],[E]:[U]])","v":0}]
[null,null,"Total de dias de ausência",{"$f":"COUNTIF(PresençaemJulho[1],\"U\")+COUNTIF(PresençaemJulho[1],\"E\")","v":0},{"$f":"COUNTIF(PresençaemJulho[2],\"U\")+COUNTIF(PresençaemJulho[2],\"E\")","v":0},{"$f":"COUNTIF(PresençaemJulho[3],\"U\")+COUNTIF(PresençaemJulho[3],\"E\")","v":0},{"$f":"COUNTIF(PresençaemJulho[4],\"U\")+COUNTIF(PresençaemJulho[4],\"E\")","v":0},{"$f":"COUNTIF(PresençaemJulho[5],\"U\")+COUNTIF(PresençaemJulho[5],\"E\")","v":0},{"$f":"COUNTIF(PresençaemJulho[6],\"U\")+COUNTIF(PresençaemJulho[6],\"E\")","v":0},{"$f":"COUNTIF(PresençaemJulho[7],\"U\")+COUNTIF(PresençaemJulho[7],\"E\")","v":0},{"$f":"COUNTIF(PresençaemJulho[8],\"U\")+COUNTIF(PresençaemJulho[8],\"E\")","v":0},{"$f":"COUNTIF(PresençaemJulho[9],\"U\")+COUNTIF(PresençaemJulho[9],\"E\")","v":0},{"$f":"COUNTIF(PresençaemJulho[10],\"U\")+COUNTIF(PresençaemJulho[10],\"E\")","v":0},{"$f":"COUNTIF(PresençaemJulho[11],\"U\")+COUNTIF(PresençaemJulho[11],\"E\")","v":0},{"$f":"COUNTIF(PresençaemJulho[12],\"U\")+COUNTIF(PresençaemJulho[12],\"E\")","v":0},{"$f":"COUNTIF(PresençaemJulho[13],\"U\")+COUNTIF(PresençaemJulho[13],\"E\")","v":0},{"$f":"COUNTIF(PresençaemJulho[14],\"U\")+COUNTIF(PresençaemJulho[14],\"E\")","v":0},{"$f":"COUNTIF(PresençaemJulho[15],\"U\")+COUNTIF(PresençaemJulho[15],\"E\")","v":0},{"$f":"COUNTIF(PresençaemJulho[16],\"U\")+COUNTIF(PresençaemJulho[16],\"E\")","v":0},{"$f":"COUNTIF(PresençaemJulho[17],\"U\")+COUNTIF(PresençaemJulho[17],\"E\")","v":0},{"$f":"COUNTIF(PresençaemJulho[18],\"U\")+COUNTIF(PresençaemJulho[18],\"E\")","v":0},{"$f":"COUNTIF(PresençaemJulho[19],\"U\")+COUNTIF(PresençaemJulho[19],\"E\")","v":0},{"$f":"COUNTIF(PresençaemJulho[20],\"U\")+COUNTIF(PresençaemJulho[20],\"E\")","v":0},{"$f":"COUNTIF(PresençaemJulho[21],\"U\")+COUNTIF(PresençaemJulho[21],\"E\")","v":0},{"$f":"COUNTIF(PresençaemJulho[22],\"U\")+COUNTIF(PresençaemJulho[22],\"E\")","v":0},{"$f":"COUNTIF(PresençaemJulho[23],\"U\")+COUNTIF(PresençaemJulho[23],\"E\")","v":0},{"$f":"COUNTIF(PresençaemJulho[24],\"U\")+COUNTIF(PresençaemJulho[24],\"E\")","v":0},{"$f":"COUNTIF(PresençaemJulho[25],\"U\")+COUNTIF(PresençaemJulho[25],\"E\")","v":0},{"$f":"COUNTIF(PresençaemJulho[26],\"U\")+COUNTIF(PresençaemJulho[26],\"E\")","v":0},{"$f":"COUNTIF(PresençaemJulho[27],\"U\")+COUNTIF(PresençaemJulho[27],\"E\")","v":0},{"$f":"COUNTIF(PresençaemJulho[28],\"U\")+COUNTIF(PresençaemJulho[28],\"E\")","v":0},{"$f":"COUNTIF(PresençaemJulho[29],\"U\")+COUNTIF(PresençaemJulho[29],\"E\")","v":0},null,null,{"$f":"SUBTOTAL(109,PresençaemJulho[T])","v":0},{"$f":"SUBTOTAL(109,PresençaemJulho[E])","v":0},{"$f":"SUBTOTAL(109,PresençaemJulho[U])","v":0},{"$f":"SUBTOTAL(109,PresençaemJulho[P])","v":0},{"$f":"SUBTOTAL(109,PresençaemJulho[Dias de Ausência])","v":0}]

{"sheet":"Relatório de Presença do Aluno","index":14,"n_rows":40,"n_cols":37,"rows_kept":40,"merged":[[2,3,2,14],[2,15,2,17],[2,18,2,21],[2,22,2,29],[2,30,2,31],[2,32,2,35],[3,1,3,2],[3,3,3,14],[3,15,3,17],[3,18,3,21],[3,22,3,29],[3,30,3,31],[3,32,3,35],[4,1,4,9],[4,10,4,21],[4,22,4,29],[4,30,4,36],[5,1,5,9],[5,10,5,21],[5,22,5,29],[5,30,5,36],[6,1,6,9],[6,10,6,21],[6,22,6,29],[6,30,6,36],[7,1,7,9],[7,10,7,21],[7,22,7,29],[7,30,7,36],[8,1,8,9],[8,10,8,21],[8,22,8,29],[8,30,8,36],[9,1,9,9],[9,10,9,21],[9,22,9,29],[9,30,9,36],[13,1,14,32],[13,33,13,36],[15,1,16,1],[15,33,16,33],[15,34,16,34],[15,35,16,35],[15,36,16,36],[17,1,18,1],[17,33,18,33],[17,34,18,34],[17,35,18,35],[17,36,18,36],[19,1,20,1],[19,33,20,33],[19,34,20,34],[19,35,20,35],[19,36,20,36],[21,1,22,1],[21,33,22,33],[21,34,22,34],[21,35,22,35],[21,36,22,36],[23,1,24,1],[23,33,24,33],[23,34,24,34],[23,35,24,35],[23,36,24,36],[25,1,26,1],[25,33,26,33],[25,34,26,34],[25,35,26,35],[25,36,26,36],[27,1,28,1],[27,33,28,33],[27,34,28,34],[27,35,28,35],[27,36,28,36],[29,1,30,1],[29,33,30,33],[29,34,30,34],[29,35,30,35],[29,36,30,36],[31,1,32,1],[31,33,32,33],[31,34,32,34],[31,35,32,35],[31,36,32,36],[33,1,34,1],[33,33,34,33],[33,34,34,34],[33,35,34,35],[33,36,34,36],[35,1,36,1],[35,33,36,33],[35,34,36,34],[35,35,36,35],[35,36,36,36],[37,1,38,1],[37,33,38,33],[37,34,38,34],[37,35,38,35],[37,36,38,36],[39,30,39,32]]}
[{"$f":"\"Registro de Presença para \"","v":"Registro de Presença para "},{"$nulls":7},{"$f":"D4","v":"Manuel Oliveira"}]
[]
[null,"ID do Aluno",null,"Nome do Aluno",{"$nulls":11},"Sexo",null,null,"Data de Nascimento",{"$nulls":3},"Escola",{"$nulls":7},"Nota",null,"Professor",{"$nulls":3},"Sala"]
[null,"S001",null,{"$f":"IFERROR(VLOOKUP(PesquisadeAlunos,ListadeAlunos[],18,FALSE),\"\")","v":"Manuel Oliveira"},{"$nulls":11},{"$f":"IFERROR(VLOOKUP(PesquisadeAlunos,ListadeAlunos[],4,FALSE),\"\")","v":"M"},null,null,{"$f":"IFERROR(VLOOKUP(PesquisadeAlunos,ListadeAlunos[],5,FALSE),\"\")","v":"1997-03-28"},{"$nulls":3},"Escola de Belas Artes ",{"$nulls":7},7,null,"Carlos Grilo",{"$nulls":3},123]
[null,"Nome dos Pais ou do Tutor 1",{"$nulls":8},"Relação",{"$nulls":11},"Número Comercial",{"$nulls":7},"Número Residencial"]
[null,{"$f":"IFERROR(VLOOKUP(PesquisadeAlunos,ListadeAlunos[],6,FALSE),\"\")","v":"Susana"},{"$nulls":8},{"$f":"IFERROR(VLOOKUP(PesquisadeAlunos,ListadeAlunos[],7,FALSE),\"\")","v":"Oliveira"},{"$nulls":11},{"$f":"IFERROR(VLOOKUP(PesquisadeAlunos,ListadeAlunos[],8,FALSE),\"\")","v":1235550134},{"$nulls":7},{"$f":"IFERROR(VLOOKUP(PesquisadeAlunos,ListadeAlunos[],9,FALSE),\"\")","v":2345550134}]
[null,"Nome dos Pais ou do Tutor 2",{"$nulls":8},"Relação",{"$nulls":11},"Número Comercial",{"$nulls":7},"Número Residencial"]
[null,{"$f":"IFERROR(VLOOKUP(PesquisadeAlunos,ListadeAlunos[],10,FALSE),\"\")","v":"Michael Alexander"},{"$nulls":8},{"$f":"IFERROR(VLOOKUP(PesquisadeAlunos,ListadeAlunos[],11,FALSE),\"\")","v":"Pai"},{"$nulls":11},{"$f":"IFERROR(VLOOKUP(PesquisadeAlunos,ListadeAlunos[],12,FALSE),\"\")","v":"(21) 123 45235"},{"$nulls":7},{"$f":"IFERROR(VLOOKUP(PesquisadeAlunos,ListadeAlunos[],13,FALSE),\"\")","v":2345550134}]
[null,"Contato de Emergência",{"$nulls":8},"Relação",{"$nulls":11},"Número Comercial",{"$nulls":7},"Número Residencial"]
[null,{"$f":"IFERROR(VLOOKUP(PesquisadeAlunos,ListadeAlunos[],14,FALSE),\"\")","v":"Jordão Moreno"},{"$nulls":8},{"$f":"IFERROR(VLOOKUP(PesquisadeAlunos,ListadeAlunos[],15,FALSE),\"\")","v":"Avô"},{"$nulls":11},{"$f":"IFERROR(VLOOKUP(PesquisadeAlunos,ListadeAlunos[],16,FALSE),\"\")","v":7895550189},{"$nulls":7},{"$f":"IFERROR(VLOOKUP(PesquisadeAlunos,ListadeAlunos[],17,FALSE),\"\")","v":7895550134}]
[]
[null,{"$f":"Agosto!C3","v":"CHAVE COLORIDA "},{"$f":"Agosto!D3","v":"T"},{"$f":"Agosto!E3","v":"Atrasado"},null,null,{"$f":"Agosto!H3","v":"E"},{"$f":"Agosto!I3","v":"Dispensado"},null,null,{"$f":"Agosto!L3","v":"U"},{"$f":"Agosto!M3","v":"Não Dispensado"},{"$nulls":3},{"$f":"Agosto!P3","v":"P"},{"$f":"Agosto!Q3","v":"Presente"},null,null,{"$f":"Agosto!T3","v":"N"},{"$f":"Agosto!U3","v":"Sem Aula"}]
[]
[null,"Participação",{"$nulls":31},"Totais de Participação"]
[{"$nulls":33},"T","E","U","P"]
[null,"Agosto",1,2,3,4,5,6,7,8,9,10,11,12,13,14,15,16,17,18,19,20,21,22,23,24,25,26,27,28,29,30,31,{"$f":"COUNTIF($D17:$AH17,Código1)","v":2},{"$f":"COUNTIF($D17:$AH17,Código2)","v":1},{"$f":"COUNTIF($D17:$AH17,Código3)","v":0},{"$f":"COUNTIF($D17:$AH17,Código4)","v":19}]
[null,null,{"$f":"IFERROR(VLOOKUP(PesquisadeAlunos,PresençaemAgosto[],3,FALSE),\"\")","v":"P"},{"$f":"IFERROR(VLOOKUP(PesquisadeAlunos,PresençaemAgosto[],4,FALSE),\"\")","v":"P"},{"$f":"IFERROR(VLOOKUP(PesquisadeAlunos,PresençaemAgosto[],5,FALSE),\"\")","v":"T"},{"$f":"IFERROR(VLOOKUP(PesquisadeAlunos,PresençaemAgosto[],6,FALSE),\"\")","v":"T"},{"$f":"IFERROR(VLOOKUP(PesquisadeAlunos,PresençaemAgosto[],7,FALSE),\"\")","v":"P"},{"$f":"IFERROR(VLOOKUP(PesquisadeAlunos,PresençaemAgosto[],8,FALSE),\"\")","v":"N"},{"$f":"IFERROR(VLOOKUP(PesquisadeAlunos,PresençaemAgosto[],9,FALSE),\"\")","v":"N"},{"$f":"IFERROR(VLOOKUP(PesquisadeAlunos,PresençaemAgosto[],10,FALSE),\"\")","v":"P"},{"$f":"IFERROR(VLOOKUP(PesquisadeAlunos,PresençaemAgosto[],11,FALSE),\"\")","v":"P"},{"$f":"IFERROR(VLOOKUP(PesquisadeAlunos,PresençaemAgosto[],12,FALSE),\"\")","v":"E"},{"$f":"IFERROR(VLOOKUP(PesquisadeAlunos,PresençaemAgosto[],13,FALSE),\"\")","v":"P"},{"$f":"IFERROR(VLOOKUP(PesquisadeAlunos,PresençaemAgosto[],14,FALSE),\"\")","v":"P"},{"$f":"IFERROR(VLOOKUP(PesquisadeAlunos,PresençaemAgosto[],15,FALSE),\"\")","v":"N"},{"$f":"IFERROR(VLOOKUP(PesquisadeAlunos,PresençaemAgosto[],16,FALSE),\"\")","v":"N"},{"$f":"IFERROR(VLOOKUP(PesquisadeAlunos,PresençaemAgosto[],17,FALSE),\"\")","v":"P"},{"$f":"IFERROR(VLOOKUP(PesquisadeAlunos,PresençaemAgosto[],18,FALSE),\"\")","v":"P"},{"$f":"IFERROR(VLOOKUP(PesquisadeAlunos,PresençaemAgosto[],19,FALSE),\"\")","v":"P"},{"$f":"IFERROR(VLOOKUP(PesquisadeAlunos,PresençaemAgosto[],20,FALSE),\"\")","v":"P"},{"$f":"IFERROR(VLOOKUP(PesquisadeAlunos,PresençaemAgosto[],21,FALSE),\"\")","v":"P"},{"$f":"IFERROR(VLOOKUP(PesquisadeAlunos,PresençaemAgosto[],22,FALSE),\"\")","v":"N"},{"$f":"IFERROR(VLOOKUP(PesquisadeAlunos,PresençaemAgosto[],23,FALSE),\"\")","v":"N"},{"$f":"IFERROR(VLOOKUP(PesquisadeAlunos,PresençaemAgosto[],24,FALSE),\"\")","v":"P"},{"$f":"IFERROR(VLOOKUP(PesquisadeAlunos,PresençaemAgosto[],25,FALSE),\"\")","v":"P"},{"$f":"IFERROR(VLOOKUP(PesquisadeAlunos,PresençaemAgosto[],26,FALSE),\"\")","v":"P"},{"$f":"IFERROR(VLOOKUP(PesquisadeAlunos,PresençaemAgosto[],27,FALSE),\"\")","v":"P"},{"$f":"IFERROR(VLOOKUP(PesquisadeAlunos,PresençaemAgosto[],28,FALSE),\"\")","v":"P"},{"$f":"IFERROR(VLOOKUP(PesquisadeAlunos,PresençaemAgosto[],29,FALSE),\"\")","v":"N"},{"$f":"IFERROR(VLOOKUP(PesquisadeAlunos,PresençaemAgosto[],30,FALSE),\"\")","v":"N"},{"$f":"IFERROR(VLOOKUP(PesquisadeAlunos,PresençaemAgosto[],31,FALSE),\"\")","v":"P"},{"$f":"IFERROR(VLOOKUP(PesquisadeAlunos,PresençaemAgosto[],32,FALSE),\"\")","v":"P"},{"$f":"IFERROR(VLOOKUP(PesquisadeAlunos,PresençaemAgosto[],33,FALSE),\"\")","v":"P"}]
[null,"Setembro",1,2,3,4,5,6,7,8,9,10,11,12,13,14,15,16,17,18,19,20,21,22,23,24,25,26,27,28,29,30,null,{"$f":"COUNTIF($D19:$AH19,Código1)","v":0},{"$f":"COUNTIF($D19:$AH19,Código2)","v":0},{"$f":"COUNTIF($D19:$AH19,Código3)","v":0},{"$f":"COUNTIF($D19:$AH19,Código4)","v":0}]
[null,null,{"$f":"IFERROR(VLOOKUP(PesquisadeAlunos,PresençaemSetembro[],3,FALSE),\"\")","v":""},{"$f":"IFERROR(VLOOKUP(PesquisadeAlunos,PresençaemSetembro[],4,FALSE),\"\")","v":""},{"$f":"IFERROR(VLOOKUP(PesquisadeAlunos,PresençaemSetembro[],5,FALSE),\"\")","v":""},{"$f":"IFERROR(VLOOKUP(PesquisadeAlunos,PresençaemSetembro[],6,FALSE),\"\")","v":""},{"$f":"IFERROR(VLOOKUP(PesquisadeAlunos,PresençaemSetembro[],7,FALSE),\"\")","v":""},{"$f":"IFERROR(VLOOKUP(PesquisadeAlunos,PresençaemSetembro[],8,FALSE),\"\")","v":""},{"$f":"IFERROR(VLOOKUP(PesquisadeAlunos,PresençaemSetembro[],9,FALSE),\"\")","v":""},{"$f":"IFERROR(VLOOKUP(PesquisadeAlunos,PresençaemSetembro[],10,FALSE),\"\")","v":""},{"$f":"IFERROR(VLOOKUP(PesquisadeAlunos,PresençaemSetembro[],11,FALSE),\"\")","v":""},{"$f":"IFERROR(VLOOKUP(PesquisadeAlunos,PresençaemSetembro[],12,FALSE),\"\")","v":""},{"$f":"IFERROR(VLOOKUP(PesquisadeAlunos,PresençaemSetembro[],13,FALSE),\"\")","v":""},{"$f":"IFERROR(VLOOKUP(PesquisadeAlunos,PresençaemSetembro[],14,FALSE),\"\")","v":""},{"$f":"IFERROR(VLOOKUP(PesquisadeAlunos,PresençaemSetembro[],15,FALSE),\"\")","v":""},{"$f":"IFERROR(VLOOKUP(PesquisadeAlunos,PresençaemSetembro[],16,FALSE),\"\")","v":""},{"$f":"IFERROR(VLOOKUP(PesquisadeAlunos,PresençaemSetembro[],17,FALSE),\"\")","v":""},{"$f":"IFERROR(VLOOKUP(PesquisadeAlunos,PresençaemSetembro[],18,FALSE),\"\")","v":""},{"$f":"IFERROR(VLOOKUP(PesquisadeAlunos,PresençaemSetembro[],19,FALSE),\"\")","v":""},{"$f":"IFERROR(VLOOKUP(PesquisadeAlunos,PresençaemSetembro[],20,FALSE),\"\")","v":""},{"$f":"IFERROR(VLOOKUP(PesquisadeAlunos,PresençaemSetembro[],21,FALSE),\"\")","v":""},{"$f":"IFERROR(VLOOKUP(PesquisadeAlunos,PresençaemSetembro[],22,FALSE),\"\")","v":""},{"$f":"IFERROR(VLOOKUP(PesquisadeAlunos,PresençaemSetembro[],23,FALSE),\"\")","v":""},{"$f":"IFERROR(VLOOKUP(PesquisadeAlunos,PresençaemSetembro[],24,FALSE),\"\")","v":""},{"$f":"IFERROR(VLOOKUP(PesquisadeAlunos,PresençaemSetembro[],25,FALSE),\"\")","v":""},{"$f":"IFERROR(VLOOKUP(PesquisadeAlunos,PresençaemSetembro[],26,FALSE),\"\")","v":""},{"$f":"IFERROR(VLOOKUP(PesquisadeAlunos,PresençaemSetembro[],27,FALSE),\"\")","v":""},{"$f":"IFERROR(VLOOKUP(PesquisadeAlunos,PresençaemSetembro[],28,FALSE),\"\")","v":""},{"$f":"IFERROR(VLOOKUP(PesquisadeAlunos,PresençaemSetembro[],29,FALSE),\"\")","v":""},{"$f":"IFERROR(VLOOKUP(PesquisadeAlunos,PresençaemSetembro[],30,FALSE),\"\")","v":""},{"$f":"IFERROR(VLOOKUP(PesquisadeAlunos,PresençaemSetembro[],31,FALSE),\"\")","v":""},{"$f":"IFERROR(VLOOKUP(PesquisadeAlunos,PresençaemSetembro[],32,FALSE),\"\")","v":""}]
[null,"Outubro",1,2,3,4,5,6,7,8,9,10,11,12,13,14,15,16,17,18,19,20,21,22,23,24,25,26,27,28,29,30,31,{"$f":"COUNTIF($D21:$AH21,Código1)","v":0},{"$f":"COUNTIF($D21:$AH21,Código2)","v":0},{"$f":"COUNTIF($D21:$AH21,Código3)","v":0},{"$f":"COUNTIF($D21:$AH21,Código4)","v":0}]
[null,null,{"$f":"IFERROR(VLOOKUP(PesquisadeAlunos,PresençaemOutubro[],3,FALSE),\"\")","v":""},{"$f":"IFERROR(VLOOKUP(PesquisadeAlunos,PresençaemOutubro[],4,FALSE),\"\")","v":""},{"$f":"IFERROR(VLOOKUP(PesquisadeAlunos,PresençaemOutubro[],5,FALSE),\"\")","v":""},{"$f":"IFERROR(VLOOKUP(PesquisadeAlunos,PresençaemOutubro[],6,FALSE),\"\")","v":""},{"$f":"IFERROR(VLOOKUP(PesquisadeAlunos,PresençaemOutubro[],7,FALSE),\"\")","v":""},{"$f":"IFERROR(VLOOKUP(PesquisadeAlunos,PresençaemOutubro[],8,FALSE),\"\")","v":""},{"$f":"IFERROR(VLOOKUP(PesquisadeAlunos,PresençaemOutubro[],9,FALSE),\"\")","v":""},{"$f":"IFERROR(VLOOKUP(PesquisadeAlunos,PresençaemOutubro[],10,FALSE),\"\")","v":""},{"$f":"IFERROR(VLOOKUP(PesquisadeAlunos,PresençaemOutubro[],11,FALSE),\"\")","v":""},{"$f":"IFERROR(VLOOKUP(PesquisadeAlunos,PresençaemOutubro[],12,FALSE),\"\")","v":""},{"$f":"IFERROR(VLOOKUP(PesquisadeAlunos,PresençaemOutubro[],13,FALSE),\"\")","v":""},{"$f":"IFERROR(VLOOKUP(PesquisadeAlunos,PresençaemOutubro[],14,FALSE),\"\")","v":""},{"$f":"IFERROR(VLOOKUP(PesquisadeAlunos,PresençaemOutubro[],15,FALSE),\"\")","v":""},{"$f":"IFERROR(VLOOKUP(PesquisadeAlunos,PresençaemOutubro[],16,FALSE),\"\")","v":""},{"$f":"IFERROR(VLOOKUP(PesquisadeAlunos,PresençaemOutubro[],17,FALSE),\"\")","v":""},{"$f":"IFERROR(VLOOKUP(PesquisadeAlunos,PresençaemOutubro[],18,FALSE),\"\")","v":""},{"$f":"IFERROR(VLOOKUP(PesquisadeAlunos,PresençaemOutubro[],19,FALSE),\"\")","v":""},{"$f":"IFERROR(VLOOKUP(PesquisadeAlunos,PresençaemOutubro[],20,FALSE),\"\")","v":""},{"$f":"IFERROR(VLOOKUP(PesquisadeAlunos,PresençaemOutubro[],21,FALSE),\"\")","v":""},{"$f":"IFERROR(VLOOKUP(PesquisadeAlunos,PresençaemOutubro[],22,FALSE),\"\")","v":""},{"$f":"IFERROR(VLOOKUP(PesquisadeAlunos,PresençaemOutubro[],23,FALSE),\"\")","v":""},{"$f":"IFERROR(VLOOKUP(PesquisadeAlunos,PresençaemOutubro[],24,FALSE),\"\")","v":""},{"$f":"IFERROR(VLOOKUP(PesquisadeAlunos,PresençaemOutubro[],25,FALSE),\"\")","v":""},{"$f":"IFERROR(VLOOKUP(PesquisadeAlunos,PresençaemOutubro[],26,FALSE),\"\")","v":""},{"$f":"IFERROR(VLOOKUP(PesquisadeAlunos,PresençaemOutubro[],27,FALSE),\"\")","v":""},{"$f":"IFERROR(VLOOKUP(PesquisadeAlunos,PresençaemOutubro[],28,FALSE),\"\")","v":""},{"$f":"IFERROR(VLOOKUP(PesquisadeAlunos,PresençaemOutubro[],29,FALSE),\"\")","v":""},{"$f":"IFERROR(VLOOKUP(PesquisadeAlunos,PresençaemOutubro[],30,FALSE),\"\")","v":""},{"$f":"IFERROR(VLOOKUP(PesquisadeAlunos,PresençaemOutubro[],31,FALSE),\"\")","v":""},{"$f":"IFERROR(VLOOKUP(PesquisadeAlunos,PresençaemOutubro[],32,FALSE),\"\")","v":""},{"$f":"IFERROR(VLOOKUP(PesquisadeAlunos,PresençaemOutubro[],33,FALSE),\"\")","v":""}]
[null,"Novembro",1,2,3,4,5,6,7,8,9,10,11,12,13,14,15,16,17,18,19,20,21,22,23,24,25,26,27,28,29,30,null,{"$f":"COUNTIF($D23:$AH23,Código1)","v":0},{"$f":"COUNTIF($D23:$AH23,Código2)","v":0},{"$f":"COUNTIF($D23:$AH23,Código3)","v":0},{"$f":"COUNTIF($D23:$AH23,Código4)","v":0}]
[null,null,{"$f":"IFERROR(VLOOKUP(PesquisadeAlunos,PresençaemNovembro[],3,FALSE),\"\")","v":""},{"$f":"IFERROR(VLOOKUP(PesquisadeAlunos,PresençaemNovembro[],4,FALSE),\"\")","v":""},{"$f":"IFERROR(VLOOKUP(PesquisadeAlunos,PresençaemNovembro[],5,FALSE),\"\")","v":""},{"$f":"IFERROR(VLOOKUP(PesquisadeAlunos,PresençaemNovembro[],6,FALSE),\"\")","v":""},{"$f":"IFERROR(VLOOKUP(PesquisadeAlunos,PresençaemNovembro[],7,FALSE),\"\")","v":""},{"$f":"IFERROR(VLOOKUP(PesquisadeAlunos,PresençaemNovembro[],8,FALSE),\"\")","v":""},{"$f":"IFERROR(VLOOKUP(PesquisadeAlunos,PresençaemNovembro[],9,FALSE),\"\")","v":""},{"$f":"IFERROR(VLOOKUP(PesquisadeAlunos,PresençaemNovembro[],10,FALSE),\"\")","v":""},{"$f":"IFERROR(VLOOKUP(PesquisadeAlunos,PresençaemNovembro[],11,FALSE),\"\")","v":""},{"$f":"IFERROR(VLOOKUP(PesquisadeAlunos,PresençaemNovembro[],12,FALSE),\"\")","v":""},{"$f":"IFERROR(VLOOKUP(PesquisadeAlunos,PresençaemNovembro[],13,FALSE),\"\")","v":""},{"$f":"IFERROR(VLOOKUP(PesquisadeAlunos,PresençaemNovembro[],14,FALSE),\"\")","v":""},{"$f":"IFERROR(VLOOKUP(PesquisadeAlunos,PresençaemNovembro[],15,FALSE),\"\")","v":""},{"$f":"IFERROR(VLOOKUP(PesquisadeAlunos,PresençaemNovembro[],16,FALSE),\"\")","v":""},{"$f":"IFERROR(VLOOKUP(PesquisadeAlunos,PresençaemNovembro[],17,FALSE),\"\")","v":""},{"$f":"IFERROR(VLOOKUP(PesquisadeAlunos,PresençaemNovembro[],18,FALSE),\"\")","v":""},{"$f":"IFERROR(VLOOKUP(PesquisadeAlunos,PresençaemNovembro[],19,FALSE),\"\")","v":""},{"$f":"IFERROR(VLOOKUP(PesquisadeAlunos,PresençaemNovembro[],20,FALSE),\"\")","v":""},{"$f":"IFERROR(VLOOKUP(PesquisadeAlunos,PresençaemNovembro[],21,FALSE),\"\")","v":""},{"$f":"IFERROR(VLOOKUP(PesquisadeAlunos,PresençaemNovembro[],22,FALSE),\"\")","v":""},{"$f":"IFERROR(VLOOKUP(PesquisadeAlunos,PresençaemNovembro[],23,FALSE),\"\")","v":""},{"$f":"IFERROR(VLOOKUP(PesquisadeAlunos,PresençaemNovembro[],24,FALSE),\"\")","v":""},{"$f":"IFERROR(VLOOKUP(PesquisadeAlunos,PresençaemNovembro[],25,FALSE),\"\")","v":""},{"$f":"IFERROR(VLOOKUP(PesquisadeAlunos,PresençaemNovembro[],26,FALSE),\"\")","v":""},{"$f":"IFERROR(VLOOKUP(PesquisadeAlunos,PresençaemNovembro[],27,FALSE),\"\")","v":""},{"$f":"IFERROR(VLOOKUP(PesquisadeAlunos,PresençaemNovembro[],28,FALSE),\"\")","v":""},{"$f":"IFERROR(VLOOKUP(PesquisadeAlunos,PresençaemNovembro[],29,FALSE),\"\")","v":""},{"$f":"IFERROR(VLOOKUP(PesquisadeAlunos,PresençaemNovembro[],30,FALSE),\"\")","v":""},{"$f":"IFERROR(VLOOKUP(PesquisadeAlunos,PresençaemNovembro[],31,FALSE),\"\")","v":""},{"$f":"IFERROR(VLOOKUP(PesquisadeAlunos,PresençaemNovembro[],32,FALSE),\"\")","v":""}]
[null,"Dezembro",1,2,3,4,5,6,7,8,9,10,11,12,13,14,15,16,17,18,19,20,21,22,23,24,25,26,27,28,29,30,31,{"$f":"COUNTIF($D25:$AH25,Código1)","v":0},{"$f":"COUNTIF($D25:$AH25,Código2)","v":0},{"$f":"COUNTIF($D25:$AH25,Código3)","v":0},{"$f":"COUNTIF($D25:$AH25,Código4)","v":0}]
[null,null,{"$f":"IFERROR(VLOOKUP(PesquisadeAlunos,PresençaemDezembro[],3,FALSE),\"\")","v":""},{"$f":"IFERROR(VLOOKUP(PesquisadeAlunos,PresençaemDezembro[],4,FALSE),\"\")","v":""},{"$f":"IFERROR(VLOOKUP(PesquisadeAlunos,PresençaemDezembro[],5,FALSE),\"\")","v":""},{"$f":"IFERROR(VLOOKUP(PesquisadeAlunos,PresençaemDezembro[],6,FALSE),\"\")","v":""},{"$f":"IFERROR(VLOOKUP(PesquisadeAlunos,PresençaemDezembro[],7,FALSE),\"\")","v":""},{"$f":"IFERROR(VLOOKUP(PesquisadeAlunos,PresençaemDezembro[],8,FALSE),\"\")","v":""},{"$f":"IFERROR(VLOOKUP(PesquisadeAlunos,PresençaemDezembro[],9,FALSE),\"\")","v":""},{"$f":"IFERROR(VLOOKUP(PesquisadeAlunos,PresençaemDezembro[],10,FALSE),\"\")","v":""},{"$f":"IFERROR(VLOOKUP(PesquisadeAlunos,PresençaemDezembro[],11,FALSE),\"\")","v":""},{"$f":"IFERROR(VLOOKUP(PesquisadeAlunos,PresençaemDezembro[],12,FALSE),\"\")","v":""},{"$f":"IFERROR(VLOOKUP(PesquisadeAlunos,PresençaemDezembro[],13,FALSE),\"\")","v":""},{"$f":"IFERROR(VLOOKUP(PesquisadeAlunos,PresençaemDezembro[],14,FALSE),\"\")","v":""},{"$f":"IFERROR(VLOOKUP(PesquisadeAlunos,PresençaemDezembro[],15,FALSE),\"\")","v":""},{"$f":"IFERROR(VLOOKUP(PesquisadeAlunos,PresençaemDezembro[],16,FALSE),\"\")","v":""},{"$f":"IFERROR(VLOOKUP(PesquisadeAlunos,PresençaemDezembro[],17,FALSE),\"\")","v":""},{"$f":"IFERROR(VLOOKUP(PesquisadeAlunos,PresençaemDezembro[],18,FALSE),\"\")","v":""},{"$f":"IFERROR(VLOOKUP(PesquisadeAlunos,PresençaemDezembro[],19,FALSE),\"\")","v":""},{"$f":"IFERROR(VLOOKUP(PesquisadeAlunos,PresençaemDezembro[],20,FALSE),\"\")","v":""},{"$f":"IFERROR(VLOOKUP(PesquisadeAlunos,PresençaemDezembro[],21,FALSE),\"\")","v":""},{"$f":"IFERROR(VLOOKUP(PesquisadeAlunos,PresençaemDezembro[],22,FALSE),\"\")","v":""},{"$f":"IFERROR(VLOOKUP(PesquisadeAlunos,PresençaemDezembro[],23,FALSE),\"\")","v":""},{"$f":"IFERROR(VLOOKUP(PesquisadeAlunos,PresençaemDezembro[],24,FALSE),\"\")","v":""},{"$f":"IFERROR(VLOOKUP(PesquisadeAlunos,PresençaemDezembro[],25,FALSE),\"\")","v":""},{"$f":"IFERROR(VLOOKUP(PesquisadeAlunos,PresençaemDezembro[],26,FALSE),\"\")","v":""},{"$f":"IFERROR(VLOOKUP(PesquisadeAlunos,PresençaemDezembro[],27,FALSE),\"\")","v":""},{"$f":"IFERROR(VLOOKUP(PesquisadeAlunos,PresençaemDezembro[],28,FALSE),\"\")","v":""},{"$f":"IFERROR(VLOOKUP(PesquisadeAlunos,PresençaemDezembro[],29,FALSE),\"\")","v":""},{"$f":"IFERROR(VLOOKUP(PesquisadeAlunos,PresençaemDezembro[],30,FALSE),\"\")","v":""},{"$f":"IFERROR(VLOOKUP(PesquisadeAlunos,PresençaemDezembro[],31,FALSE),\"\")","v":""},{"$f":"IFERROR(VLOOKUP(PesquisadeAlunos,PresençaemDezembro[],32,FALSE),\"\")","v":""},{"$f":"IFERROR(VLOOKUP(PesquisadeAlunos,PresençaemDezembro[],33,FALSE),\"\")","v":""}]
[null,"Janeiro",1,2,3,4,5,6,7,8,9,10,11,12,13,14,15,16,17,18,19,20,21,22,23,24,25,26,27,28,29,30,31,{"$f":"COUNTIF($D27:$AH27,Código1)","v":0},{"$f":"COUNTIF($D27:$AH27,Código2)","v":0},{"$f":"COUNTIF($D27:$AH27,Código3)","v":0},{"$f":"COUNTIF($D27:$AH27,Código4)","v":0}]
[null,null,{"$f":"IFERROR(VLOOKUP(PesquisadeAlunos,PresençaemJaneiro[],3,FALSE),\"\")","v":""},{"$f":"IFERROR(VLOOKUP(PesquisadeAlunos,PresençaemJaneiro[],4,FALSE),\"\")","v":""},{"$f":"IFERROR(VLOOKUP(PesquisadeAlunos,PresençaemJaneiro[],5,FALSE),\"\")","v":""},{"$f":"IFERROR(VLOOKUP(PesquisadeAlunos,PresençaemJaneiro[],6,FALSE),\"\")","v":""},{"$f":"IFERROR(VLOOKUP(PesquisadeAlunos,PresençaemJaneiro[],7,FALSE),\"\")","v":""},{"$f":"IFERROR(VLOOKUP(PesquisadeAlunos,PresençaemJaneiro[],8,FALSE),\"\")","v":""},{"$f":"IFERROR(VLOOKUP(PesquisadeAlunos,PresençaemJaneiro[],9,FALSE),\"\")","v":""},{"$f":"IFERROR(VLOOKUP(PesquisadeAlunos,PresençaemJaneiro[],10,FALSE),\"\")","v":""},{"$f":"IFERROR(VLOOKUP(PesquisadeAlunos,PresençaemJaneiro[],11,FALSE),\"\")","v":""},{"$f":"IFERROR(VLOOKUP(PesquisadeAlunos,PresençaemJaneiro[],12,FALSE),\"\")","v":""},{"$f":"IFERROR(VLOOKUP(PesquisadeAlunos,PresençaemJaneiro[],13,FALSE),\"\")","v":""},{"$f":"IFERROR(VLOOKUP(PesquisadeAlunos,PresençaemJaneiro[],14,FALSE),\"\")","v":""},{"$f":"IFERROR(VLOOKUP(PesquisadeAlunos,PresençaemJaneiro[],15,FALSE),\"\")","v":""},{"$f":"IFERROR(VLOOKUP(PesquisadeAlunos,PresençaemJaneiro[],16,FALSE),\"\")","v":""},{"$f":"IFERROR(VLOOKUP(PesquisadeAlunos,PresençaemJaneiro[],17,FALSE),\"\")","v":""},{"$f":"IFERROR(VLOOKUP(PesquisadeAlunos,PresençaemJaneiro[],18,FALSE),\"\")","v":""},{"$f":"IFERROR(VLOOKUP(PesquisadeAlunos,PresençaemJaneiro[],19,FALSE),\"\")","v":""},{"$f":"IFERROR(VLOOKUP(PesquisadeAlunos,PresençaemJaneiro[],20,FALSE),\"\")","v":""},{"$f":"IFERROR(VLOOKUP(PesquisadeAlunos,PresençaemJaneiro[],21,FALSE),\"\")","v":""},{"$f":"IFERROR(VLOOKUP(PesquisadeAlunos,PresençaemJaneiro[],22,FALSE),\"\")","v":""},{"$f":"IFERROR(VLOOKUP(PesquisadeAlunos,PresençaemJaneiro[],23,FALSE),\"\")","v":""},{"$f":"IFERROR(VLOOKUP(PesquisadeAlunos,PresençaemJaneiro[],24,FALSE),\"\")","v":""},{"$f":"IFERROR(VLOOKUP(PesquisadeAlunos,PresençaemJaneiro[],25,FALSE),\"\")","v":""},{"$f":"IFERROR(VLOOKUP(PesquisadeAlunos,PresençaemJaneiro[],26,FALSE),\"\")","v":""},{"$f":"IFERROR(VLOOKUP(PesquisadeAlunos,PresençaemJaneiro[],27,FALSE),\"\")","v":""},{"$f":"IFERROR(VLOOKUP(PesquisadeAlunos,PresençaemJaneiro[],28,FALSE),\"\")","v":""},{"$f":"IFERROR(VLOOKUP(PesquisadeAlunos,PresençaemJaneiro[],29,FALSE),\"\")","v":""},{"$f":"IFERROR(VLOOKUP(PesquisadeAlunos,PresençaemJaneiro[],30,FALSE),\"\")","v":""},{"$f":"IFERROR(VLOOKUP(PesquisadeAlunos,PresençaemJaneiro[],31,FALSE),\"\")","v":""},{"$f":"IFERROR(VLOOKUP(PesquisadeAlunos,PresençaemJaneiro[],32,FALSE),\"\")","v":""},{"$f":"IFERROR(VLOOKUP(PesquisadeAlunos,PresençaemJaneiro[],33,FALSE),\"\")","v":""}]
[null,"Fevereiro",1,2,3,4,5,6,7,8,9,10,11,12,13,14,15,16,17,18,19,20,21,22,23,24,25,26,27,28,29,null,null,{"$f":"COUNTIF($D29:$AH29,Código1)","v":0},{"$f":"COUNTIF($D29:$AH29,Código2)","v":0},{"$f":"COUNTIF($D29:$AH29,Código3)","v":0},{"$f":"COUNTIF($D29:$AH29,Código4)","v":0}]
[null,null,{"$f":"IFERROR(VLOOKUP(PesquisadeAlunos,PresençaemFevereiro[],3,FALSE),\"\")","v":""},{"$f":"IFERROR(VLOOKUP(PesquisadeAlunos,PresençaemFevereiro[],4,FALSE),\"\")","v":""},{"$f":"IFERROR(VLOOKUP(PesquisadeAlunos,PresençaemFevereiro[],5,FALSE),\"\")","v":""},{"$f":"IFERROR(VLOOKUP(PesquisadeAlunos,PresençaemFevereiro[],6,FALSE),\"\")","v":""},{"$f":"IFERROR(VLOOKUP(PesquisadeAlunos,PresençaemFevereiro[],7,FALSE),\"\")","v":""},{"$f":"IFERROR(VLOOKUP(PesquisadeAlunos,PresençaemFevereiro[],8,FALSE),\"\")","v":""},{"$f":"IFERROR(VLOOKUP(PesquisadeAlunos,PresençaemFevereiro[],9,FALSE),\"\")","v":""},{"$f":"IFERROR(VLOOKUP(PesquisadeAlunos,PresençaemFevereiro[],10,FALSE),\"\")","v":""},{"$f":"IFERROR(VLOOKUP(PesquisadeAlunos,PresençaemFevereiro[],11,FALSE),\"\")","v":""},{"$f":"IFERROR(VLOOKUP(PesquisadeAlunos,PresençaemFevereiro[],12,FALSE),\"\")","v":""},{"$f":"IFERROR(VLOOKUP(PesquisadeAlunos,PresençaemFevereiro[],13,FALSE),\"\")","v":""},{"$f":"IFERROR(VLOOKUP(PesquisadeAlunos,PresençaemFevereiro[],14,FALSE),\"\")","v":""},{"$f":"IFERROR(VLOOKUP(PesquisadeAlunos,PresençaemFevereiro[],15,FALSE),\"\")","v":""},{"$f":"IFERROR(VLOOKUP(PesquisadeAlunos,PresençaemFevereiro[],16,FALSE),\"\")","v":""},{"$f":"IFERROR(VLOOKUP(PesquisadeAlunos,PresençaemFevereiro[],17,FALSE),\"\")","v":""},{"$f":"IFERROR(VLOOKUP(PesquisadeAlunos,PresençaemFevereiro[],18,FALSE),\"\")","v":""},{"$f":"IFERROR(VLOOKUP(PesquisadeAlunos,PresençaemFevereiro[],19,FALSE),\"\")","v":""},{"$f":"IFERROR(VLOOKUP(PesquisadeAlunos,PresençaemFevereiro[],20,FALSE),\"\")","v":""},{"$f":"IFERROR(VLOOKUP(PesquisadeAlunos,PresençaemFevereiro[],21,FALSE),\"\")","v":""},{"$f":"IFERROR(VLOOKUP(PesquisadeAlunos,PresençaemFevereiro[],22,FALSE),\"\")","v":""},{"$f":"IFERROR(VLOOKUP(PesquisadeAlunos,PresençaemFevereiro[],23,FALSE),\"\")","v":""},{"$f":"IFERROR(VLOOKUP(PesquisadeAlunos,PresençaemFevereiro[],24,FALSE),\"\")","v":""},{"$f":"IFERROR(VLOOKUP(PesquisadeAlunos,PresençaemFevereiro[],25,FALSE),\"\")","v":""},{"$f":"IFERROR(VLOOKUP(PesquisadeAlunos,PresençaemFevereiro[],26,FALSE),\"\")","v":""},{"$f":"IFERROR(VLOOKUP(PesquisadeAlunos,PresençaemFevereiro[],27,FALSE),\"\")","v":""},{"$f":"IFERROR(VLOOKUP(PesquisadeAlunos,PresençaemFevereiro[],28,FALSE),\"\")","v":""},{"$f":"IFERROR(VLOOKUP(PesquisadeAlunos,PresençaemFevereiro[],29,FALSE),\"\")","v":""},{"$f":"IFERROR(VLOOKUP(PesquisadeAlunos,PresençaemFevereiro[],30,FALSE),\"\")","v":""},{"$f":"IFERROR(VLOOKUP(PesquisadeAlunos,PresençaemFevereiro[],31,FALSE),\"\")","v":""}]
[null,"Março",1,2,3,4,5,6,7,8,9,10,11,12,13,14,15,16,17,18,19,20,21,22,23,24,25,26,27,28,29,30,31,{"$f":"COUNTIF($D31:$AH31,Código1)","v":0},{"$f":"COUNTIF($D31:$AH31,Código2)","v":0},{"$f":"COUNTIF($D31:$AH31,Código3)","v":0},{"$f":"COUNTIF($D31:$AH31,Código4)","v":0}]
[null,null,{"$f":"IFERROR(VLOOKUP(PesquisadeAlunos,PresençaemMarço[],3,FALSE),\"\")","v":""},{"$f":"IFERROR(VLOOKUP(PesquisadeAlunos,PresençaemMarço[],4,FALSE),\"\")","v":""},{"$f":"IFERROR(VLOOKUP(PesquisadeAlunos,PresençaemMarço[],5,FALSE),\"\")","v":""},{"$f":"IFERROR(VLOOKUP(PesquisadeAlunos,PresençaemMarço[],6,FALSE),\"\")","v":""},{"$f":"IFERROR(VLOOKUP(PesquisadeAlunos,PresençaemMarço[],7,FALSE),\"\")","v":""},{"$f":"IFERROR(VLOOKUP(PesquisadeAlunos,PresençaemMarço[],8,FALSE),\"\")","v":""},{"$f":"IFERROR(VLOOKUP(PesquisadeAlunos,PresençaemMarço[],9,FALSE),\"\")","v":""},{"$f":"IFERROR(VLOOKUP(PesquisadeAlunos,PresençaemMarço[],10,FALSE),\"\")","v":""},{"$f":"IFERROR(VLOOKUP(PesquisadeAlunos,PresençaemMarço[],11,FALSE),\"\")","v":""},{"$f":"IFERROR(VLOOKUP(PesquisadeAlunos,PresençaemMarço[],12,FALSE),\"\")","v":""},{"$f":"IFERROR(VLOOKUP(PesquisadeAlunos,PresençaemMarço[],13,FALSE),\"\")","v":""},{"$f":"IFERROR(VLOOKUP(PesquisadeAlunos,PresençaemMarço[],14,FALSE),\"\")","v":""},{"$f":"IFERROR(VLOOKUP(PesquisadeAlunos,PresençaemMarço[],15,FALSE),\"\")","v":""},{"$f":"IFERROR(VLOOKUP(PesquisadeAlunos,PresençaemMarço[],16,FALSE),\"\")","v":""},{"$f":"IFERROR(VLOOKUP(PesquisadeAlunos,PresençaemMarço[],17,FALSE),\"\")","v":""},{"$f":"IFERROR(VLOOKUP(PesquisadeAlunos,PresençaemMarço[],18,FALSE),\"\")","v":""},{"$f":"IFERROR(VLOOKUP(PesquisadeAlunos,PresençaemMarço[],19,FALSE),\"\")","v":""},{"$f":"IFERROR(VLOOKUP(PesquisadeAlunos,PresençaemMarço[],20,FALSE),\"\")","v":""},{"$f":"IFERROR(VLOOKUP(PesquisadeAlunos,PresençaemMarço[],21,FALSE),\"\")","v":""},{"$f":"IFERROR(VLOOKUP(PesquisadeAlunos,PresençaemMarço[],22,FALSE),\"\")","v":""},{"$f":"IFERROR(VLOOKUP(PesquisadeAlunos,PresençaemMarço[],23,FALSE),\"\")","v":""},{"$f":"IFERROR(VLOOKUP(PesquisadeAlunos,PresençaemMarço[],24,FALSE),\"\")","v":""},{"$f":"IFERROR(VLOOKUP(PesquisadeAlunos,PresençaemMarço[],25,FALSE),\"\")","v":""},{"$f":"IFERROR(VLOOKUP(PesquisadeAlunos,PresençaemMarço[],26,FALSE),\"\")","v":""},{"$f":"IFERROR(VLOOKUP(PesquisadeAlunos,PresençaemMarço[],27,FALSE),\"\")","v":""},{"$f":"IFERROR(VLOOKUP(PesquisadeAlunos,PresençaemMarço[],28,FALSE),\"\")","v":""},{"$f":"IFERROR(VLOOKUP(PesquisadeAlunos,PresençaemMarço[],29,FALSE),\"\")","v":""},{"$f":"IFERROR(VLOOKUP(PesquisadeAlunos,PresençaemMarço[],30,FALSE),\"\")","v":""},{"$f":"IFERROR(VLOOKUP(PesquisadeAlunos,PresençaemMarço[],31,FALSE),\"\")","v":""},{"$f":"IFERROR(VLOOKUP(PesquisadeAlunos,PresençaemMarço[],32,FALSE),\"\")","v":""},{"$f":"IFERROR(VLOOKUP(PesquisadeAlunos,PresençaemMarço[],33,FALSE),\"\")","v":""}]
[null,"Abril",1,2,3,4,5,6,7,8,9,10,11,12,13,14,15,16,17,18,19,20,21,22,23,24,25,26,27,28,29,30,null,{"$f":"COUNTIF($D33:$AH33,Código1)","v":0},{"$f":"COUNTIF($D33:$AH33,Código2)","v":0},{"$f":"COUNTIF($D33:$AH33,Código3)","v":0},{"$f":"COUNTIF($D33:$AH33,Código4)","v":0}]
[null,null,{"$f":"IFERROR(VLOOKUP(PesquisadeAlunos,PresençaemAbril[],3,FALSE),\"\")","v":""},{"$f":"IFERROR(VLOOKUP(PesquisadeAlunos,PresençaemAbril[],4,FALSE),\"\")","v":""},{"$f":"IFERROR(VLOOKUP(PesquisadeAlunos,PresençaemAbril[],5,FALSE),\"\")","v":""},{"$f":"IFERROR(VLOOKUP(PesquisadeAlunos,PresençaemAbril[],6,FALSE),\"\")","v":""},{"$f":"IFERROR(VLOOKUP(PesquisadeAlunos,PresençaemAbril[],7,FALSE),\"\")","v":""},{"$f":"IFERROR(VLOOKUP(PesquisadeAlunos,PresençaemAbril[],8,FALSE),\"\")","v":""},{"$f":"IFERROR(VLOOKUP(PesquisadeAlunos,PresençaemAbril[],9,FALSE),\"\")","v":""},{"$f":"IFERROR(VLOOKUP(PesquisadeAlunos,PresençaemAbril[],10,FALSE),\"\")","v":""},{"$f":"IFERROR(VLOOKUP(PesquisadeAlunos,PresençaemAbril[],11,FALSE),\"\")","v":""},{"$f":"IFERROR(VLOOKUP(PesquisadeAlunos,PresençaemAbril[],12,FALSE),\"\")","v":""},{"$f":"IFERROR(VLOOKUP(PesquisadeAlunos,PresençaemAbril[],13,FALSE),\"\")","v":""},{"$f":"IFERROR(VLOOKUP(PesquisadeAlunos,PresençaemAbril[],14,FALSE),\"\")","v":""},{"$f":"IFERROR(VLOOKUP(PesquisadeAlunos,PresençaemAbril[],15,FALSE),\"\")","v":""},{"$f":"IFERROR(VLOOKUP(PesquisadeAlunos,PresençaemAbril[],16,FALSE),\"\")","v":""},{"$f":"IFERROR(VLOOKUP(PesquisadeAlunos,PresençaemAbril[],17,FALSE),\"\")","v":""},{"$f":"IFERROR(VLOOKUP(PesquisadeAlunos,PresençaemAbril[],18,FALSE),\"\")","v":""},{"$f":"IFERROR(VLOOKUP(PesquisadeAlunos,PresençaemAbril[],19,FALSE),\"\")","v":""},{"$f":"IFERROR(VLOOKUP(PesquisadeAlunos,PresençaemAbril[],20,FALSE),\"\")","v":""},{"$f":"IFERROR(VLOOKUP(PesquisadeAlunos,PresençaemAbril[],21,FALSE),\"\")","v":""},{"$f":"IFERROR(VLOOKUP(PesquisadeAlunos,PresençaemAbril[],22,FALSE),\"\")","v":""},{"$f":"IFERROR(VLOOKUP(PesquisadeAlunos,PresençaemAbril[],23,FALSE),\"\")","v":""},{"$f":"IFERROR(VLOOKUP(PesquisadeAlunos,PresençaemAbril[],24,FALSE),\"\")","v":""},{"$f":"IFERROR(VLOOKUP(PesquisadeAlunos,PresençaemAbril[],25,FALSE),\"\")","v":""},{"$f":"IFERROR(VLOOKUP(PesquisadeAlunos,PresençaemAbril[],26,FALSE),\"\")","v":""},{"$f":"IFERROR(VLOOKUP(PesquisadeAlunos,PresençaemAbril[],27,FALSE),\"\")","v":""},{"$f":"IFERROR(VLOOKUP(PesquisadeAlunos,PresençaemAbril[],28,FALSE),\"\")","v":""},{"$f":"IFERROR(VLOOKUP(PesquisadeAlunos,PresençaemAbril[],29,FALSE),\"\")","v":""},{"$f":"IFERROR(VLOOKUP(PesquisadeAlunos,PresençaemAbril[],30,FALSE),\"\")","v":""},{"$f":"IFERROR(VLOOKUP(PesquisadeAlunos,PresençaemAbril[],31,FALSE),\"\")","v":""},{"$f":"IFERROR(VLOOKUP(PesquisadeAlunos,PresençaemAbril[],32,FALSE),\"\")","v":""}]
[null,"Maio",1,2,3,4,5,6,7,8,9,10,11,12,13,14,15,16,17,18,19,20,21,22,23,24,25,26,27,28,29,30,31,{"$f":"COUNTIF($D35:$AH35,Código1)","v":0},{"$f":"COUNTIF($D35:$AH35,Código2)","v":0},{"$f":"COUNTIF($D35:$AH35,Código3)","v":0},{"$f":"COUNTIF($D35:$AH35,Código4)","v":0}]
[null,null,{"$f":"IFERROR(VLOOKUP(PesquisadeAlunos,PresençaemMaio[],3,FALSE),\"\")","v":""},{"$f":"IFERROR(VLOOKUP(PesquisadeAlunos,PresençaemMaio[],4,FALSE),\"\")","v":""},{"$f":"IFERROR(VLOOKUP(PesquisadeAlunos,PresençaemMaio[],5,FALSE),\"\")","v":""},{"$f":"IFERROR(VLOOKUP(PesquisadeAlunos,PresençaemMaio[],6,FALSE),\"\")","v":""},{"$f":"IFERROR(VLOOKUP(PesquisadeAlunos,PresençaemMaio[],7,FALSE),\"\")","v":""},{"$f":"IFERROR(VLOOKUP(PesquisadeAlunos,PresençaemMaio[],8,FALSE),\"\")","v":""},{"$f":"IFERROR(VLOOKUP(PesquisadeAlunos,PresençaemMaio[],9,FALSE),\"\")","v":""},{"$f":"IFERROR(VLOOKUP(PesquisadeAlunos,PresençaemMaio[],10,FALSE),\"\")","v":""},{"$f":"IFERROR(VLOOKUP(PesquisadeAlunos,PresençaemMaio[],11,FALSE),\"\")","v":""},{"$f":"IFERROR(VLOOKUP(PesquisadeAlunos,PresençaemMaio[],12,FALSE),\"\")","v":""},{"$f":"IFERROR(VLOOKUP(PesquisadeAlunos,PresençaemMaio[],13,FALSE),\"\")","v":""},{"$f":"IFERROR(VLOOKUP(PesquisadeAlunos,PresençaemMaio[],14,FALSE),\"\")","v":""},{"$f":"IFERROR(VLOOKUP(PesquisadeAlunos,PresençaemMaio[],15,FALSE),\"\")","v":""},{"$f":"IFERROR(VLOOKUP(PesquisadeAlunos,PresençaemMaio[],16,FALSE),\"\")","v":""},{"$f":"IFERROR(VLOOKUP(PesquisadeAlunos,PresençaemMaio[],17,FALSE),\"\")","v":""},{"$f":"IFERROR(VLOOKUP(PesquisadeAlunos,PresençaemMaio[],18,FALSE),\"\")","v":""},{"$f":"IFERROR(VLOOKUP(PesquisadeAlunos,PresençaemMaio[],19,FALSE),\"\")","v":""},{"$f":"IFERROR(VLOOKUP(PesquisadeAlunos,PresençaemMaio[],20,FALSE),\"\")","v":""},{"$f":"IFERROR(VLOOKUP(PesquisadeAlunos,PresençaemMaio[],21,FALSE),\"\")","v":""},{"$f":"IFERROR(VLOOKUP(PesquisadeAlunos,PresençaemMaio[],22,FALSE),\"\")","v":""},{"$f":"IFERROR(VLOOKUP(PesquisadeAlunos,PresençaemMaio[],23,FALSE),\"\")","v":""},{"$f":"IFERROR(VLOOKUP(PesquisadeAlunos,PresençaemMaio[],24,FALSE),\"\")","v":""},{"$f":"IFERROR(VLOOKUP(PesquisadeAlunos,PresençaemMaio[],25,FALSE),\"\")","v":""},{"$f":"IFERROR(VLOOKUP(PesquisadeAlunos,PresençaemMaio[],26,FALSE),\"\")","v":""},{"$f":"IFERROR(VLOOKUP(PesquisadeAlunos,PresençaemMaio[],27,FALSE),\"\")","v":""},{"$f":"IFERROR(VLOOKUP(PesquisadeAlunos,PresençaemMaio[],28,FALSE),\"\")","v":""},{"$f":"IFERROR(VLOOKUP(PesquisadeAlunos,PresençaemMaio[],29,FALSE),\"\")","v":""},{"$f":"IFERROR(VLOOKUP(PesquisadeAlunos,PresençaemMaio[],30,FALSE),\"\")","v":""},{"$f":"IFERROR(VLOOKUP(PesquisadeAlunos,PresençaemMaio[],31,FALSE),\"\")","v":""},{"$f":"IFERROR(VLOOKUP(PesquisadeAlunos,PresençaemMaio[],32,FALSE),\"\")","v":""},{"$f":"IFERROR(VLOOKUP(PesquisadeAlunos,PresençaemMaio[],33,FALSE),\"\")","v":""}]
[null,"Junho",1,2,3,4,5,6,7,8,9,10,11,12,13,14,15,16,17,18,19,20,21,22,23,24,25,26,27,28,29,30,null,{"$f":"COUNTIF($D37:$AH37,Código1)","v":0},{"$f":"COUNTIF($D37:$AH37,Código2)","v":0},{"$f":"COUNTIF($D37:$AH37,Código3)","v":0},{"$f":"COUNTIF($D37:$AH37,Código4)","v":0}]
[null,null,{"$f":"IFERROR(VLOOKUP(PesquisadeAlunos,PresençaemJunho[],3,FALSE),\"\")","v":""},{"$f":"IFERROR(VLOOKUP(PesquisadeAlunos,PresençaemJunho[],4,FALSE),\"\")","v":""},{"$f":"IFERROR(VLOOKUP(PesquisadeAlunos,PresençaemJunho[],5,FALSE),\"\")","v":""},{"$f":"IFERROR(VLOOKUP(PesquisadeAlunos,PresençaemJunho[],6,FALSE),\"\")","v":""},{"$f":"IFERROR(VLOOKUP(PesquisadeAlunos,PresençaemJunho[],7,FALSE),\"\")","v":""},{"$f":"IFERROR(VLOOKUP(PesquisadeAlunos,PresençaemJunho[],8,FALSE),\"\")","v":""},{"$f":"IFERROR(VLOOKUP(PesquisadeAlunos,PresençaemJunho[],9,FALSE),\"\")","v":""},{"$f":"IFERROR(VLOOKUP(PesquisadeAlunos,PresençaemJunho[],10,FALSE),\"\")","v":""},{"$f":"IFERROR(VLOOKUP(PesquisadeAlunos,PresençaemJunho[],11,FALSE),\"\")","v":""},{"$f":"IFERROR(VLOOKUP(PesquisadeAlunos,PresençaemJunho[],12,FALSE),\"\")","v":""},{"$f":"IFERROR(VLOOKUP(PesquisadeAlunos,PresençaemJunho[],13,FALSE),\"\")","v":""},{"$f":"IFERROR(VLOOKUP(PesquisadeAlunos,PresençaemJunho[],14,FALSE),\"\")","v":""},{"$f":"IFERROR(VLOOKUP(PesquisadeAlunos,PresençaemJunho[],15,FALSE),\"\")","v":""},{"$f":"IFERROR(VLOOKUP(PesquisadeAlunos,PresençaemJunho[],16,FALSE),\"\")","v":""},{"$f":"IFERROR(VLOOKUP(PesquisadeAlunos,PresençaemJunho[],17,FALSE),\"\")","v":""},{"$f":"IFERROR(VLOOKUP(PesquisadeAlunos,PresençaemJunho[],18,FALSE),\"\")","v":""},{"$f":"IFERROR(VLOOKUP(PesquisadeAlunos,PresençaemJunho[],19,FALSE),\"\")","v":""},{"$f":"IFERROR(VLOOKUP(PesquisadeAlunos,PresençaemJunho[],20,FALSE),\"\")","v":""},{"$f":"IFERROR(VLOOKUP(PesquisadeAlunos,PresençaemJunho[],21,FALSE),\"\")","v":""},{"$f":"IFERROR(VLOOKUP(PesquisadeAlunos,PresençaemJunho[],22,FALSE),\"\")","v":""},{"$f":"IFERROR(VLOOKUP(PesquisadeAlunos,PresençaemJunho[],23,FALSE),\"\")","v":""},{"$f":"IFERROR(VLOOKUP(PesquisadeAlunos,PresençaemJunho[],24,FALSE),\"\")","v":""},{"$f":"IFERROR(VLOOKUP(PesquisadeAlunos,PresençaemJunho[],25,FALSE),\"\")","v":""},{"$f":"IFERROR(VLOOKUP(PesquisadeAlunos,PresençaemJunho[],26,FALSE),\"\")","v":""},{"$f":"IFERROR(VLOOKUP(PesquisadeAlunos,PresençaemJunho[],27,FALSE),\"\")","v":""},{"$f":"IFERROR(VLOOKUP(PesquisadeAlunos,PresençaemJunho[],28,FALSE),\"\")","v":""},{"$f":"IFERROR(VLOOKUP(PesquisadeAlunos,PresençaemJunho[],29,FALSE),\"\")","v":""},{"$f":"IFERROR(VLOOKUP(PesquisadeAlunos,PresençaemJunho[],30,FALSE),\"\")","v":""},{"$f":"IFERROR(VLOOKUP(PesquisadeAlunos,PresençaemJunho[],31,FALSE),\"\")","v":""},{"$f":"IFERROR(VLOOKUP(PesquisadeAlunos,PresençaemJunho[],32,FALSE),\"\")","v":""}]
[null,"Julho",1,2,3,4,5,6,7,8,9,10,11,12,13,14,15,16,17,18,19,20,21,22,23,24,25,26,27,28,29,30,31,{"$f":"COUNTIF($D39:$AH39,Código1)","v":0},{"$f":"COUNTIF($D39:$AH39,Código2)","v":0},{"$f":"COUNTIF($D39:$AH39,Código3)","v":0},{"$f":"COUNTIF($D39:$AH39,Código4)","v":0}]
[null,null,{"$f":"IFERROR(VLOOKUP(PesquisadeAlunos,PresençaemJulho[],3,FALSE),\"\")","v":""},{"$f":"IFERROR(VLOOKUP(PesquisadeAlunos,PresençaemJulho[],4,FALSE),\"\")","v":""},{"$f":"IFERROR(VLOOKUP(PesquisadeAlunos,PresençaemJulho[],5,FALSE),\"\")","v":""},{"$f":"IFERROR(VLOOKUP(PesquisadeAlunos,PresençaemJulho[],6,FALSE),\"\")","v":""},{"$f":"IFERROR(VLOOKUP(PesquisadeAlunos,PresençaemJulho[],7,FALSE),\"\")","v":""},{"$f":"IFERROR(VLOOKUP(PesquisadeAlunos,PresençaemJulho[],8,FALSE),\"\")","v":""},{"$f":"IFERROR(VLOOKUP(PesquisadeAlunos,PresençaemJulho[],9,FALSE),\"\")","v":""},{"$f":"IFERROR(VLOOKUP(PesquisadeAlunos,PresençaemJulho[],10,FALSE),\"\")","v":""},{"$f":"IFERROR(VLOOKUP(PesquisadeAlunos,PresençaemJulho[],11,FALSE),\"\")","v":""},{"$f":"IFERROR(VLOOKUP(PesquisadeAlunos,PresençaemJulho[],12,FALSE),\"\")","v":""},{"$f":"IFERROR(VLOOKUP(PesquisadeAlunos,PresençaemJulho[],13,FALSE),\"\")","v":""},{"$f":"IFERROR(VLOOKUP(PesquisadeAlunos,PresençaemJulho[],14,FALSE),\"\")","v":""},{"$f":"IFERROR(VLOOKUP(PesquisadeAlunos,PresençaemJulho[],15,FALSE),\"\")","v":""},{"$f":"IFERROR(VLOOKUP(PesquisadeAlunos,PresençaemJulho[],16,FALSE),\"\")","v":""},{"$f":"IFERROR(VLOOKUP(PesquisadeAlunos,PresençaemJulho[],17,FALSE),\"\")","v":""},{"$f":"IFERROR(VLOOKUP(PesquisadeAlunos,PresençaemJulho[],18,FALSE),\"\")","v":""},{"$f":"IFERROR(VLOOKUP(PesquisadeAlunos,PresençaemJulho[],19,FALSE),\"\")","v":""},{"$f":"IFERROR(VLOOKUP(PesquisadeAlunos,PresençaemJulho[],20,FALSE),\"\")","v":""},{"$f":"IFERROR(VLOOKUP(PesquisadeAlunos,PresençaemJulho[],21,FALSE),\"\")","v":""},{"$f":"IFERROR(VLOOKUP(PesquisadeAlunos,PresençaemJulho[],22,FALSE),\"\")","v":""},{"$f":"IFERROR(VLOOKUP(PesquisadeAlunos,PresençaemJulho[],23,FALSE),\"\")","v":""},{"$f":"IFERROR(VLOOKUP(PesquisadeAlunos,PresençaemJulho[],24,FALSE),\"\")","v":""},{"$f":"IFERROR(VLOOKUP(PesquisadeAlunos,PresençaemJulho[],25,FALSE),\"\")","v":""},{"$f":"IFERROR(VLOOKUP(PesquisadeAlunos,PresençaemJulho[],26,FALSE),\"\")","v":""},{"$f":"IFERROR(VLOOKUP(PesquisadeAlunos,PresençaemJulho[],27,FALSE),\"\")","v":""},{"$f":"IFERROR(VLOOKUP(PesquisadeAlunos,PresençaemJulho[],28,FALSE),\"\")","v":""},{"$f":"IFERROR(VLOOKUP(PesquisadeAlunos,PresençaemJulho[],29,FALSE),\"\")","v":""},{"$f":"IFERROR(VLOOKUP(PesquisadeAlunos,PresençaemJulho[],30,FALSE),\"\")","v":""},{"$f":"IFERROR(VLOOKUP(PesquisadeAlunos,PresençaemJulho[],31,FALSE),\"\")","v":""},{"$f":"IFERROR(VLOOKUP(PesquisadeAlunos,PresençaemJulho[],32,FALSE),\"\")","v":""},{"$f":"IFERROR(VLOOKUP(PesquisadeAlunos,PresençaemJulho[],33,FALSE),\"\")","v":""}]
[{"$nulls":30},"Totais",null,null,{"$f":"SUM(AH16:AH39)","v":2},{"$f":"SUM(AI16:AI39)","v":1},{"$f":"SUM(AJ16:AJ39)","v":0},{"$f":"SUM(AK16:AK39)","v":19}]